Workbook

Sheet AER only (hidden)
B1: Data in these columns used for data validation and database purposes.
AC4: FOR ELECTRICITY BUSINESSES ONLY
AC5: Feeder Types | AG5: TasNetworks (D) | AH5: MAIFI flag | AI5: Feeder Names
AC6: CBD | AD6: Urban | AE6: Short rural | AF6: long rural | AG6: EXTRA
B7: dms_TradingName_List | C7: dms_TradingNameFull_List | D7: dms_ABN_List | E7: dms_JurisdictionList | F7: dms_Sector_List | G7: dms_Segment_List | H7: dms_FormControl_List | I7: dms_RPT_List | J7: dms_RPTMonth_List | K7: dms_CRCPlength_List | L7: dms_FRCPlength_List | M7: dms_663_List | N7: dms_DeterminationRef_List | O7: dms_Addr1_List | P7: dms_Addr2_List | Q7: dms_Suburb_List | R7: dms_State_List | S7: dms_PostCode_List | T7: dms_PAddr1_List | U7: dms_PAddr2_List | V7: dms_PSuburb_List | W7: dms_PState_List | X7: dms_PPostCode_List | Y7: dms_ContactName1_List | Z7: dms_ContactPh1_List | AA7: dms_ContactEmail_List | AC7: dms_CBD_flag | AD7: dms_Urban_flag | AE7: dms_ShortRural_flag | AF7: dms_LongRural_flag | AG7: dms_FeederType_5_flag | AH7: dms_MAIFI_flag_List | AI7: dms_FeederName_1 | AJ7: dms_FeederName_2 | AK7: dms_FeederName_3 | AL7: dms_FeederName_4 | AM7: dms_FeederName_5
B8: ActewAGL Distribution | C8: ActewAGL Distribution | D8: 76670568688 | E8: ACT | F8: Electricity | G8: Distribution | H8: Revenue cap | I8: Financial | J8: June | K8: 5 | L8: 5 | M8: 5 | N8: 2014-19 Distribution Determination | O8: 40 Bunda Street | Q8: CANBERRA | R8: ACT | S8: 2600 | T8: GPO BOX 366 | V8: CANBERRA | W8: ACT | X8: 2601 | Y8: Robert Walker | Z8: 02 6248 3847 | AA8: robert.walker@actewagle.com.au | AC8: NO | AD8: YES | AE8: YES | AF8: NO | AG8: NO | AI8: CBD | AJ8: Urban | AK8: Short rural | AL8: Long rural | AN8: ActewAGL Distribution
B9: ActewAGL Distribution (Tx Assets) | C9: ActewAGL Distribution (Tx Assets) | D9: 76670568688 | E9: ACT | F9: Electricity | G9: Distribution | H9: Revenue cap | I9: Financial | J9: June | K9: 5 | L9: 5 | M9: 5 | N9: distribution determination | O9: 40 Bunda Street | Q9: CANBERRA | R9: ACT | S9: 2600 | T9: GPO BOX 366 | V9: CANBERRA | W9: ACT | X9: 2601 | Y9: Robert Walker | Z9: 02 6248 3847 | AA9: robert.walker@actewagle.com.au | AI9: CBD | AJ9: Urban | AK9: Short rural | AL9: Long rural | AN9: ActewAGL Distribution (Tx Assets)
B10: ActewAGL Gas | C10: ActewAGL Gas | D10: 76670568688 | E10: ACT | F10: Gas | G10: Distribution | H10: Weighted average price cap | I10: Financial | J10: June | K10: 5 | L10: 5 | M10: x | O10: 40 Bunda Street | Q10: CANBERRA | R10: ACT | S10: 2600 | T10: GPO BOX 366 | V10: CANBERRA | W10: ACT | X10: 2601 | Y10: Philip Deamer | Z10: 02 6248 3438 | AA10: GasAAReview@actewagl.com.au | AN10: ActewAGL Gas
B11: AGN (Albury) | C11: Australian Gas Networks Limited (reporting data for Albury) | D11: 19078551685 | E11: Vic | F11: Gas | G11: Distribution | H11: Weighted average price cap | I11: Calendar | J11: December | K11: 5 | L11: 5 | M11: x | O11: Level 10 | P11: 81 Flinders Street | Q11: ADELAIDE | R11: SA | S11: 5000 | Z11: 08 8227 1500 | AI11: CBD | AJ11: Urban | AK11: Short rural | AL11: Long rural | AN11: AGN (SA)
B12: AGN (SA) | C12: AGN (SA) | D12: 78551685 | E12: SA | F12: Gas | G12: Distribution | H12: Revenue cap | I12: Financial | J12: June | K12: 5 | L12: 5 | M12: 5 | N12: distribution determination | R12: SA | AN12: AGN (Victoria)
B13: AGN (Victoria) | C13: Australian Gas Networks Limited (reporting data for Victoria) | D13: 19078551685 | E13: Vic | F13: Gas | G13: Distribution | H13: Weighted average price cap | I13: Calendar | J13: December | K13: 5 | L13: 5 | M13: x | O13: Level 10 | P13: 81 Flinders Street | Q13: ADELAIDE | R13: SA | S13: 5000 | Z13: 08 8227 1500 | AN13: AGN (Albury)
B14: Amadeus | C14: APT Pipelines (NT) Pty Ltd | D14: 39009737393 | E14: NT | F14: Gas | G14: Transmission | H14: Weighted average price cap | I14: Financial | J14: June | K14: 5 | L14: 5 | M14: x | N14: n/a | O14: Level 19, HSBC Building | P14: 580 George Street | Q14: SYDNEY | R14: NSW | S14: 2000 | T14: Level 19, HSBC Building | U14: 580 George Street | V14: SYDNEY | W14: NSW | X14: 2000 | Y14: Alexandra Curran | Z14: 02 9275 0020 | AA14: alexandra.curran@apa.com.au | AN14: Amadeus
B15: APA GasNet | C15: APA GasNet Australia (Operations) Pty Ltd | D15: 65083009 | E15: Vic | F15: Gas | G15: Transmission | H15: Weighted average price cap | I15: Calendar | J15: December | K15: 5 | L15: 5 | M15: x | O15: Level 19, HSBC Building | P15: 580 George Street | Q15: SYDNEY | R15: NSW | S15: 2000 | T15: PO Box R41 | V15: ROYAL EXCHANGE | W15: NSW | X15: 1225 | Z15: 02 9693 0000 | AN15: APA GasNet
B16: Ausgrid | C16: Ausgrid | D16: 67505337385 | E16: NSW | F16: Electricity | G16: Distribution | H16: Revenue cap | I16: Financial | J16: June | K16: 5 | L16: 5 | M16: 5 | N16: 2014-19 Distribution Determination | O16: 570 George St | Q16: SYDNEY | R16: NSW | S16: 2000 | Y16: John Thomson | Z16: (02) 9269 2312 | AA16: john.thomson@ausgrid.com.au | AC16: YES | AD16: YES | AE16: YES | AF16: YES | AG16: NO | AI16: CBD | AJ16: Urban | AK16: Short rural | AL16: Long rural | AN16: Ausgrid
B17: Ausgrid (Tx Assets) | C17: Ausgrid (Tx Assets) | D17: 67505337385 | E17: NSW | F17: Electricity | G17: Distribution | H17: Revenue cap | I17: Financial | J17: June | K17: 5 | L17: 5 | M17: 5 | N17: distribution determination | R17: NSW | AI17: CBD | AJ17: Urban | AK17: Short rural | AL17: Long rural | AN17: Ausgrid (Tx Assets)
B18: AusNet (D) | C18: AusNet Services (D) | D18: 91064651118 | E18: Vic | F18: Electricity | G18: Distribution | H18: Revenue cap | I18: Calendar | J18: December | K18: 5 | L18: 5 | M18: 2 | N18: 2016-20 Distribution Determination | O18: Level 32 | P18: 2 Southbank Boulevard | Q18: SOUTHBANK | R18: Vic | S18: 3006 | T18: Locked Bag 14051 | V18: MELBOURNE CITY MAIL CENTRE | W18: VIC | X18: 8001 | Y18: Hannah Williams | Z18: 03 9683 4088 | AA18: hwilliams@powercor.com.au | AD18: YES | AE18: YES | AF18: YES | AG18: NO | AI18: CBD | AJ18: Urban | AK18: Short rural | AL18: Long rural | AN18: AusNet (D)
B19: AusNet (Gas) | C19: AusNet Gas Services | D19: 86015036 | E19: Vic | F19: Gas | G19: Distribution | H19: Weighted average price cap | I19: Calendar | J19: December | K19: 5 | L19: 5 | M19: X | AN19: AusNet (Gas)
B20: AusNet (T) | C20: AusNet (T) | D20: 78079798173 | E20: Vic | F20: Electricity | G20: Transmission | H20: Revenue cap | I20: Financial | J20: March | K20: 5 | L20: 5 | M20: 2 | N20: transmission determination | O20: Level 32 | P20: 2 Southbank Boulevard | Q20: SOUTHBANK | R20: Vic | S20: 3006 | T20: Locked Bag 14051 | V20: MELBOURNE CITY MAIL CENTRE | W20: Vic | X20: 8001 | Y20: Clare Thompson | Z20: 03 9695 6670 | AA20: clare.e.thompson@ausnetservices.com.au | AI20: CBD | AJ20: Urban | AK20: Short rural | AL20: Long rural | AN20: AusNet (T)
B21: Australian Distribution Co. | C21: Australian Distribution Co. | D21: 11222333444 | E21: - | F21: Electricity | G21: Distribution | H21: Revenue cap | I21: Financial | J21: June | K21: 5 | L21: 5 | M21: 2 | N21: distribution determination | O21: 123 Straight Street | Q21: SYDNEY | R21: NSW | S21: 2000 | T21: PO Box 123 | V21: SYDNEY | W21: NSW | X21: 2000 | Y21: Bob Smith | Z21: 02 1234 5678 | AA21: bob@auselec.net.au | AI21: CBD | AJ21: Urban | AK21: Short rural | AL21: Long rural | AN21: Australian Distribution Co.
B22: Australian Distribution Co. (Vic) | C22: Australian Distribution Co. (Victoria) | D22: 11222333444 | E22: Vic | F22: Electricity | G22: Distribution | H22: Revenue cap | I22: Calendar | J22: December | K22: 5 | L22: 5 | M22: 2 | N22: distribution determination | O22: 123 Straight Street | Q22: MELBOURNE | R22: Vic | S22: 3000 | T22: PO Box 123 | V22: MELBOURNE | W22: VIC | X22: 3000 | Y22: Bob Smith | Z22: 02 1234 5678 | AA22: bob@auselec.net.au | AI22: CBD | AJ22: Urban | AK22: Short rural | AL22: Long rural | AN22: Australian Distribution Co. (Vic)
B23: Australian Transmission Co. | C23: Australian Transmission Co. | D23: 11222333444 | E23: - | F23: Electricity | G23: Transmission | H23: Revenue cap | I23: Financial | J23: June | K23: 5 | L23: 5 | M23: 5 | N23: transmission determination | O23: 123 Straight Street | Q23: SYDNEY | R23: NSW | S23: 2000 | T23: PO Box 123 | V23: SYDNEY | W23: NSW | X23: 2000 | Y23: Bob Smith | Z23: 02 1234 5678 | AA23: bob@auselec.net.au | AI23: CBD | AJ23: Urban | AK23: Short rural | AL23: Long rural | AN23: Australian Transmission Co.
B24: CitiPower | C24: CitiPower | D24: 76064651056 | E24: Vic | F24: Electricity | G24: Distribution | H24: Revenue cap | I24: Calendar | J24: December | K24: 5 | L24: 5 | M24: 2 | N24: 2016-20 Distribution Determination | O24: 40 Market Street | Q24: MELBOURNE | R24: Vic | S24: 3000 | T24: Locked Bag 14090 | V24: MELBOURNE | W24: VIC | X24: 8001 | Y24: Hannah Williams | Z24: 03 9683 4088 | AA24: hwilliams@powercor.com.au | AC24: YES | AD24: YES | AE24: NO | AF24: NO | AG24: NO | AI24: CBD | AJ24: Urban | AK24: Short rural | AL24: Long rural | AN24: CitiPower
B25: Directlink | C25: Directlink | D25: 16779340889 | E25: Qld | F25: Electricity | G25: Transmission | H25: Revenue cap | I25: Financial | J25: June | K25: 9 | L25: 5 | M25: 5 | N25: transmission determination | R25: NSW | AI25: CBD | AJ25: Urban | AK25: Short rural | AL25: Long rural | AN25: Directlink
B26: ElectraNet | C26: ElectraNet | D26: 41094482416 | E26: SA | F26: Electricity | G26: Transmission | H26: Revenue cap | I26: Financial | J26: June | K26: 5 | L26: 5 | M26: 5 | N26: transmission determination | O26: 52-55 East Terrace | P26: Rymill Park | Q26: ADELAIDE | R26: SA | S26: 5000 | T26: PO Box 7096 | U26: Hutt Street Post Office | V26: ADELAIDE | W26: SA | X26: 5000 | Y26: Bill Jackson | Z26: 08 8404 7969 | AA26: jackson.bill@electranet.com.au | AI26: CBD | AJ26: Urban | AK26: Short rural | AL26: Long rural | AN26: ElectraNet
B27: Endeavour Energy | C27: Endeavour Energy | D27: 59253130878 | E27: NSW | F27: Electricity | G27: Distribution | H27: Revenue cap | I27: Financial | J27: June | K27: 5 | L27: 5 | M27: 5 | N27: 2014-19 Distribution Determination | O27: 51 Huntingwood Drive | Q27: HUNTINGWOOD | R27: NSW | S27: 2148 | T27: PO Box 811 | V27: SEVEN HILLS | W27: NSW | X27: 1730 | Y27: Jon Hocking | Z27: 02 9853 4386 / 0407 348 156 | AA27: Jon.Hocking@Endeavourenergy.com.au | AC27: NO | AD27: YES | AE27: YES | AF27: YES | AG27: NO | AI27: CBD | AJ27: Urban | AK27: Short rural | AL27: Long rural | AN27: Endeavour Energy
B28: Energex | C28: Energex | D28: 40078849055 | E28: Qld | F28: Electricity | G28: Distribution | H28: Revenue cap | I28: Financial | J28: June | K28: 5 | L28: 5 | M28: 5 | N28: 2015-20 Distribution Determination | O28: 26 Reddacliff Street | Q28: NEWSTEAD | R28: Qld | S28: 4006 | T28: 26 Reddacliff Street | V28: NEWSTEAD | W28: QLD | X28: 4006 | Y28: Nicola Roscoe | Z28: 07 3664 5891 | AA28: nicolaroscoe@energex.com.au | AC28: YES | AD28: YES | AE28: YES | AF28: NO | AG28: NO | AI28: CBD | AJ28: Urban | AK28: Short rural | AL28: Long rural | AN28: Energex
B29: Ergon Energy | C29: Ergon Energy | D29: 50087646062 | E29: Qld | F29: Electricity | G29: Distribution | H29: Revenue cap | I29: Financial | J29: June | K29: 5 | L29: 5 | M29: 5 | N29: 2015-20 Distribution Determination | O29: 22 Walker Street | Q29: TOWNSVILLE | R29: Qld | S29: 4810 | T29: Po Box 264 | V29: FORTITUDE VALLEY | W29: QLD | X29: 4006 | Y29: Jenny Doyle, Group Manager Regulatory Affairs | Z29: (07) 3851 6416 | AA29: jenny.doyle@ergon.com.au | AC29: NO | AD29: YES | AE29: YES | AF29: YES | AG29: NO | AI29: CBD | AJ29: Urban | AK29: Short rural | AL29: Long rural | AN29: Ergon Energy
B30: Essential Energy | C30: Essential Energy | D30: 37428185226 | E30: NSW | F30: Electricity | G30: Distribution | H30: Revenue cap | I30: Financial | J30: June | K30: 5 | L30: 5 | M30: 5 | N30: 2014-19 Distribution Determination | O30: 8 Buller Street | Q30: PORT MACQUARIE | R30: NSW | S30: 2444 | T30: PO Box 5730 | V30: PORT MACQUARIE | W30: NSW | X30: 2444 | Y30: Catherine Waddell | Z30: 02 6338 3553 | AA30: catherine.waddell@essentialenergy.com.au | AE30: YES | AF30: YES | AG30: NO | AI30: CBD | AJ30: Urban | AK30: Short rural | AL30: Long rural | AN30: Essential Energy
B31: Jemena Electricity | C31: Jemena Electricity | D31: 82064651083 | E31: Vic | F31: Electricity | G31: Distribution | H31: Revenue cap | I31: Calendar | J31: December | K31: 5 | L31: 5 | M31: 2 | N31: 2016-20 Distribution Determination | O31: Level 16 | P31: 567 Collins Street | Q31: MELBOURNE | R31: VIC | S31: 3000 | T31: PO Box 16182 | V31: MELBOURNE | W31: VIC | X31: 8001 | Y31: Matthew Serpell | Z31: 03 9173 8231 | AA31: matthew.serpell@jemena.com..au | AE31: YES | AF31: NO | AG31: NO | AI31: CBD | AJ31: Urban | AK31: Short rural | AL31: Long rural | AN31: Jemena Electricity
B32: JGN | C32: Jemena Gas Networks | E32: NSW | F32: Gas | G32: Distribution | H32: Weighted average price cap | I32: Financial | J32: June | K32: 5 | L32: 5 | AN32: JGN
B33: Multinet Gas | C33: Multinet Gas (DB No.1) Pty Ltd (ACN 086 026 986), Multinet Gas (DB No.2) Pty Ltd (ACN 086 230 122) | D33: 86026986 | E33: Vic | F33: Gas | G33: Distribution | H33: Weighted average price cap | I33: Calendar | J33: December | K33: 5 | L33: 5 | M33: x | AN33: Multinet Gas
B34: Murraylink | C34: Murraylink | D34: 79181207909 | E34: SA | F34: Electricity | G34: Transmission | H34: Revenue cap | I34: Financial | J34: June | K34: 5 | L34: 5 | M34: 5 | N34: transmission determination | AI34: CBD | AJ34: Urban | AK34: Short rural | AL34: Long rural | AN34: Murraylink
B35: Powercor Australia | C35: Powercor Australia | D35: 89064651109 | E35: Vic | F35: Electricity | G35: Distribution | H35: Revenue cap | I35: Calendar | J35: December | K35: 5 | L35: 5 | M35: 2 | N35: 2016-20 Distribution Determination | O35: 40 Market Street | Q35: MELBOURNE | R35: Vic | S35: 3000 | T35: Locked bag 14090 | V35: MELBOURNE | W35: VIC | X35: 8001 | Y35: Hannah Williams | Z35: 03 9683 4088 | AA35: hwilliams@powercor.com.au | AE35: YES | AF35: YES | AG35: NO | AI35: CBD | AJ35: Urban | AK35: Short rural | AL35: Long rural | AN35: Powercor Australia
B36: Powerlink | C36: Queensland Electricity Transmission Corporation Limited trading as Powerlink Queensland | D36: 82078849233 | E36: Qld | F36: Electricity | G36: Transmission | H36: Revenue cap | I36: Financial | J36: June | K36: 5 | L36: 5 | M36: 5 | N36: transmission determination | O36: 33 Harold St | Q36: VIRGINIA | R36: Qld | S36: 4014 | T36: PO Box 1193 | V36: VIRGINIA | W36: QLD | X36: 4014 | Y36: Jennifer Harris | Z36: 07 3860 2667 | AA36: jharris@powerlink.com.au | AI36: CBD | AJ36: Urban | AK36: Short rural | AL36: Long rural | AN36: Powerlink
B37: Roma to Brisbane Pipeline | C37: APT Petroleum Pipelines Limited t/a Roma to Brisbane Pipeline | D37: 009 737 393 | E37: Qld | F37: Gas | G37: Transmission | H37: Revenue cap | I37: Financial | J37: June | K37: 5 | L37: 5 | M37: x | N37: n/a | AI37: CBD | AJ37: Urban | AK37: Short rural | AL37: Long rural | AN37: Roma to Brisbane Pipeline
B38: SA Power Networks | C38: SA Power Networks | D38: 13332330749 | E38: SA | F38: Electricity | G38: Distribution | H38: Revenue cap | I38: Financial | J38: June | K38: 5 | L38: 5 | M38: 5 | N38: 2015-20 Distribution Determination | O38: 1 Anzac Highway | Q38: KESWICK | R38: SA | S38: 5035 | T38: GPO Box 77 | V38: ADELAIDE | W38: SA | X38: 5000 | Y38: Damien O'Connor | Z38: 08 8404 5066 | AA38: damien.oconnor@sapowernetworks.com.au | AE38: YES | AF38: YES | AG38: NO | AI38: CBD | AJ38: Urban | AK38: Short rural | AL38: Long rural | AN38: SA Power Networks
B39: TasNetworks (D) | C39: TasNetworks (D) | D39: 24167357299 | E39: Tas | F39: Electricity | G39: Distribution | H39: Revenue cap | I39: Financial | J39: June | K39: 5 | L39: 5 | M39: 5 | N39: distribution determination | O39: 1-7 Maria Street | Q39: LENAH VALLEY | R39: Tas | S39: 7008 | T39: PO Box 606 | V39: MOONAH | W39: Tas | X39: 7009 | Y39: John Sayers | Z39: 03 62716469 | AA39: john.sayers@tasnetworks.com.au | AE39: YES | AF39: YES | AG39: YES | AI39: Critical Infrastructure | AJ39: High density commercial | AK39: Urban | AL39: High density rural | AM39: Low density rural | AN39: TasNetworks (D)
B40: TasNetworks (T) | C40: TasNetworks (T) | D40: 24167357299 | E40: Tas | F40: Electricity | G40: Transmission | H40: Revenue cap | I40: Financial | J40: June | K40: 5 | L40: 5 | M40: 5 | N40: transmission determination | O40: 1-7 Maria Street | Q40: LENAH VALLEY | R40: Tas | S40: 7008 | T40: PO Box 606 | V40: MOONAH | W40: Tas | X40: 7009 | Y40: John Sayers | Z40: 03 6270 3691 | AA40: john.sayers@tasnetworks.com.au | AI40: CBD | AJ40: Urban | AK40: Short rural | AL40: Long rural | AN40: TasNetworks (T)
B41: TransGrid | C41: NSW Electricity Networks Operations Pty Ltd trading as TransGrid | D41: 609169959 | E41: NSW | F41: Electricity | G41: Transmission | H41: Revenue cap | I41: Financial | J41: June | K41: 5 | L41: 4 | M41: 5 | N41: transmission determination | O41: 180 Thomas Street | Q41: SYDNEY | R41: NSW | S41: 2000 | T41: PO Box A1000 | V41: SYDNEY SOUTH | W41: NSW | X41: 1235 | Y41: Garrie Chubb | Z41: 0408 210 221 | AA41: garrie.chubb@transgrid.com.au | AI41: CBD | AJ41: Urban | AK41: Short rural | AL41: Long rural | AN41: TransGrid
B42: United Energy | C42: United Energy | D42: 70064651029 | E42: Vic | F42: Electricity | G42: Distribution | H42: Revenue cap | I42: Calendar | J42: December | K42: 5 | L42: 5 | M42: 2 | N42: 2016-20 Distribution Determination | O42: Level 3 | P42: 6 Nexus Court | Q42: MULGRAVE | R42: Vic | S42: 3149 | T42: PO Box 449 | V42: MOUNT WAVERLEY | W42: VIC | X42: 3170 | Y42: Mathew Abraham | Z42: 03 8846 9758 | AA42: mathew.abraham@ue.com.au | AE42: YES | AF42: NO | AG42: NO | AI42: CBD | AJ42: Urban | AK42: Short rural | AL42: Long rural | AN42: United Energy
B43: Western Power (D) | C43: Western Power (D) | D43: 18540492861 | E43: WA | F43: Electricity | G43: Distribution | H43: Revenue cap | I43: Financial | J43: June | K43: 12 | L43: 4 | M43: x | N43: distribution determination | O43: 363 Wellington Street | Q43: PERTH | R43: WA | S43: 6000 | T43: GPO Box L921 | V43: PERTH | W43: WA | X43: 6842 | Y43: Judy Hunter | Z43: 08 9326 6239 | AA43: judy.hunter@westernpower.com.au | AE43: YES | AF43: YES | AG43: NO | AH43: NO | AI43: CBD | AJ43: Urban | AK43: Short rural | AL43: Long rural | AN43: Western Power (D)
B44: Western Power (T) | C44: Western Power (T) | D44: 18540492861 | E44: WA | F44: Electricity | G44: Transmission | H44: Revenue cap | I44: Financial | J44: June | K44: 12 | L44: 4 | M44: x | N44: transmission determination | O44: 363 Wellington Street | Q44: PERTH | R44: WA | S44: 6000 | T44: GPO Box L921 | V44: PERTH | W44: WA | X44: 6842 | Y44: Judy Hunter | Z44: 08 9326 6239 | AA44: judy.hunter@westernpower.com.au | AE44: YES | AF44: YES | AG44: NO | AI44: CBD | AJ44: Urban | AK44: Short rural | AL44: Long rural | AN44: Western Power (T)
W47: For EB & Reset RINs only | AC47: For AARs only
B48: The Reg Year Ending (dms_RYE) must be set to the last year of the regulatory period. For forecast data is is usually (FRCP_y5) for actual it is a single year (CRY). For historical actual data the RYE will need to be set manually in the business details sheet by setting the dms_Multiyear_flag to 1 and putting the correct value in 'dms_Specified_FinalYear. See cells C67:C68 | G48: =IF(dms_RPT="financial",VALUE(LEFT(CRCP_y1,4)-1)&"-"&TEXT(VALUE(RIGHT(CRCP_y1,2)-1),"00"),VALUE(LEFT(CRCP_y1,4)-1)) -> 2011-12 | N48: Drop down selector box for CA & Reset RINs. | O48: For CA & Reset RINs only | W48: for DNSP only | AC48: For DNSPs only | AI48: Reason for interruption | AJ48: dms_Reason_Interruption_Detailed | AK48: dms_Reason_Interruption
B49: dms_Model_List | C49: DELETE NR 'CRY' IF NOT AN ANNUAL RIN (EB, CA , ARR) | E49: dms_RYE_Formula_Result | N49: dms_0203_ProjectType | O49: dms_020303_01_UOM | P49: dms_020501_01_UOM | Q49: dms_020501_02_UOM | R49: dms_020501_03_UOM | S49: dms_020501_04_UOM | T49: dms_020603_01_UOM | U49: dms_040102_01_UOM | V49: dms_040102_04_UOM | W49: dms_030601_01_UOM | X49: dms_030601_02_UOM | Y49: dms_030701_01_UOM | Z49: dms_030702_01_UOM | AA49: dms_030703_01_UOM | AC49: dms_030605_UOM | AD49: dms_03060703_UOM | AI49: Animal | AJ49: Animal impact | AK49: Animal
B50: ARR | C50: ANNUAL REPORTING STATEMENT | E50: =LEFT(dms_SingleYear_FinalYear_Result,2)&RIGHT(dms_SingleYear_FinalYear_Result,2) -> 2017 | F50: =LEFT(dms_SingleYear_FinalYear_Result,2)&RIGHT(dms_SingleYear_FinalYear_Result,2) | H50: Formula errors are OK | N50: New line on new route - single circuit | O50: Circuit line length in km | P50: 0's | Q50: 0's | R50: 0's | S50: 0's | T50: 0's | U50: 0's | V50: days | W50: minutes/customer | X50: minutes/customer | Y50: Customer / km | Z50: % | AA50: km | AC50: number | AD50: number | AJ50: Animal nesting/burrowing, etc and other | AK50: Asset failure
B51: CA | C51: CATEGORY ANALYSIS | E51: =LEFT(dms_SingleYear_FinalYear_Result,2)&RIGHT(dms_SingleYear_FinalYear_Result,2) -> 2017 | F51: =LEFT(dms_SingleYear_FinalYear_Result,2)&RIGHT(dms_SingleYear_FinalYear_Result,2) | H51: Formula errors are OK | N51: New line on new route - dual circuit | O51: Circuit line length in km | P51: 0's | Q51: 0's | R51: 0's | S51: 0's | T51: 0's | U51: 0's | V51: 0's | W51: minutes/customer | X51: minutes/customer | Y51: MWh/customer | Z51: Number of spans | AC51: number | AD51: number | AJ51: Other | AK51: Other
B52: CPI | C52: CPI | N52: New line on new route - other | O52: Circuit line length in km | P52: MVA added | Q52: MVA added | R52: MVA added | S52: MVA added | T52: 0's | U52: 0's | V52: $0s | W52: interruptions/customer | X52: interruptions/customer | Y52: kVA / customer | Z52: Number of spans | AC52: number | AD52: number | AI52: Asset failure | AJ52: LV | AK52: Overloads
B53: EB | C53: ECONOMIC BENCHMARKING | E53: =LEFT(dms_SingleYear_FinalYear_Result,2)&RIGHT(dms_SingleYear_FinalYear_Result,2) -> 2017 | F53: =LEFT(dms_SingleYear_FinalYear_Result,2)&RIGHT(dms_SingleYear_FinalYear_Result,2) | H53: Formula errors are OK | N53: Line rebuild over existing route - single circuit | O53: Circuit line length in km | P53: 0's | Q53: 0's | R53: 0's | S53: 0's | T53: 0's | U53: $0s | V53: 0's | W53: interruptions/customer | X53: interruptions/customer | Z53: Number of spans | AC53: number | AD53: number | AJ53: Distribution substation | AK53: Planned
B54: PTRM | C54: POST TAX REVENUE MODEL | E54: =LEFT(dms_MultiYear_FinalYear_Result,2)&RIGHT(dms_MultiYear_FinalYear_Result,2) -> 2022 | F54: =LEFT(dms_MultiYear_FinalYear_Result,2)&RIGHT(dms_MultiYear_FinalYear_Result,2) | N54: Line rebuild over existing route - dual circuit | O54: Number | P54: total spend $0s | Q54: total spend $0s | R54: total spend $0s | S54: total spend $0s | T54: (per cent) | Z54: Number of spans | AC54: number | AD54: (per cent) | AJ54: HV | AK54: Network business
B55: Reset | C55: REGULATORY REPORTING STATEMENT | E55: =LEFT(dms_MultiYear_FinalYear_Result,2)&RIGHT(dms_MultiYear_FinalYear_Result,2) -> 2022 | F55: =LEFT(dms_MultiYear_FinalYear_Result,2)&RIGHT(dms_MultiYear_FinalYear_Result,2) | H55: Formula errors are OK | N55: Reconductor - Single circuit | O55: Number | P55: net circuit km added | Q55: net circuit km added | R55: net circuit km added | S55: net circuit km added | Z55: Years | AC55: number | AJ55: Zone substation | AK55: Third party
B56: RFM | C56: ROLL FORWARD MODEL | E56: =LEFT(dms_CRCP_FinalYear_Result,2)&RIGHT(dms_CRCP_FinalYear_Result,2) -> 2017 | F56: =LEFT(dms_CRCP_FinalYear_Result,2)&RIGHT(dms_CRCP_FinalYear_Result,2) | N56: Reconductor - Dual circuit | O56: Number | P56: total spend $0s | Q56: total spend $0s | R56: total spend $0s | S56: total spend $0s | Z56: Years | AC56: number | AJ56: Subtransmission | AK56: Unknown
B57: WACC | C57: WEIGHTED AVERAGE COST OF CAPITAL | E57: =LEFT(dms_MultiYear_FinalYear_Result,2)&RIGHT(dms_MultiYear_FinalYear_Result,2) -> 2022 | F57: =LEFT(dms_MultiYear_FinalYear_Result,2)&RIGHT(dms_MultiYear_FinalYear_Result,2) | N57: Other | P57: net circuit km added | Q57: net circuit km added | R57: net circuit km added | S57: net circuit km added | Z57: Trees | AC57: number | AI57: Other | AJ57: insert description of 'other' | AK57: Vegetation
P58: total spend $0s | Q58: total spend $0s | R58: total spend $0s | S58: total spend $0s | Z58: Trees | AC58: number | AI58: Overloads | AJ58: - | AK58: Weather
B59: dms_DataQuality_List | P59: 0's | R59: $0s | Z59: Defects | AC59: number | AI59: Planned | AJ59: - | AK59: 2 - STPIS Exclusion (3.3)(a)
B60: Actual | P60: 0's | Z60: Defects | AC60: number | AI60: Network business | AJ60: Network error | AK60: 3 - STPIS Exclusion (3.3)(a)
B61: Estimate | P61: 0's | Z61: Spans | AC61: number | AJ61: Switching and protection error | AK61: 4 - STPIS Exclusion (3.3)(a)
B62: Consolidated | P62: $0s | Z62: km | AC62: (per cent) | AI62: Third party | AJ62: Fire | AK62: 5 - STPIS Exclusion (3.3)(a)
B63: Recast | Z63: Spans | AC63: (per cent) | AJ63: Other | AK63: 6 - STPIS Exclusion (3.3)(a)
B64: Public | AJ64: Dig-in | AK64: 7 - STPIS Exclusion (3.3)(a)
AJ65: Unauthorised access
B66: For all files either AER or business needs to be able to specify the type of submission | C66: For PTRM & RFM templates we must provide a choice in case they change their form of control - otherwise it is drawn from the business specific lookup table above. | O66: For PTRM files - this field set the text for the named range "DMS_Xfactor" which in all cases is simply the text "x factors" - this saves putting in each old gas PTRM file | W66: for TNSP only | AJ66: Vehicle impact
B67: dms_SourceList | C67: dms_FormControl_Choices | O67: DMS_Xfactor | W67: dms_030601_01_UOM | Y67: dms_030701_01_UOM | Z67: dms_030702_01_UOM | AI67: Unknown | AJ67: Unknown
B68: After appeal | C68: Revenue cap | O68: x factors | W68: % | Y68: Number of spans | Z68: km | AI68: Vegetation | AJ68: Blow-in/Fall-in - NSP responsibility
B69: Draft decision | C69: Revenue yield | W69: number | Y69: Years | Z69: % | AJ69: Grow-in - NSP responsibility
B70: Final decision | C70: Weighted average price cap | W70: number | Y70: Trees | Z70: km | AJ70: Blow-in/Fall-in - Other responsible party
B71: PTRM update 1 | W71: % | Y71: Defects | Z71: number | AJ71: Grow-in - Other responsible party
B72: PTRM update 2 | W72: number | Y72: Number of spans | AI72: Weather
B73: PTRM update 3 | W73: number | Y73: km | AI73: 2 - STPIS Exclusion (3.3)(a)
B74: PTRM update 4 | W74: % | Y74: km | AI74: 3 - STPIS Exclusion (3.3)(a)
B75: PTRM update 5 | W75: number | Y75: Number of spans | AI75: 4 - STPIS Exclusion (3.3)(a)
B76: PTRM update 6 | W76: number | AI76: 5 - STPIS Exclusion (3.3)(a)
B77: PTRM update 7 | W77: % | AI77: 6 - STPIS Exclusion (3.3)(a)
B78: Regulatory proposal | W78: number | AI78: 7 - STPIS Exclusion (3.3)(a)
B79: Reporting | W79: %
B80: Revised regulatory proposal | W80: number
W81: %
W82: number
B86: These are indeces and lookup values for various dates. All step from the value placed in FRCP_y1 on the business and other details worksheet | L86: These date tables are currently used in the Recast templates to provide column headings and conditional formatting
B87: dms_FRCPlength_Num_List | C87: dms_FinalYear_List | D87: dms_CRCPlength_Num_List | E87: dms_CFinalYear_List | F87: dms_FRCP_years | H87: dms_CRCP_years | J87: dms_CRCP_index | L87: CRY from input cell on business sheet | M87: CRY - financial | N87: dms_FinYears | O87: CRY calendar | P87: dms_CalYears
B88: 1 | C88: dms_FRCP_y1 | D88: 1 | E88: CRCP_y1 | F88: =FRCP_y1 -> 2017-18 | G88: dms_FRCP_y1 | H88: =IF(dms_RPT="financial",VALUE(LEFT(dms_FRCP_y1,4)-1)&"-"&TEXT(VALUE(MID(dms_FRCP_y1,3,2)),"00"),VALUE(LEFT(dms_FRCP_y1,4)-1)) -> 2016-17 | I88: dms_CRCP_yZ | J88: 1 | L88: =CRY -> 2016-17 | M88: =VALUE(LEFT(CRY,4))&"-"&TEXT(MID(CRY,3,2)+1,"00") -> 2016-17 | N88: dms_CRYf_y1 | O88: =VALUE(LEFT(CRY,4)+1) -> 2017 | P88: dms_CRYc_y1
B89: 2 | C89: dms_FRCP_y2 | D89: 2 | E89: CRCP_y2 | F89: =IF(dms_RPT="financial",VALUE(LEFT(dms_FRCP_y1,4)+1)&"-"&TEXT(VALUE(RIGHT(dms_FRCP_y1,2)+1),"00"),VALUE(LEFT(dms_FRCP_y1,4)+1)) -> 2018-19 | G89: dms_FRCP_y2 | H89: =IF(dms_RPT="financial",VALUE(LEFT(dms_CRCP_yZ,4)-1)&"-"&TEXT(VALUE(MID(dms_CRCP_yZ,3,2)),"00"),VALUE(LEFT(dms_CRCP_yZ,4)-1)) -> 2015-16 | I89: dms_CRCP_yY | J89: 2 | M89: =VALUE(LEFT(dms_CRYf_y1,4)+1)&"-"&TEXT(MID(dms_CRYf_y1,3,2)+2,"00") -> 2017-18 | N89: dms_CRYf_y2 | O89: =VALUE(LEFT(dms_CRYc_y1,4)+1) -> 2018 | P89: dms_CRYc_y2
B90: 3 | C90: dms_FRCP_y3 | D90: 3 | E90: CRCP_y3 | F90: =IF(dms_RPT="financial",VALUE(LEFT(dms_FRCP_y2,4)+1)&"-"&TEXT(VALUE(RIGHT(dms_FRCP_y2,2)+1),"00"),VALUE(LEFT(dms_FRCP_y2,4)+1)) -> 2019-20 | G90: dms_FRCP_y3 | H90: =IF(dms_RPT="financial",VALUE(LEFT(dms_CRCP_yY,4)-1)&"-"&TEXT(VALUE(MID(dms_CRCP_yY,3,2)),"00"),VALUE(LEFT(dms_CRCP_yY,4)-1)) -> 2014-15 | I90: dms_CRCP_yX | J90: 3 | M90: =VALUE(LEFT(dms_CRYf_y2,4)+1)&"-"&TEXT(MID(dms_CRYf_y2,3,2)+2,"00") -> 2018-19 | N90: dms_CRYf_y3 | O90: =VALUE(LEFT(dms_CRYc_y2,4)+1) -> 2019 | P90: dms_CRYc_y3
B91: 4 | C91: dms_FRCP_y4 | D91: 4 | E91: CRCP_y4 | F91: =IF(dms_RPT="financial",VALUE(LEFT(dms_FRCP_y3,4)+1)&"-"&TEXT(VALUE(RIGHT(dms_FRCP_y3,2)+1),"00"),VALUE(LEFT(dms_FRCP_y3,4)+1)) -> 2020-21 | G91: dms_FRCP_y4 | H91: =IF(dms_RPT="financial",VALUE(LEFT(dms_CRCP_yX,4)-1)&"-"&TEXT(VALUE(MID(dms_CRCP_yX,3,2)),"00"),VALUE(LEFT(dms_CRCP_yX,4)-1)) -> 2013-14 | I91: dms_CRCP_yW | J91: 4 | M91: =VALUE(LEFT(dms_CRYf_y3,4)+1)&"-"&TEXT(MID(dms_CRYf_y3,3,2)+2,"00") -> 2019-20 | N91: dms_CRYf_y4 | O91: =VALUE(LEFT(dms_CRYc_y3,4)+1) -> 2020 | P91: dms_CRYc_y4
B92: 5 | C92: dms_FRCP_y5 | D92: 5 | E92: CRCP_y5 | F92: =IF(dms_RPT="financial",VALUE(LEFT(dms_FRCP_y4,4)+1)&"-"&TEXT(VALUE(RIGHT(dms_FRCP_y4,2)+1),"00"),VALUE(LEFT(dms_FRCP_y4,4)+1)) -> 2021-22 | G92: dms_FRCP_y5 | H92: =IF(dms_RPT="financial",VALUE(LEFT(dms_CRCP_yW,4)-1)&"-"&TEXT(VALUE(MID(dms_CRCP_yW,3,2)),"00"),VALUE(LEFT(dms_CRCP_yW,4)-1)) -> 2012-13 | I92: dms_CRCP_yV | J92: 5 | M92: =VALUE(LEFT(dms_CRYf_y4,4)+1)&"-"&TEXT(MID(dms_CRYf_y4,3,2)+2,"00") -> 2020-21 | N92: dms_CRYf_y5 | O92: =VALUE(LEFT(dms_CRYc_y4,4)+1) -> 2021 | P92: dms_CRYc_y5
B93: 6 | C93: dms_FRCP_y6 | D93: 6 | E93: CRCP_y6 | F93: =IF(dms_RPT="financial",VALUE(LEFT(dms_FRCP_y5,4)+1)&"-"&TEXT(VALUE(RIGHT(dms_FRCP_y5,2)+1),"00"),VALUE(LEFT(dms_FRCP_y5,4)+1)) -> 2022-23 | G93: dms_FRCP_y6 | H93: =IF(dms_RPT="financial",VALUE(LEFT(dms_CRCP_yV,4)-1)&"-"&TEXT(VALUE(MID(dms_CRCP_yV,3,2)),"00"),VALUE(LEFT(dms_CRCP_yV,4)-1)) -> 2011-12 | I93: dms_CRCP_yU | J93: 6 | M93: =VALUE(LEFT(dms_CRYf_y5,4)+1)&"-"&TEXT(MID(dms_CRYf_y5,3,2)+2,"00") -> 2021-22 | N93: dms_CRYf_y6 | O93: =VALUE(LEFT(dms_CRYc_y5,4)+1) -> 2022 | P93: dms_CRYc_y6
B94: 7 | C94: dms_FRCP_y7 | D94: 7 | E94: CRCP_y7 | F94: =IF(dms_RPT="financial",VALUE(LEFT(dms_FRCP_y6,4)+1)&"-"&TEXT(VALUE(RIGHT(dms_FRCP_y6,2)+1),"00"),VALUE(LEFT(dms_FRCP_y6,4)+1)) -> 2023-24 | G94: dms_FRCP_y7 | H94: =IF(dms_RPT="financial",VALUE(LEFT(dms_CRCP_yU,4)-1)&"-"&TEXT(VALUE(MID(dms_CRCP_yU,3,2)),"00"),VALUE(LEFT(dms_CRCP_yU,4)-1)) -> 2010-11 | I94: dms_CRCP_yT | J94: 7 | M94: =VALUE(LEFT(dms_CRYf_y6,4)+1)&"-"&TEXT(MID(dms_CRYf_y6,3,2)+2,"00") -> 2022-23 | N94: dms_CRYf_y7 | O94: =VALUE(LEFT(dms_CRYc_y6,4)+1) -> 2023 | P94: dms_CRYc_y7
B95: 8 | C95: dms_FRCP_y8 | D95: 8 | E95: CRCP_y8 | F95: =IF(dms_RPT="financial",VALUE(LEFT(dms_FRCP_y7,4)+1)&"-"&TEXT(VALUE(RIGHT(dms_FRCP_y7,2)+1),"00"),VALUE(LEFT(dms_FRCP_y7,4)+1)) -> 2024-25 | G95: dms_FRCP_y8 | H95: =IF(dms_RPT="financial",VALUE(LEFT(dms_CRCP_yT,4)-1)&"-"&TEXT(VALUE(MID(dms_CRCP_yT,3,2)),"00"),VALUE(LEFT(dms_CRCP_yT,4)-1)) -> 2009-10 | I95: dms_CRCP_yS | J95: 8 | M95: =VALUE(LEFT(dms_CRYf_y7,4)+1)&"-"&TEXT(MID(dms_CRYf_y7,3,2)+2,"00") -> 2023-24 | N95: dms_CRYf_y8 | O95: =VALUE(LEFT(dms_CRYc_y7,4)+1) -> 2024 | P95: dms_CRYc_y8
B96: 9 | C96: dms_FRCP_y9 | D96: 9 | E96: CRCP_y9 | F96: =IF(dms_RPT="financial",VALUE(LEFT(dms_FRCP_y8,4)+1)&"-"&TEXT(VALUE(RIGHT(dms_FRCP_y8,2)+1),"00"),VALUE(LEFT(dms_FRCP_y8,4)+1)) -> 2025-26 | G96: dms_FRCP_y9 | H96: =IF(dms_RPT="financial",VALUE(LEFT(dms_CRCP_yS,4)-1)&"-"&TEXT(VALUE(MID(dms_CRCP_yS,3,2)),"00"),VALUE(LEFT(dms_CRCP_yS,4)-1)) -> 2008-09 | I96: dms_CRCP_yR | J96: 9 | M96: =VALUE(LEFT(dms_CRYf_y8,4)+1)&"-"&TEXT(MID(dms_CRYf_y8,3,2)+2,"00") -> 2024-25 | N96: dms_CRYf_y9 | O96: =VALUE(LEFT(dms_CRYc_y8,4)+1) -> 2025 | P96: dms_CRYc_y9
B97: 10 | C97: dms_FRCP_y10 | D97: 10 | E97: CRCP_y10 | F97: =IF(dms_RPT="financial",VALUE(LEFT(dms_FRCP_y9,4)+1)&"-"&TEXT(VALUE(RIGHT(dms_FRCP_y9,2)+1),"00"),VALUE(LEFT(dms_FRCP_y9,4)+1)) -> 2026-27 | G97: dms_FRCP_y10 | H97: =IF(dms_RPT="financial",VALUE(LEFT(dms_CRCP_yR,4)-1)&"-"&TEXT(VALUE(MID(dms_CRCP_yR,3,2)),"00"),VALUE(LEFT(dms_CRCP_yR,4)-1)) -> 2007-08 | I97: dms_CRCP_yQ | J97: 10 | M97: =VALUE(LEFT(dms_CRYf_y9,4)+1)&"-"&TEXT(MID(dms_CRYf_y9,3,2)+2,"00") -> 2025-26 | N97: dms_CRYf_y10 | O97: =VALUE(LEFT(dms_CRYc_y9,4)+1) -> 2026 | P97: dms_CRYc_y10
B98: 11 | C98: dms_FRCP_y11 | D98: 11 | E98: CRCP_y11 | F98: =IF(dms_RPT="financial",VALUE(LEFT(dms_FRCP_y10,4)+1)&"-"&TEXT(VALUE(RIGHT(dms_FRCP_y10,2)+1),"00"),VALUE(LEFT(dms_FRCP_y10,4)+1)) -> 2027-28 | G98: dms_FRCP_y11 | H98: =IF(dms_RPT="financial",VALUE(LEFT(dms_CRCP_yQ,4)-1)&"-"&TEXT(VALUE(MID(dms_CRCP_yQ,3,2)),"00"),VALUE(LEFT(dms_CRCP_yQ,4)-1)) -> 2006-07 | I98: dms_CRCP_yP | J98: 11 | M98: =VALUE(LEFT(dms_CRYf_y10,4)+1)&"-"&TEXT(MID(dms_CRYf_y10,3,2)+2,"00") -> 2026-27 | N98: dms_CRYf_y11 | O98: =VALUE(LEFT(dms_CRYc_y10,4)+1) -> 2027 | P98: dms_CRYc_y11
B99: 12 | C99: dms_FRCP_y12 | D99: 12 | E99: CRCP_y12 | F99: =IF(dms_RPT="financial",VALUE(LEFT(dms_FRCP_y11,4)+1)&"-"&TEXT(VALUE(RIGHT(dms_FRCP_y11,2)+1),"00"),VALUE(LEFT(dms_FRCP_y11,4)+1)) -> 2028-29 | G99: dms_FRCP_y12 | H99: =IF(dms_RPT="financial",VALUE(LEFT(dms_CRCP_yP,4)-1)&"-"&TEXT(VALUE(MID(dms_CRCP_yP,3,2)),"00"),VALUE(LEFT(dms_CRCP_yP,4)-1)) -> 2005-06 | I99: dms_CRCP_yO | J99: 12 | M99: =VALUE(LEFT(dms_CRYf_y11,4)+1)&"-"&TEXT(MID(dms_CRYf_y11,3,2)+2,"00") -> 2027-28 | N99: dms_CRYf_y12 | O99: =VALUE(LEFT(dms_CRYc_y11,4)+1) -> 2028 | P99: dms_CRYc_y12
B100: 13 | C100: dms_FRCP_y13 | D100: 13 | E100: CRCP_y13 | F100: =IF(dms_RPT="financial",VALUE(LEFT(dms_FRCP_y12,4)+1)&"-"&TEXT(VALUE(RIGHT(dms_FRCP_y12,2)+1),"00"),VALUE(LEFT(dms_FRCP_y12,4)+1)) -> 2029-30 | G100: dms_FRCP_y13 | H100: =IF(dms_RPT="financial",VALUE(LEFT(dms_CRCP_yO,4)-1)&"-"&TEXT(VALUE(MID(dms_CRCP_yO,3,2)),"00"),VALUE(LEFT(dms_CRCP_yO,4)-1)) -> 2004-05 | I100: dms_CRCP_yN | J100: 13 | M100: =VALUE(LEFT(dms_CRYf_y12,4)+1)&"-"&TEXT(MID(dms_CRYf_y12,3,2)+2,"00") -> 2028-29 | N100: dms_CRYf_y13 | O100: =VALUE(LEFT(dms_CRYc_y12,4)+1) -> 2029 | P100: dms_CRYc_y13
B101: 14 | C101: dms_FRCP_y14 | D101: 14 | E101: CRCP_y14 | F101: =IF(dms_RPT="financial",VALUE(LEFT(dms_FRCP_y13,4)+1)&"-"&TEXT(VALUE(RIGHT(dms_FRCP_y13,2)+1),"00"),VALUE(LEFT(dms_FRCP_y13,4)+1)) -> 2030-31 | G101: dms_FRCP_y14 | H101: =IF(dms_RPT="financial",VALUE(LEFT(dms_CRCP_yN,4)-1)&"-"&TEXT(VALUE(MID(dms_CRCP_yN,3,2)),"00"),VALUE(LEFT(dms_CRCP_yN,4)-1)) -> 2003-04 | I101: dms_CRCP_yM | J101: 14 | M101: =VALUE(LEFT(dms_CRYf_y13,4)+1)&"-"&TEXT(MID(dms_CRYf_y13,3,2)+2,"00") -> 2029-30 | N101: dms_CRYf_y14 | O101: =VALUE(LEFT(dms_CRYc_y13,4)+1) -> 2030 | P101: dms_CRYc_y14
B102: 15 | C102: dms_FRCP_y15 | D102: 15 | E102: CRCP_y15 | F102: =IF(dms_RPT="financial",VALUE(LEFT(dms_FRCP_y14,4)+1)&"-"&TEXT(VALUE(RIGHT(dms_FRCP_y14,2)+1),"00"),VALUE(LEFT(dms_FRCP_y14,4)+1)) -> 2031-32 | G102: dms_FRCP_y15 | H102: =IF(dms_RPT="financial",VALUE(LEFT(dms_CRCP_yM,4)-1)&"-"&TEXT(VALUE(MID(dms_CRCP_yM,3,2)),"00"),VALUE(LEFT(dms_CRCP_yM,4)-1)) -> 2002-03 | I102: dms_CRCP_yL | J102: 15 | M102: =VALUE(LEFT(dms_CRYf_y14,4)+1)&"-"&TEXT(MID(dms_CRYf_y14,3,2)+2,"00") -> 2030-31 | N102: dms_CRYf_y15 | O102: =VALUE(LEFT(dms_CRYc_y14,4)+1) -> 2031 | P102: dms_CRYc_y15
M103: =VALUE(LEFT(dms_CRYf_y15,4)+1)&"-"&TEXT(MID(dms_CRYf_y15,3,2)+2,"00") -> 2031-32 | N103: dms_CRYf_y16 | O103: =VALUE(LEFT(dms_CRYc_y15,4)+1) -> 2032 | P103: dms_CRYc_y16
B104: These are drop down lists for businesses to select the correct FRCP_y1 on the business and other details worksheet. This also populates the column headings in the worksheets | M104: =VALUE(LEFT(dms_CRYf_y16,4)+1)&"-"&TEXT(MID(dms_CRYf_y16,3,2)+2,"00") -> 2032-33 | N104: dms_CRYf_y17 | O104: =VALUE(LEFT(dms_CRYc_y16,4)+1) -> 2033 | P104: dms_CRYc_y17
B105: dms_RCP_fyear_list | C105: dms_CRY_ListF | D105: dms_CRY_ListC | E105: dms_RCP_cyear_list | F105: dms_FRCP_fyear_list | G105: dms_FRCP_ListF | H105: dms_FRCP_ListC | I105: dms_FRCP_cyear_list | M105: =VALUE(LEFT(dms_CRYf_y17,4)+1)&"-"&TEXT(MID(dms_CRYf_y17,3,2)+2,"00") -> 2033-34 | N105: dms_CRYf_y18 | O105: =VALUE(LEFT(dms_CRYc_y17,4)+1) -> 2034 | P105: dms_CRYc_y18
B106: dms_fy1 | C106: 2006-07 | D106: 2007 | E106: dms_cy1 | F106: dms_frcp_fy1 | G106: 2016-17 | H106: 2017 | I106: dms_crcp_cy1 | M106: =VALUE(LEFT(dms_CRYf_y18,4)+1)&"-"&TEXT(MID(dms_CRYf_y18,3,2)+2,"00") -> 2034-35 | N106: dms_CRYf_y19 | O106: =VALUE(LEFT(dms_CRYc_y18,4)+1) -> 2035 | P106: dms_CRYc_y19
B107: dms_fy2 | C107: 2007-08 | D107: 2008 | E107: dms_cy2 | F107: dms_frcp_fy2 | G107: 2017-18 | H107: 2018 | I107: dms_crcp_cy2 | M107: =VALUE(LEFT(dms_CRYf_y19,4)+1)&"-"&TEXT(MID(dms_CRYf_y19,3,2)+2,"00") -> 2035-36 | N107: dms_CRYf_y20 | O107: =VALUE(LEFT(dms_CRYc_y19,4)+1) -> 2036 | P107: dms_CRYc_y20
B108: dms_fy3 | C108: 2008-09 | D108: 2009 | E108: dms_cy3 | F108: dms_frcp_fy3 | G108: 2018-19 | H108: 2019 | I108: dms_crcp_cy3
B109: dms_fy4 | C109: 2009-10 | D109: 2010 | E109: dms_cy4 | F109: dms_frcp_fy4 | G109: 2019-20 | H109: 2020 | I109: dms_crcp_cy4
B110: dms_fy5 | C110: 2010-11 | D110: 2011 | E110: dms_cy5 | F110: dms_frcp_fy5 | G110: 2020-21 | H110: 2021 | I110: dms_crcp_cy5
B111: dms_fy6 | C111: 2011-12 | D111: 2012 | E111: dms_cy6 | F111: dms_frcp_fy6 | G111: 2021-22 | H111: 2022 | I111: dms_crcp_cy6
B112: dms_fy7 | C112: 2012-13 | D112: 2013 | E112: dms_cy7 | F112: dms_frcp_fy7 | G112: 2022-23 | H112: 2023 | I112: dms_crcp_cy7
B113: dms_fy8 | C113: 2013-14 | D113: 2014 | E113: dms_cy8 | F113: dms_frcp_fy8 | G113: 2023-24 | H113: 2024 | I113: dms_crcp_cy8
B114: dms_fy9 | C114: 2014-15 | D114: 2015 | E114: dms_cy9 | F114: dms_frcp_fy9 | G114: 2024-25 | H114: 2025 | I114: dms_crcp_cy9
B115: dms_fy10 | C115: 2015-16 | D115: 2016 | E115: dms_cy10 | F115: dms_frcp_fy10 | G115: 2025-26 | H115: 2026 | I115: dms_crcp_cy10
B116: dms_fy11 | C116: 2016-17 | D116: 2017 | E116: dms_cy11 | F116: dms_frcp_fy11 | G116: 2026-27 | H116: 2027 | I116: dms_crcp_cy11
B117: dms_fy12 | C117: 2017-18 | D117: 2018 | E117: dms_cy12 | F117: dms_frcp_fy12 | G117: 2027-28 | H117: 2028 | I117: dms_crcp_cy12
B118: dms_fy13 | C118: 2018-19 | D118: 2019 | E118: dms_cy13 | F118: dms_frcp_fy13 | G118: 2028-29 | H118: 2029 | I118: dms_crcp_cy13
B119: dms_fy14 | C119: 2019-20 | D119: 2020 | E119: dms_cy14 | F119: dms_frcp_fy14 | G119: 2029-30 | H119: 2030 | I119: dms_crcp_cy14
B120: dms_fy15 | C120: 2019-20 | D120: 2020 | E120: dms_cy15 | F120: dms_frcp_fy15 | G120: 2030-31 | H120: 2031 | I120: dms_crcp_cy15
B121: dms_fy16 | C121: 2020-21 | D121: 2021 | E121: dms_cy16
B122: dms_fy17 | C122: 2021-22 | D122: 2022 | E122: dms_cy17
B123: dms_fy18 | C123: 2022-23 | D123: 2023 | E123: dms_cy18
B124: dms_fy19 | C124: 2023-24 | D124: 2024 | E124: dms_cy19
B125: dms_fy20 | C125: 2024-25 | D125: 2025 | E125: dms_cy20

Sheet Instructions
B2: =CONCATENATE(dms_Segment," Network Service Provider") -> Distribution Network Service Provider
B3: =IF(dms_Model="Reset","Regulatory Proposal RIN Template","Annual Reporting RIN") -> Annual Reporting RIN
C4: =CONCATENATE("This template is to be used by ",dms_TradingName," to fulfil its reporting obligations to the AER.") -> This template is to be used by ActewAGL Distribution to fulfil its reporting obligations to the AER.
C5: INSTRUCTIONS
C6: Complete the Business & other details worksheet before entering data or values in any other worksheets. The Business & other details worksheet is linked to other worksheets within the workbook and automatically generates certain column headings and conditional formatting.
C8: Identifying CONFIDENTIAL INFORMATION: Please use the macro at the top of each worksheet to identify confidential information.
C9: -Do this by selecting the cell or cells that contain confidential information and then run the Mark selected cells as CONFIDENTIAL macro. This will format the cells a specific colour that is identified by the AER's database which in turn marks that information as confidential. -To reverse this, select the cell or cells and run the Return cells to NON-CONFIDENTIAL macro.
C11: UNITS OF MEASURE All amounts are to be unrounded and reported on a one for one basis: that is 1000 is to be entered as '1000'. Applicable units of measure may be identified in the table column headings or row descriptors.
C13: COLOUR CODING OF INPUT / NON-INPUT CELLS:
D14: Yellow = Input cell (mandatory)
D15: Darker yellow = input cell (mandatory)
D16: Orange = input cell (if data available)
D17: Grey = Not applicable/No inputs required
D18: PLEASE DO NOT ENTER TEXT into cells that are to contain numeric data.
C21: WORKSHEET NAVIGATION Many tables in the worksheets have been "grouped" to allow for easy navigation. To ungroup or group data use the outline symbols in the left margin (for Row groupings) or above the columns (for column groupings).
C23: RETURNING COMPLETED RESPONSES Please return two (2) files to the AER: 1. A confidential version which must contain a complete set of all responses with confidential information marked using the Mark selection CONFIDENTIAL macro and which has been completed using the locked template file provided by the AER. 2. A public version with confidential information either removed completely or aggregated in some form together with writtten consent to disclose the public version of the response. Use the drop down box on the Business and other details worksheet to identify the file as either confidential ('consolidated') or public.
C25: SUBMITTING AMENDED DATA TO THE AER If an NSP wishes to correct data previously submitted to the AER it should resubmit that data using the original completed submission as the starting point. Please make any necessary changes to the data. Data that is not being amended should be left unchanged. NSPs must identify the reason for the amendments in the Amendment Reason box on the Business and other details worksheet. NSPs may provide further details regarding any amendments in the Amendments worksheet. .
C26: NSP may use Amended Data macro to highlight cells that contain amended data. NB: if data is also CONFIDENTIAL, re-apply the Confidentiality macro after applying the Amended macro
C27: Please resubmit two (2) files - a confidential version and a public version of the amended submission to the AER

Sheet Contents
B3: =CONCATENATE(dms_Segment," Network Service Provider") -> Distribution Network Service Provider
B4: Annual Reporting RIN Template
B5: Table of Contents
C8: Instructions
C9: Business & other details
B12: CATEGORY ANALYSIS | C12: STPIS | D12: STATUTORY ACCOUNTS
B14: 2.11 Labour | C14: 6.2 STPIS Reliability | D14: 8.1 Income
C15: 6.6 STPIS Customer Service | D15: 8.2 Capex
C16: 6.7 STPIS Daily Performance
C17: 6.8 STPIS Exclusions | D17: 8.4 Opex
C18: 6.9 STPIS GSL
B22: NETWORK PERFORMANCE | C22: OTHER INFORMATION | D22: PRICING PROPOSAL
D23: Victorian Businesses Only
B24: 3.6 Quality of services | C24: 7.8 Avoided Cost Payments
B25: 3.6.8 Network-feeders | C25: 7.10 Juris Scheme | D25: 9.5 TUoS
B26: 3.6.9 Network-reliability | C26: 7.11 DMIS-DMIA
C27: 7.12 Safety and Bushfire
C28: 7.13 TARC
B29: PUBLIC LIGHTING
B31: 4.1 Public lighting tariffs

Sheet Business & other details
B1: =IF(dms_DataQuality="backcast",INDEX(dms_Worksheet_List,MATCH(dms_Model,dms_Model_List))&" BACKCAST",INDEX(dms_Worksheet_List,MATCH(dms_Model,dms_Model_List))) -> ANNUAL REPORTING STATEMENT
B2: =INDEX(dms_TradingNameFull_List,MATCH(dms_TradingName,dms_TradingName_List)) -> ActewAGL Distribution
B3: =IF(SUM(dms_SingleYear_Model)>0,CRY,CONCATENATE(FRCP_y1," to ",dms_MultiYear_FinalYear_Result)) -> 2016-17
B4: BUSINESS & OTHER DETAILS
B7: Instructions
B8: Complete the following business details regulatory template before entering data or values in any other regulatory template. This regulatory template is linked to other cells within the spreadsheet and automatically generates column headings and conditional formatting to distinguish business specific input and non-input cells.
B10: SUBMISSION PARTICULARS INPUT SHEETS
B12: ENTITY DETAILS
B14: Short name | C14: ActewAGL Distribution | F14: Select business name from drop down list first
B15: ACN / ABN | C15: =INDEX(dms_ABN_List,MATCH(dms_TradingName,dms_TradingName_List)) -> 76670568688
B18: Business address | C18: Address 1 | E18: =INDEX(dms_Addr1_List,MATCH(dms_TradingName,dms_TradingName_List)) -> 40 Bunda Street
D19: Address 2 | E19: =IF(ISBLANK(INDEX(dms_Addr2_List,MATCH(dms_TradingName,dms_TradingName_List))),"",INDEX(dms_Addr2_List,MATCH(dms_TradingName,dms_TradingName_List))) -> 
C20: Suburb | E20: =INDEX(dms_Suburb_List,MATCH(dms_TradingName,dms_TradingName_List)) -> CANBERRA
D21: State | E21: =INDEX(dms_State_List,MATCH(dms_TradingName,dms_TradingName_List)) -> ACT | F21: p/code | G21: =INDEX(dms_PostCode_List,MATCH(dms_TradingName,dms_TradingName_List)) -> 2600
B23: Postal address | C23: Address 1 | E23: =INDEX(dms_PAddr1_List,MATCH(dms_TradingName,dms_TradingName_List)) -> GPO BOX 366
D24: Address 2 | E24: =IF(ISBLANK(INDEX(dms_PAddr2_List,MATCH(dms_TradingName,dms_TradingName_List))),"",INDEX(dms_PAddr2_List,MATCH(dms_TradingName,dms_TradingName_List))) -> 
C25: Suburb | E25: =INDEX(dms_PSuburb_List,MATCH(dms_TradingName,dms_TradingName_List)) -> CANBERRA
D26: State | E26: =INDEX(dms_PState_List,MATCH(dms_TradingName,dms_TradingName_List)) -> ACT | F26: p/code | G26: =INDEX(dms_PPostCode_List,MATCH(dms_TradingName,dms_TradingName_List)) -> 2601
B29: Contact name/s | C29: =INDEX(dms_ContactName1_List,MATCH(dms_TradingName,dms_TradingName_List)) -> Robert Walker | F29: Peter Cunningham
B30: Contact phone/s | C30: =INDEX(dms_ContactPh1_List,MATCH(dms_TradingName,dms_TradingName_List)) -> 02 6248 3847 | F30: 02 6293 5108
B31: Contact email address/s | C31: =INDEX(dms_ContactEmail_List,MATCH(dms_TradingName,dms_TradingName_List)) -> robert.walker@actewagle.com.au | F31: Peter.Cunningham@actewagl.com.au
B33: REGULATORY CONTROL PERIODS
B35: Forthcoming regulatory control period | C35: 2017-18 | D35: =dms_FRCP_y2 -> 2018-19 | E35: =dms_FRCP_y3 -> 2019-20 | F35: =dms_FRCP_y4 -> 2020-21 | G35: =dms_FRCP_y5 -> 2021-22 | H35: =dms_FRCP_y6 -> 2022-23 | I35: =dms_FRCP_y7 -> 2023-24 | J35: =dms_FRCP_y8 -> 2024-25 | K35: =dms_FRCP_y9 -> 2025-26 | L35: =dms_FRCP_y10 -> 2026-27
B38: Current regulatory control period | C38: =dms_CRCP_FirstYear_Result -> 2012-13 | D38: =IF(dms_RPT="financial",VALUE(LEFT(CRCP_y1,4)+1)&"-"&TEXT(MID(CRCP_y1,3,2)+2,"00"),VALUE(LEFT(CRCP_y1,4)+1)) -> 2013-14 | E38: =IF(dms_RPT="financial",VALUE(LEFT(CRCP_y2,4)+1)&"-"&TEXT(VALUE(MID(CRCP_y2,3,2)+2),"00"),VALUE(LEFT(CRCP_y2,4)+1)) -> 2014-15 | F38: =IF(dms_RPT="financial",VALUE(LEFT(CRCP_y3,4)+1)&"-"&TEXT(VALUE(MID(CRCP_y3,3,2)+2),"00"),VALUE(LEFT(CRCP_y3,4)+1)) -> 2015-16 | G38: =IF(dms_RPT="financial",VALUE(LEFT(CRCP_y4,4)+1)&"-"&TEXT(VALUE(MID(CRCP_y4,3,2)+2),"00"),VALUE(LEFT(CRCP_y4,4)+1)) -> 2016-17 | H38: =IF(dms_RPT="financial",VALUE(LEFT(CRCP_y5,4)+1)&"-"&TEXT(VALUE(MID(CRCP_y5,3,2)+2),"00"),VALUE(LEFT(CRCP_y5,4)+1)) -> 2017-18 | I38: =IF(dms_RPT="financial",VALUE(LEFT(CRCP_y6,4)+1)&"-"&TEXT(VALUE(MID(CRCP_y6,3,2)+2),"00"),VALUE(LEFT(CRCP_y6,4)+1)) -> 2018-19 | J38: =IF(dms_RPT="financial",VALUE(LEFT(CRCP_y7,4)+1)&"-"&TEXT(VALUE(MID(CRCP_y7,3,2)+2),"00"),VALUE(LEFT(CRCP_y7,4)+1)) -> 2019-20 | K38: =IF(dms_RPT="financial",VALUE(LEFT(CRCP_y8,4)+1)&"-"&TEXT(VALUE(MID(CRCP_y8,3,2)+2),"00"),VALUE(LEFT(CRCP_y8,4)+1)) -> 2020-21 | L38: =IF(dms_RPT="financial",VALUE(LEFT(CRCP_y9,4)+1)&"-"&TEXT(VALUE(MID(CRCP_y9,3,2)+2),"00"),VALUE(LEFT(CRCP_y9,4)+1)) -> 2021-22
B41: Previous regulatory control period | C41: =IF(dms_RPT="financial",VALUE(LEFT(PRCP_y2,4)-1)&"-"&TEXT(VALUE(MID(PRCP_y2,3,2)),"00"),VALUE(LEFT(PRCP_y2,4)-1)) -> 2007-08 | D41: =IF(dms_RPT="financial",VALUE(LEFT(PRCP_y3,4)-1)&"-"&TEXT(VALUE(MID(PRCP_y3,3,2)),"00"),VALUE(LEFT(PRCP_y3,4)-1)) -> 2008-09 | E41: =IF(dms_RPT="financial",VALUE(LEFT(PRCP_y4,4)-1)&"-"&TEXT(VALUE(MID(PRCP_y4,3,2)),"00"),VALUE(LEFT(PRCP_y4,4)-1)) -> 2009-10 | F41: =IF(dms_RPT="financial",VALUE(LEFT(PRCP_y5,4)-1)&"-"&TEXT(VALUE(RIGHT(PRCP_y5,2)-1),"00"),VALUE(LEFT(PRCP_y5,4)-1)) -> 2010-11 | G41: =IF(dms_RPT="financial",VALUE(LEFT(CRCP_y1,4)-1)&"-"&TEXT(VALUE(RIGHT(CRCP_y1,2)-1),"00"),VALUE(LEFT(CRCP_y1,4)-1)) -> 2011-12
B44: Commencing regulatory year | C44: 2016-17 | D44: CRY
B46: Last completed regulatory year | C46: 2021-22 | D46: dms_FinalYear
B52: Source | C52: Reporting | E52: Please select the correct submission type from the dropdown list.
B53: Data quality (actual, estimate, public, consolidated) | C53: Consolidated
B54: Amended RIN submission - amendment reason | C54: 20180103 - 8.2 capex disaggregated to distinguish DNSP from TNSP (see d17/154032)
B55: Submission Date | C55: 2018-01-03 | D55: dms_SubmissionDate | E55: Please enter date this file submitted to AER (dd/mm/yyyy)
B56: EBSS - First application of scheme in forthcoming period? | C56: No
B57: Sector | C57: =INDEX(dms_Sector_List,MATCH(dms_TradingName,dms_TradingName_List)) -> Electricity | D57: dms_Sector | E57: =INDEX(dms_Sector_List,MATCH(dms_TradingName,dms_TradingName_List))
B58: Segment | C58: =INDEX(dms_Segment_List,MATCH(dms_TradingName,dms_TradingName_List)) -> Distribution | D58: dms_Segment | E58: =INDEX(dms_Segment_List,MATCH(dms_TradingName,dms_TradingName_List))
B59: Regulatory Year Ending | C59: =IF(dms_MultiYear_Flag=1,LEFT(dms_Specified_FinalYear,2)&RIGHT(dms_Specified_FinalYear,2),INDEX(dms_RYE_Formula_Result,MATCH(dms_Model,dms_Model_List))) -> 2017 | D59: dms_RYE | E59: =IF(dms_MultiYear_Flag=1,LEFT(dms_Specified_FinalYear,2)&RIGHT(dms_Specified_FinalYear,2),INDEX(dms_RYE_Formula_Result,MATCH(dms_Model,dms_Model_List)))
B60: Reporting Period Type | C60: =INDEX(dms_RPT_List,MATCH(dms_TradingName,dms_TradingName_List)) -> Financial | D60: dms_RPT | E60: =INDEX(dms_RPT_List,MATCH(dms_TradingName,dms_TradingName_List))
B61: Model or RIN Type | C61: ARR | D61: dms_Model | E61: Drop down selection
B62: Security Classification | C62: Public | D62: dms_Classification | E62: Always Public
B63: Template - version no. | C63: 5 | D63: dms_TemplateNumber
B64: Dollar $ real month | C64: =INDEX(dms_RPTMonth_List,MATCH(dms_TradingName,dms_TradingName_List)) -> June | D64: dms_RPTMonth | E64: =INDEX(dms_RPTMonth_List,MATCH(dms_TradingName,dms_TradingName_List))
B65: Dollar $ real (the last month before the FRCP_y1) | C65: =CONCATENATE(dms_RPTMonth)&" "&VALUE((LEFT(dms_CRCP_FinalYear_Result,2)&RIGHT(dms_CRCP_FinalYear_Result,2))) -> June 2017 | D65: dms_DollarReal | E65: =IF(SUM(dms_SingleYear_Model)>0,CONCATENATE(dms_RPTMonth)&" "&VALUE((LEFT(CRY,2))&RIGHT(CRY,2)),CONCATENATE(dms_RPTMonth)&" "&VALUE((LEFT(dms_CRCP_FinalYear_Result,2)&RIGHT(dms_CRCP_FinalYear_Result,2))))
B66: Form of control | C66: =INDEX(dms_FormControl_List,MATCH(dms_TradingName,dms_TradingName_List)) -> Revenue cap | D66: dms_FormControl | E66: =INDEX(dms_FormControl_List,MATCH(dms_TradingName,dms_TradingName_List))
B67: RIN response - version no. | C67: 1 | D67: dms_RINversion
B68: Jurisdiction | C68: =INDEX(dms_JurisdictionList,MATCH(dms_TradingName,dms_TradingName_List)) -> ACT | D68: dms_Jurisdiction | E68: =INDEX(dms_JurisdictionList,MATCH(dms_TradingName,dms_TradingName_List))
B69: Backcast Multiyear EB, CA or ARR? | C69: 0 | D69: dms_MultiYear_Flag | E69: 1=y, 0-n
C70: 2013 | D70: dms_Specified_FinalYear | E70: The result here is returned to dms_CRCP_FinalYear_Result if dms_MultiYear_Flag is set to 1
B71: Single Year Model T/F | C71: =IF(dms_Model="EB",1,0) -> 0 | D71: dms_EB
C72: =IF(dms_Model="CA",1,0) -> 0 | D72: dms_CA | E72: =dms_SingleYear_Model
C73: =IF(dms_Model="ARR",1,0) -> 1 | D73: dms_ARR
B74: Single Year Final Year Reference | C74: CRY | D74: dms_SingleYear_FinalYear_Ref | E74: This is the reference for EB, CA & ARR RINs
B75: Single Year Final Year Result | C75: =INDIRECT(dms_SingleYear_FinalYear_Ref) -> 2016-17 | D75: dms_SingleYear_FinalYear_Result | E75: =INDIRECT(dms_SingleYear_FinalYear_Ref) | I75: Formula errors OK
B76: FRCP length in years | C76: =INDEX(dms_FRCPlength_List,MATCH(dms_TradingName,dms_TradingName_List)) -> 5 | D76: dms_FRCPlength_Num | E76: =INDEX(dms_FRCPlength_List,MATCH(dms_TradingName,dms_TradingName_List))
B77: Multi Year Final Year Reference | C77: =INDEX(dms_FinalYear_List,MATCH(dms_FRCPlength_Num,dms_FRCPlength_Num_List)) -> dms_FRCP_y5 | D77: dms_MultiYear_FinalYear_Ref | E77: =INDEX(dms_FinalYear_List,MATCH(dms_FRCPlength_Num,dms_FRCPlength_Num_List))
B78: Multi Year Final Year Result | C78: =IF(dms_MultiYear_Flag=0,INDIRECT(dms_MultiYear_FinalYear_Ref),dms_Specified_FinalYear) -> 2021-22 | D78: dms_MultiYear_FinalYear_Result | E78: =IF(dms_MultiYear_Flag=0,INDIRECT(dms_MultiYear_FinalYear_Ref),dms_Specified_FinalYear) | I78: Formula errors OK
B79: CRCP length in years | C79: =INDEX(dms_CRCPlength_List,MATCH(dms_TradingName,dms_TradingName_List)) -> 5 | D79: dms_CRCPlength_Num | E79: =INDEX(dms_CRCPlength_List,MATCH(dms_TradingName,dms_TradingName_List))
B80: CRCP Final Year Reference | C80: =INDEX(dms_CFinalYear_List,MATCH(dms_CRCPlength_Num,dms_CRCPlength_Num_List)) -> CRCP_y5 | D80: dms_CRCP_FinalYear_Ref | E80: =INDEX(dms_CFinalYear_List,MATCH(dms_CRCPlength_Num,dms_CRCPlength_Num_List))
B81: CRCP First Year Result | C81: =INDEX(dms_CRCP_years,MATCH(dms_CRCPlength_Num,dms_CRCP_index)) -> 2012-13 | D81: dms_CRCP_FirstYear_Result | E81: =INDEX(dms_CRCP_years,MATCH(dms_CRCPlength_Num,dms_CRCP_index))
B82: CRCP Final Year Result | C82: =IF(dms_MultiYear_Flag=0,(IF(SUM(dms_SingleYear_Model)>0,CRY,dms_CRCP_yZ)),dms_Specified_FinalYear) -> 2016-17 | D82: dms_CRCP_FinalYear_Result | E82: =IF(dms_MultiYear_Flag=0,(IF(SUM(dms_SingleYear_Model)>0,CRY,dms_CRCP_yZ)),dms_Specified_FinalYear)
B83: Table 6.6.3 - Public lighting repair - no. business days | C83: =INDEX(dms_663_List,MATCH(dms_TradingName,dms_TradingName_List)) -> 5 | D83: dms_663
B84: Distribution Determination Reference | C84: =INDEX(dms_DeterminationRef_List,MATCH(dms_TradingName,dms_TradingName_List)) -> 2014-19 Distribution Determination | D84: dms_DeterminationRef
B85: Backcast templates only - unit of measure | C85: $0s | D85: dms_Backcast_UOM | E85: If the cover sheet is for Backcast data ensure to apply dms_Backcast_UOM named range to this field. Otherwise, do not apply this named range.
B86: EB/CA Unit of Measure for Monetary Values | C86: $0s | D86: dms_dollar_nom_UOM | E86: If the cover sheet is attached to an EB files make sure this field is set
B88: discard this record? | C88: NO | D88: dms_DISCARD | E88: If record is to be discarded from DB set this flag to YES
B89: CBD Feeder for this business | C89: =INDEX(dms_CBD_flag,MATCH(dms_TradingName,dms_TradingName_List)) -> NO | D89: dms_CBD_flag_NSP
B90: Urban Feeder for this business | C90: =INDEX(dms_Urban_flag,MATCH(dms_TradingName,dms_TradingName_List)) -> YES | D90: dms_Urban_flag_NSP
B91: Short rural Feeder for this business | C91: =INDEX(dms_ShortRural_flag,MATCH(dms_TradingName,dms_TradingName_List)) -> YES | D91: dms_ShortRural_flag_NSP
B92: Long rural Feeder for this business | C92: =INDEX(dms_LongRural_flag,MATCH(dms_TradingName,dms_TradingName_List)) -> NO | D92: dms_LongRural_flag_NSP
B95: USES NAMED RANGES FLAG | C95: yes | D95: dms_Defined_Names_Used

Sheet 2.11 Labour
B1: =(LOOKUP(dms_Model,dms_Model_List,dms_Worksheet_List)) -> ANNUAL REPORTING STATEMENT
B2: =dms_TradingName -> ActewAGL Distribution
B3: =CONCATENATE("Annual Reporting RIN Response ",CRY) -> Annual Reporting RIN Response 2016-17
B4: 2.11 LABOUR
B6: Tables 2.11.1 and 2.11.2 deliberately omitted.
B8: 2.11.3 - LABOUR / NON-LABOUR EXPENDITURE SPLIT
B9: 2.11.3.1 - Opex
C10: =CRY -> 2016-17
C11: $0's, nominal
C12: Opex
B13: In-house labour expenditure | C13: 32868317
B14: Labour expenditure outsourced to related parties | C14: -
B15: Labour expenditure outsourced to unrelated parties | C15: 825163
B16: Controllable non-labour expenditure | C16: 13216116
B17: Uncontrollable non-labour expenditure
B18: Total | C18: 46909596
B20: Reconciliation with Opex worksheets - SCS | C20: Opex
B21: Total including margins | C21: =dms_Total_Actual_Opex -> 46909595.65 | D21: =IF(ROUND(C18,0)=ROUND(dms_Total_Actual_Opex,0),"OK","Error") -> OK
B24: 2.11.3.2 - Capex
C25: =CRY -> 2016-17
C26: $0's, nominal
C27: Capex
B28: In-house labour expenditure | C28: 14206777
B29: Labour expenditure outsourced to related parties | C29: 1037529
B30: Labour expenditure outsourced to unrelated parties | C30: 701505
B31: Controllable non-labour expenditure | C31: 37933865
B32: Uncontrollable non-labour expenditure
B33: Total | C33: 53879676
B35: Reconciliation with Capex & Opex worksheets - SCS | C35: Capex
B36: Total including margins | C36: 53879676 | D36: OK | F36: ActewAGL have overwritten the formula in the original template
C38: =dms_Total_Actual_Capex -> 53879676 | D38: =IF(ROUND(C33,0)=ROUND(dms_Total_Actual_Capex,0),"OK","Error") -> OK | F38: The values are corrrect witht the formulas - so not sure why changed?

Sheet 3.6 Quality of services
B1: =(LOOKUP(dms_Model,dms_Model_List,dms_Worksheet_List)) -> ANNUAL REPORTING STATEMENT
B2: =dms_TradingName -> ActewAGL Distribution
B3: =CONCATENATE("Annual Reporting RIN Response ",CRY) -> Annual Reporting RIN Response 2016-17
B4: 3.6 QUALITY OF SERVICES
B6: 3.6.5 - QUALITY OF SUPPLY METRICS
D7: Volume
C8: Units | D8: =CRY -> 2016-17
B9: Over voltage events - due to high voltage injection | C9: number
B10: Customers receiving over-voltage - due to high voltage injection | C10: number
B11: Over voltage events - due to lightning | C11: number
B12: Customers receiving over-voltage - due to lightning | C12: number
B13: Over voltage events - due to voltage regulation or other cause | C13: number
B14: Customers receiving over-voltage - due to voltage regulation or other cause | C14: number
B15: Voltage variations - steady state (zone sub) | C15: number
B16: Voltage variations - one minute (zone sub) | C16: number
B17: Voltage variations - 10 seconds (zone sub) Min<0.7 | C17: number
B18: Voltage variations - 10 seconds (zone sub) Min<0.8 | C18: number
B19: Voltage variations - 10 seconds (zone sub) Min<0.9 | C19: number
B20: Voltage variations - steady state (feeder) | C20: number
B21: Voltage variations - % zone subs monitored | C21: (per cent)
B22: Voltage variations - % feeders monitored | C22: (per cent)
B24: 3.6.6 - COMPLAINTS - TECHNICAL QUALITY OF SUPPLY
D25: Volume
C26: Units | D26: =CRY -> 2016-17
B27: 3.6.6.1 - TECHNICAL QUALITY OF SUPPLY
B28: Number of complaints - technical quality of supply | C28: number | D28: 67
B29: 3.6.6.2 - PERCENTAGE OF COMPLAINTS BY CATEGORY
B30: Low voltage supply | C30: (per cent)
B31: Voltage dips | C31: (per cent)
B32: Voltage swell | C32: (per cent)
B33: Voltage spike (impulsive transient) | C33: (per cent)
B34: Waveform distortion | C34: (per cent)
B35: TV or radio interference | C35: (per cent)
B36: Solar related | C36: (per cent)
B37: Noise from appliances | C37: (per cent)
B38: Other | C38: (per cent)
B39: 3.6.6.3 - PERCENTAGE OF COMPLAINTS BY LIKELY CAUSE
B40: Network equipment faulty | C40: (per cent)
B41: Network interference by NSP equipment | C41: (per cent)
B42: Network interference by another customer | C42: (per cent)
B43: Network limitation | C43: (per cent)
B44: Customer internal problem | C44: (per cent)
B45: No problem identified | C45: (per cent)
B46: Environmental | C46: (per cent)
B47: Other | C47: (per cent)
B51: 3.6.7 - CUSTOMER SERVICE METRICS
D52: Volume
C53: Unit | D53: =CRY -> 2016-17
B54: 3.6.7.1 - TIMELY PROVISIONS OF SERVICES
B55: Number of connections made | C55: number
B56: Number of connections not made on or before agreed date | C56: number
B57: 3.6.7.2 - TIMELY REPAIR OF FAULTY STREET LIGHTS
B58: Street lights - average monthly number "out" | C58: number
B59: Street lights - not repaired by "fix by" date | C59: number
B60: Street lights - average number of days to repair | C60: number
B61: Total number of street lights | C61: number
B62: 3.6.7.3 - CALL CENTRE PERFORMANCE
B63: Calls to call centre fault line | C63: number | D63: 29589
B64: Calls to fault line answered within 30 seconds | C64: number | D64: 19663
B65: Calls to fault line - average waiting time before call answered | C65: number | D65: 71
B66: Call centre - number of overload events | C66: number | D66: 1
B67: Percentage of calls abandoned | C67: (per cent) | D67: 0.131
B68: 3.6.7.4 - NUMBER OF CUSTOMER COMPLAINTS
B69: Complaint - reliability of supply | C69: number
B70: Complaint - technical quality of supply | C70: number | D70: =IF(ISBLANK(D28),"",D28) -> 67
B71: Complaint - administrative process or customer service | C71: number
B72: Complaint - connection or augmentation | C72: number
B73: Complaint - other | C73: number
B74: Total number of complaints | C74: number

Sheet 3.6.8 Network-feeders
B1: =(LOOKUP(dms_Model,dms_Model_List,dms_Worksheet_List)) -> ANNUAL REPORTING STATEMENT
B2: =dms_TradingName -> ActewAGL Distribution
B3: =CONCATENATE("Annual Reporting RIN Response ",CRY) -> Annual Reporting RIN Response 2016-17
B4: 3.6 QUALITY OF SERVICES
B6: Did the MAIFI parameter of the STPIS apply during the period? | F6: No | G6: ** IMPORTANT Please ensure this question is answered correctly. Your response will affect other tables throughout this workbook and will determine which cells are grey and which are input cells.
B10: 3.6.8 - NETWORK FEEDER RELIABILITY
B11: Feeder ID / name | C11: Description of the service area for the feeder | D11: Feeder classification (drop down) | E11: Number of distribution customers | F11: Length of high voltage distribution lines | H11: Maximum demand (MVA) | I11: Energy not supplied (MWh) | K11: Unplanned Outages | P11: Planned Outages | U11: Momentary feeder outages
F12: Overhead | G12: Underground | I12: Unplanned | J12: Planned | K12: Total number of unplanned outages | L12: Unplanned customer minutes off-supply (SAIDI) | N12: Unplanned interruptions (SAIFI) | P12: Total number of planned outages | Q12: Planned customer minutes off-supply (SAIDI) | S12: Planned interruptions (SAIFI) | U12: Total number of momentary feeder outages | V12: Momentary interruptions due to feeder outages (MAIFI)
L13: Including excluded events and MEDs | M13: After removing excluded events and MED | N13: Including excluded events and MEDs | O13: After removing excluded events and MED | Q13: Including MEDs | R13: After removing MED | S13: Including MEDs | T13: After removing MED | V13: Including excluded events and MEDs | W13: After removing excluded events and MED
B14: Abattoir | C14: FYSHWK_8HB_ABATTOIR | D14: Rural short | E14: 434 | F14: 20370.10258 | G14: 5387.737792 | H14: 6.977403717 | I14: 0.00706 | J14: 713.13 | K14: 9 | L14: 0.04144914444 | M14: 0.04144914444 | N14: 0.0001207970505 | O14: 0.0001207970505 | P14: 16 | Q14: 0.6323147866 | R14: 0.6323147866 | S14: 0.002993666033 | T14: 0.002993666033
B15: Aero Park | C15: CITYEA_8+UB_AEROPARK | D15: Urban | E15: 132 | F15: 0 | G15: 12273.32809 | H15: 4.976526286 | I15: 0 | J15: 0 | K15: 0 | L15: 0 | M15: 0 | N15: 0 | O15: 0 | P15: 0 | Q15: 0 | R15: 0 | S15: 0 | T15: 0
B16: Aikman | C16: BELCON_8KB_AIKMAN | D16: Urban | E16: 361 | F16: 0 | G16: 4132.333738 | H16: 2.915026682 | I16: 0 | J16: 0 | K16: 0 | L16: 0 | M16: 0 | N16: 0 | O16: 0 | P16: 0 | Q16: 0 | R16: 0 | S16: 0 | T16: 0
B17: Ainslie | C17: CITYEA_8+EB_AINSLIE | D17: Urban | E17: 104 | F17: 0 | G17: 2666.581038 | H17: 1.96050732 | I17: 0 | J17: 456.96 | K17: 0 | L17: 0 | M17: 0 | N17: 0 | O17: 0 | P17: 4 | Q17: 0.4303578744 | R17: 0.4303578744 | S17: 0.001617630067 | T17: 0.001617630067
B18: Airport | C18: FYSHWK_8PB_AIRPORT | D18: Urban | E18: 59 | F18: 0 | G18: 5369.45282 | H18: 4.251453389 | I18: 0.00425 | J18: 0 | K18: 2 | L18: 0.02131490215 | M18: 0.02131490215 | N18: 0.0003623911514 | O18: 0.0003623911514 | P18: 0 | Q18: 0 | R18: 0 | S18: 0 | T18: 0
B19: Akuna | C19: CITYEA_8NB_AKUNA | D19: Urban | E19: 395 | F19: 0 | G19: 3089.398525 | H19: 2.00623349 | I19: 0 | J19: 1.37 | K19: 2 | L19: 0 | M19: 0 | N19: 0 | O19: 0 | P19: 2 | Q19: 0.0009716284493 | R19: 0.0009716284493 | S19: 1.575613702e-05 | T19: 1.575613702e-05
B20: Alderson | C20: GILMRE_8FB_ALDERSON | D20: Urban | E20: 177 | F20: 12266.67316 | G20: 3459.846628 | H20: 4.343983425 | I20: 0.06052 | J20: 83.61 | K20: 6 | L20: 0.01922625112 | M20: 0.01922625112 | N20: 0.0002573502379 | O20: 0.0002573502379 | P20: 5 | Q20: 0.02676967679 | R20: 0.02676967679 | S20: 0.0001102929591 | T20: 0.0001102929591
B21: Allara | C21: CITYEA_8UB_ALLARA | D21: Urban | E21: 22 | F21: 0 | G21: 4348.680024 | H21: 4.20680128 | I21: 0 | J21: 0 | K21: 0 | L21: 0 | M21: 0 | N21: 0 | O21: 0 | P21: 2 | Q21: 0.04517284482 | R21: 0.04517284482 | S21: 0.0001050409134 | T21: 0.0001050409134
B22: Angle Crossing ZS Tie | C22: TENNENT_8EB_ANGLCTIE | D22: Urban | E22: 0 | F22: 0 | G22: 0 | H22: 0 | I22: 0 | J22: 0 | K22: 0 | L22: 0 | M22: 0 | N22: 0 | O22: 0 | P22: 0 | Q22: 0 | R22: 0 | S22: 0 | T22: 0
B23: Anthony Rolfe | C23: GOLDCR_8NB_ANTHNYRLF | D23: Urban | E23: 2828 | F23: 2366.357315 | G23: 17625.75274 | H23: 7.001290351 | I23: 3.42288 | J23: 344.4 | K23: 40 | L23: 1.348258422 | M23: 1.269440447 | N23: 0.01660696841 | O23: 0.01564059201 | P23: 13 | Q23: 0.6580130461 | R23: 0.6580130461 | S23: 0.001969517127 | T23: 0.001969517127
B24: ANU Backup-Belmore | C24: TELOPK_8+FB_ANUBELM | D24: Urban | E24: 682 | F24: 253.3162598 | G24: 5218.280633 | H24: 15.6040434 | I24: 6.06134 | J24: 600.19 | K24: 11 | L24: 0.8030633431 | M24: 0.8030633431 | N24: 0.01459018288 | O24: 0.01459018288 | P24: 7 | Q24: 0.1751609752 | R24: 0.1751609752 | S24: 0.0008613354902 | T24: 0.0008613354902
B25: ANU No 1,2,3,4,5 | C25: CIVIC_8QB_ANUNO12345 | D25: Urban | E25: 1 | F25: 603.8715852 | G25: 22552.92372 | H25: 19.92897659 | I25: 0 | J25: 0 | K25: 0 | L25: 0 | M25: 0 | N25: 0 | O25: 0 | P25: 0 | Q25: 0 | R25: 0 | S25: 0 | T25: 0
B26: Ashley | C26: WANNIA_8NB_ASHLEY | D26: Urban | E26: 765 | F26: 265.0483155 | G26: 11468.27579 | H26: 2.189131631 | I26: 0.00018 | J26: 0 | K26: 11 | L26: 0.01252087688 | M26: 0.01156500457 | N26: 4.201636537e-05 | O26: 3.151227403e-05 | P26: 1 | Q26: 0.003545130828 | R26: 0.003545130828 | S26: 0.0001313011418 | T26: 0.0001313011418
B27: Athllon | C27: WANNIA_8+FB_ATHLLON | D27: Urban | E27: 1450 | F27: 6140.850205 | G27: 9123.518019 | H27: 4.205852373 | I27: 0.21888 | J27: 2337.39 | K27: 22 | L27: 0.1731021733 | M27: 0.1592945452 | N27: 0.0008350752618 | O27: 0.0008298232161 | P27: 17 | Q27: 0.8609888552 | R27: 0.8609888552 | S27: 0.004012562893 | T27: 0.004012562893
B28: Baldwin-Joy Cummins | C28: BELCON_8PB_BLDWNJOYC | D28: Urban | E28: 1662 | F28: 5874.759645 | G28: 13759.62468 | H28: 5.12131306 | I28: 3.55881 | J28: 366.71 | K28: 27 | L28: 0.2794823584 | M28: 0.2775548576 | N28: 0.008765664226 | O28: 0.008760412181 | P28: 6 | Q28: 0.0511496728 | R28: 0.0511496728 | S28: 0.0006827659373 | T28: 0.0006827659373
B29: Banyule | C29: THEDRE_8HB_BANYULE | D29: Urban | E29: 1393 | F29: 532.975237 | G29: 12752.49832 | H29: 2.976007895 | I29: 0.01304 | J29: 45.53 | K29: 10 | L29: 0.01035703406 | M29: 0.01035703406 | N29: 4.201636537e-05 | O29: 4.201636537e-05 | P29: 1 | Q29: 0.008508313988 | R29: 0.008508313988 | S29: 9.453682209e-05 | T29: 9.453682209e-05
B30: Barrier | C30: FYSHWK_8KB_BARRIER | D30: Urban | E30: 0 | F30: 0 | G30: 0 | H30: 2.594943636 | I30: 0 | J30: 0 | K30: 0 | L30: 0 | M30: 0 | N30: 0 | O30: 0 | P30: 0 | Q30: 0 | R30: 0 | S30: 0 | T30: 0
B31: Barrington | C31: GOLDCR_8+UB_BARRNGTN | D31: Urban | E31: 1452 | F31: 0 | G31: 12486.99596 | H31: 5.410272605 | I31: 0 | J31: 0 | K31: 8 | L31: 0.003797229021 | M31: 0.003797229021 | N31: 7.878068508e-05 | O31: 7.878068508e-05 | P31: 0 | Q31: 0 | R31: 0 | S31: 0 | T31: 0
B32: Battye | C32: BELCON_8XB_BATTYE | D32: Urban | E32: 463 | F32: 476.5555908 | G32: 7215.54718 | H32: 3.162724775 | I32: 0 | J32: 7.68 | K32: 1 | L32: 0 | M32: 0 | N32: 0 | O32: 0 | P32: 1 | Q32: 0.006806651191 | R32: 0.006806651191 | S32: 1.050409134e-05 | T32: 1.050409134e-05
B33: Beggs | C33: GILMRE_8LB_BEGGS | D33: Urban | E33: 498 | F33: 927.2252897 | G33: 6563.398428 | H33: 4.591666691 | I33: 0.01753 | J33: 0 | K33: 5 | L33: 0.1191837971 | M33: 0.1191837971 | N33: 0.002710055567 | O33: 0.002710055567 | P33: 0 | Q33: 0 | R33: 0 | S33: 0 | T33: 0
B34: Belconnen Way North | C34: CIVIC_8+QB_BELCWAYNT | D34: Urban | E34: 1181 | F34: 8415.539612 | G34: 4618.316304 | H34: 4.401141102 | I34: 6.06097 | J34: 1118.4 | K34: 29 | L34: 2.237565782 | M34: 1.055338004 | N34: 0.03114988288 | O34: 0.02464785034 | P34: 12 | Q34: 0.7084484407 | R34: 0.7084484407 | S34: 0.002825600571 | T34: 0.002825600571
B35: Belconnen Way South | C35: CIVIC_8FB_BELCWAYSTH | D35: Urban | E35: 1625 | F35: 7340.380873 | G35: 9658.703676 | H35: 4.991770427 | I35: 1.77051 | J35: 418.3 | K35: 17 | L35: 0.590041071 | M35: 0.590041071 | N35: 0.009201584017 | O35: 0.009201584017 | P35: 10 | Q35: 0.3775380511 | R35: 0.3775380511 | S35: 0.00230564805 | T35: 0.00230564805
B36: Benjamin-Laurie | C36: BELCON_8FB_BNJMNLAUR | D36: Urban | E36: 1594 | F36: 2102.592929 | G36: 15284.14913 | H36: 4.869830387 | I36: 0.80965 | J36: 350.1 | K36: 15 | L36: 0.4305044064 | M36: 0.2625544899 | N36: 0.0087971765 | O36: 0.008487305806 | P36: 4 | Q36: 0.1379397275 | R36: 0.1379397275 | S36: 0.0008298232161 | T36: 0.0008298232161
B37: Binara | C37: CITYEA_8+PB_BINARA | D37: Urban | E37: 241 | F37: 0 | G37: 5041.383113 | H37: 3.768594169 | I37: 0 | J37: 5.52 | K37: 1 | L37: 0 | M37: 0 | N37: 0 | O37: 0 | P37: 2 | Q37: 0.002956901713 | R37: 0.002956901713 | S37: 1.050409134e-05 | T37: 1.050409134e-05
B38: Birrigai | C38: GOLDCR_8+MB_BIRRIGAI | D38: Rural short | E38: 1845 | F38: 0 | G38: 12838.16324 | H38: 5.701149733 | I38: 3.02648 | J38: 1494.63 | K38: 14 | L38: 0.8358943183 | M38: 0.8358943183 | N38: 0.02544090923 | O38: 0.02544090923 | P38: 11 | Q38: 0.126897389 | R38: 0.126897389 | S38: 0.001433808468 | T38: 0.001433808468
B39: Bissenberger-Hawkesbury | C39: WANNIA_8KB_BISSHAWK | D39: Urban | E39: 2485 | F39: 11734.31785 | G39: 16347.83038 | H39: 7.007523948 | I39: 1.88531 | J39: 1798.8 | K39: 23 | L39: 0.08340196006 | M39: 0.08263043455 | N39: 0.001381288012 | O39: 0.001376035966 | P39: 31 | Q39: 1.24883142 | R39: 1.24883142 | S39: 0.00550939591 | T39: 0.00550939591
B40: Blackall | C40: TELOPK_8QB_BLACKALL | D40: Urban | E40: 93 | F40: 0 | G40: 1808.480155 | H40: 2.362515412 | I40: 0 | J40: 4.98 | K40: 0 | L40: 0 | M40: 0 | N40: 0 | O40: 0 | P40: 1 | Q40: 9.978886776e-05 | R40: 9.978886776e-05 | S40: 5.252045672e-06 | T40: 5.252045672e-06
B41: Black Mtn | C41: CIVIC_8+NB_BLACKMTN | D41: Urban | E41: 718 | F41: 32627.09587 | G41: 5190.236602 | H41: 11.43153533 | I41: 5.28062 | J41: 188.95 | K41: 17 | L41: 1.588944269 | M41: 1.011851591 | N41: 0.01740527936 | O41: 0.01347674919 | P41: 9 | Q41: 0.2129231836 | R41: 0.2129231836 | S41: 0.001076669363 | T41: 0.001076669363
B42: Bowen | C42: TELOPK_8MB_BOWEN | D42: Urban | E42: 316 | F42: 0 | G42: 11704.50485 | H42: 4.034607848 | I42: 0 | J42: 0 | K42: 0 | L42: 0 | M42: 0 | N42: 0 | O42: 0 | P42: 0 | Q42: 0 | R42: 0 | S42: 0 | T42: 0
B43: Bowley | C43: LATHAM_8WB_BOWLEY | D43: Urban | E43: 1752 | F43: 7215.572596 | G43: 9496.024522 | H43: 4.149639824 | I43: 1.17773 | J43: 135.05 | K43: 16 | L43: 0.5987255036 | M43: 0.05618113255 | N43: 0.0008875957185 | O43: 0.0004516759278 | P43: 7 | Q43: 0.139604626 | R43: 0.139604626 | S43: 0.0006354975263 | T43: 0.0006354975263
B44: Braddon | C44: CITYEA_8+NB_BRADDON | D44: Urban | E44: 960 | F44: 0 | G44: 3727.771772 | H44: 3.757162809 | I44: 0 | J44: 2.73 | K44: 4 | L44: 0.007187424502 | M44: 0.007187424502 | N44: 3.151227403e-05 | O44: 3.151227403e-05 | P44: 1 | Q44: 0.007195127502 | R44: 0.007195127502 | S44: 1.575613702e-05 | T44: 1.575613702e-05
B45: Brisbane | C45: TELOPK_8+DB_BRISBANE | D45: Urban | E45: 62 | F45: 195.7356969 | G45: 3943.614412 | H45: 4.050245913 | I45: 0 | J45: 0 | K45: 1 | L45: 0 | M45: 0 | N45: 0 | O45: 0 | P45: 0 | Q45: 0 | R45: 0 | S45: 0 | T45: 0
B46: Brookman | C46: WANNIA_8+MB_BROOKMAN | D46: Urban | E46: 1447 | F46: 7142.374952 | G46: 1654.312925 | H46: 5.010822986 | I46: 0.47112 | J46: 1604.41 | K46: 12 | L46: 0.07827193692 | M46: 0.07827193692 | N46: 0.008009369649 | O46: 0.008009369649 | P46: 18 | Q46: 1.39501292 | R46: 1.39501292 | S46: 0.004075587441 | T46: 0.004075587441
B47: Broughton | C47: TELOPK_8+EB_BROUGHTN | D47: Urban | E47: 27 | F47: 0 | G47: 5054.16222 | H47: 4.745050896 | I47: 0 | J47: 0 | K47: 1 | L47: 0.008665875358 | M47: 0.008665875358 | N47: 0.0001575613702 | O47: 0.0001575613702 | P47: 0 | Q47: 0 | R47: 0 | S47: 0 | T47: 0
B48: Bunburung | C48: GOLDCR_8+PB_BUNBURNG | D48: Urban | E48: 265 | F48: 0 | G48: 2049.626842 | H48: 3.425645203 | I48: 0.00029 | J48: 155.26 | K48: 4 | L48: 0.000367643197 | M48: 0.000367643197 | N48: 5.252045672e-06 | O48: 5.252045672e-06 | P48: 1 | Q48: 0.03687461266 | R48: 0.03687461266 | S48: 0.0003098706946 | T48: 0.0003098706946
B49: Bunbury | C49: WODEN_8TB_BUNBURY | D49: Urban | E49: 1257 | F49: 7744.117555 | G49: 7013.659327 | H49: 3.383732539 | I49: 6.57044265 | J49: 1010.42 | K49: 16 | L49: 1.820942007 | M49: 0.05233663512 | N49: 0.007956849193 | O49: 0.000672261846 | P49: 8 | Q49: 0.4163139043 | R49: 0.4163139043 | S49: 0.001943256899 | T49: 0.001943256899
B50: Bunda | C50: CITYEA_8+FB_BUNDA | D50: Urban | E50: 66 | F50: 0 | G50: 2531.450727 | H50: 4.639297215 | I50: 0.01794 | J50: 128.43 | K50: 2 | L50: 0.001801451665 | M50: 0.001801451665 | N50: 3.151227403e-05 | O50: 3.151227403e-05 | P50: 1 | Q50: 0.01024148906 | R50: 0.01024148906 | S50: 0.0002048297812 | T50: 0.0002048297812
B51: CAE No 1, 2 | C51: BELCON_8DB_CAENO1-2 | D51: Urban | E51: 1 | F51: 2946.243729 | G51: 5996.483896 | H51: 8.893704601 | I51: 0.0031 | J51: 211.08 | K51: 2 | L51: 0.00269429943 | M51: 0.00269429943 | N51: 5.252045672e-06 | O51: 5.252045672e-06 | P51: 1 | Q51: 0.03373388935 | R51: 0.03373388935 | S51: 0.0003623911514 | T51: 0.0003623911514
B52: Callister | C52: THEDRE_8+RB_CALLISTR | D52: Urban | E52: 1616 | F52: 1244.542924 | G52: 14455.93088 | H52: 3.840993952 | I52: 0.757112422 | J52: 212.94 | K52: 10 | L52: 0.01721620571 | M52: 0.01721620571 | N52: 2.100818269e-05 | O52: 2.100818269e-05 | P52: 5 | Q52: 0.03473703007 | R52: 0.03473703007 | S52: 0.0004201636537 | T52: 0.0004201636537
B53: Cameron North | C53: BELCON_8MB_CAMNORTH | D53: Urban | E53: 348 | F53: 0 | G53: 3309.492619 | H53: 5.681458175 | I53: 0 | J53: 0 | K53: 0 | L53: 0 | M53: 0 | N53: 0 | O53: 0 | P53: 0 | Q53: 0 | R53: 0 | S53: 0 | T53: 0
B54: Cameron South | C54: BELCON_8GB_CAMSOUTH | D54: Urban | E54: 1068 | F54: 0 | G54: 5890.382049 | H54: 4.549736294 | I54: 0.00944 | J54: 0 | K54: 10 | L54: 0.3185899658 | M54: 0.3185899658 | N54: 0.005640697052 | O54: 0.005640697052 | P54: 0 | Q54: 0 | R54: 0 | S54: 0 | T54: 0
B55: Carruthers | C55: WODEN_8+PB_CARRUTHRS | D55: Urban | E55: 1282 | F55: 7879.078781 | G55: 2433.133544 | H55: 3.402785098 | I55: 0.710012667 | J55: 555.5266667 | K55: 12 | L55: 0.1406182708 | M55: 0.1406182708 | N55: 0.00137078392 | O55: 0.00137078392 | P55: 12 | Q55: 0.2401865527 | R55: 0.2401865527 | S55: 0.00163863825 | T55: 0.00163863825
B56: Cessnock | C56: EASTLK_8EB_CESSNOCK | D56: Urban | E56: 163 | F56: 1730.636594 | G56: 4617.293425 | H56: 3.219882451 | I56: 0 | J56: 0 | K56: 1 | L56: 0 | M56: 0 | N56: 0 | O56: 0 | P56: 0 | Q56: 0 | R56: 0 | S56: 0 | T56: 0
B57: Chan | C57: BELCON_8+HB_CHAN | D57: Urban | E57: 382 | F57: 0 | G57: 3965.58586 | H57: 5.506189517 | I57: 1.98653 | J57: 0 | K57: 5 | L57: 0.5549101375 | M57: 0.5549101375 | N57: 0.01039379838 | O57: 0.01039379838 | P57: 0 | Q57: 0 | R57: 0 | S57: 0 | T57: 0
B58: Chandler | C58: BELCON_8LB_CHANDLER | D58: Urban | E58: 367 | F58: 0 | G58: 2994.548039 | H58: 2.412039099 | I58: 0 | J58: 0 | K58: 2 | L58: 0 | M58: 0 | N58: 0 | O58: 0 | P58: 0 | Q58: 0 | R58: 0 | S58: 0 | T58: 0
B59: Chisholm | C59: CITYEA_8KB_CHISHOLM | D59: Urban | E59: 797 | F59: 4070.246325 | G59: 3360.721289 | H59: 3.669519177 | I59: 0.20045 | J59: 292.05 | K59: 9 | L59: 0.02798815138 | M59: 0.0148685413 | N59: 0.0001470572788 | O59: 0.0001418052331 | P59: 6 | Q59: 0.1901660697 | R59: 0.1901660697 | S59: 0.00124998687 | T59: 0.00124998687
B60: Chippindall | C60: THEDRE_8+SB_CHPPNDL | D60: Urban | E60: 1376 | F60: 592.7360326 | G60: 12714.21044 | H60: 3.650468363 | I60: 0.00243 | J60: 150.22 | K60: 9 | L60: 0.01064064453 | M60: 0.01064064453 | N60: 9.978886776e-05 | O60: 9.978886776e-05 | P60: 2 | Q60: 0.03461623302 | R60: 0.03461623302 | S60: 0.0002678543293 | T60: 0.0002678543293
B61: Christian | C61: CIVIC_8+PB_CHRISTIAN | D61: Urban | E61: 1 | F61: 679.8868034 | G61: 1702.577654 | H61: 1.428941916 | I61: 0 | J61: 0 | K61: 0 | L61: 0 | M61: 0 | N61: 0 | O61: 0 | P61: 0 | Q61: 0 | R61: 0 | S61: 0 | T61: 0
B62: Chuculba | C62: BELCON_8RB_CHUCULBA | D62: Urban | E62: 1046 | F62: 3043.262721 | G62: 10820.83466 | H62: 3.795254846 | I62: 0.2048 | J62: 286.11 | K62: 13 | L62: 1.831554378 | M62: 1.685547508 | N62: 0.03135996471 | O62: 0.03121290743 | P62: 5 | Q62: 0.1638533209 | R62: 0.1638533209 | S62: 0.0008508313988 | T62: 0.0008508313988
B63: CNBP1 | C63: TELOPK_8SB_CNBP1 | D63: Urban | E63: 7 | F63: 0 | G63: 2890.762019 | H63: 3.029355117 | I63: 0 | J63: 0 | K63: 0 | L63: 0 | M63: 0 | N63: 0 | O63: 0 | P63: 0 | Q63: 0 | R63: 0 | S63: 0 | T63: 0
B64: CNBP2 | C64: CITYEA_8PB_CNBP2 | D64: Urban | E64: 4 | F64: 0 | G64: 4082.977793 | H64: 2.299642927 | I64: 0 | J64: 0 | K64: 0 | L64: 0 | M64: 0 | N64: 0 | O64: 0 | P64: 0 | Q64: 0 | R64: 0 | S64: 0 | T64: 0
B65: Collie | C65: FYSHWK_8MB_COLLIE | D65: Urban | E65: 0 | F65: 0 | G65: 0 | H65: 3.055790194 | I65: 0 | J65: 0 | K65: 0 | L65: 0 | M65: 0 | N65: 0 | O65: 0 | P65: 0 | Q65: 0 | R65: 0 | S65: 0 | T65: 0
B66: Conley | C66: LATHAM_8+FB_CONLEY | D66: Urban | E66: 758 | F66: 4273.083155 | G66: 3339.265531 | H66: 1.752831638 | I66: 0.20595 | J66: 1169.47 | K66: 9 | L66: 0.2875022321 | M66: 0.05895421267 | N66: 0.0004149116081 | O66: 0.0001733175072 | P66: 6 | Q66: 0.1298935936 | R66: 0.1298935936 | S66: 0.0008245711705 | T66: 0.0008245711705
B67: Conolly | C67: WANNIA_8+GB_CONOLLY | D67: Urban | E67: 786 | F67: 2525.173746 | G67: 5526.737099 | H67: 2.581621729 | I67: 0.14824 | J67: 5611.5725 | K67: 18 | L67: 0.041114239 | M67: 0.041114239 | N67: 0.0006985220743 | O67: 0.0006985220743 | P67: 18 | Q67: 0.7824177267 | R67: 0.7824177267 | S67: 0.003697440153 | T67: 0.003697440153
B68: Constitution | C68: CITYEA_8RB_CNSTITUTN | D68: Urban | E68: 9 | F68: 0 | G68: 3349.365903 | H68: 2.234861436 | I68: 0 | J68: 0 | K68: 1 | L68: 0 | M68: 0 | N68: 0 | O68: 0 | P68: 0 | Q68: 0 | R68: 0 | S68: 0 | T68: 0
B69: Cooleman | C69: WODEN_8+HB_COOLEMAN | D69: Urban | E69: 889 | F69: 2713.745858 | G69: 5427.894823 | H69: 2.583525066 | I69: 0.58167 | J69: 12.9 | K69: 12 | L69: 0.647424922 | M69: 0.04318757156 | N69: 0.0007825548051 | O69: 0.0003991554711 | P69: 2 | Q69: 0.008592346719 | R69: 0.008592346719 | S69: 0.0002731063749 | T69: 0.0002731063749
B70: Cooyong | C70: CITYEA_8TB_COOYONG | D70: Urban | E70: 73 | F70: 0 | G70: 3099.85816 | H70: 3.967695387 | I70: 0 | J70: 30.79 | K70: 1 | L70: 0 | M70: 0 | N70: 0 | O70: 0 | P70: 3 | Q70: 0.0155933236 | R70: 0.0155933236 | S70: 9.453682209e-05 | T70: 9.453682209e-05
B71: Copland | C71: LATHAM_8+PB_COPLAND | D71: Urban | E71: 965 | F71: 6714.175907 | G71: 5731.186614 | H71: 2.43110285 | I71: 2.982271833 | J71: 873.59 | K71: 20 | L71: 1.636092583 | M71: 1.083283264 | N71: 0.02020987175 | O71: 0.01972668354 | P71: 9 | Q71: 0.3333630949 | R71: 0.3333630949 | S71: 0.002226867365 | T71: 0.002226867365
B72: Corinna | C72: WODEN_8UB_CORINNA | D72: Urban | E72: 202 | F72: 0 | G72: 3596.778003 | H72: 4.965095218 | I72: 0 | J72: 0 | K72: 1 | L72: 0 | M72: 0 | N72: 0 | O72: 0 | P72: 0 | Q72: 0 | R72: 0 | S72: 0 | T72: 0
B73: Cotter 11kV | C73: WODEN_8SB_COTTER11KV | D73: Rural short | E73: 1636 | F73: 43327.51116 | G73: 13158.90793 | H73: 5.879618044 | I73: 0.14364 | J73: 2435.803293 | K73: 15 | L73: 0.1118265564 | M73: 0.1118265564 | N73: 0.001134441865 | O73: 0.001134441865 | P73: 11 | Q73: 0.1910593551 | R73: 0.1910593551 | S73: 0.001123937774 | T73: 0.001123937774
B74: Cotter 22kV | C74: WODEN_8JB_COTTER22KV | D74: Rural short | E74: 4 | F74: 11254.8934 | G74: 1087.415769 | H74: 0.1219345163 | I74: 0 | J74: 0 | K74: 0 | L74: 0 | M74: 0 | N74: 0 | O74: 0 | P74: 0 | Q74: 0 | R74: 0 | S74: 0 | T74: 0
B75: Cowper | C75: CITYEA_8TB_COWPER | D75: Urban | E75: 1543 | F75: 2602.917112 | G75: 7492.95421 | H75: 5.272792182 | I75: 0.10128 | J75: 602.11 | K75: 18 | L75: 0.6286588376 | M75: 0.6286588376 | N75: 0.009170071743 | O75: 0.009170071743 | P75: 6 | Q75: 0.1779603155 | R75: 0.1779603155 | S75: 0.00101889686 | T75: 0.00101889686
B76: CSIRO | C76: CIVIC_8XB_CSIRO | D76: Urban | E76: 104 | F76: 60.78216123 | G76: 4967.469703 | H76: 16.32804296 | I76: 0 | J76: 0 | K76: 0 | L76: 0 | M76: 0 | N76: 0 | O76: 0 | P76: 0 | Q76: 0 | R76: 0 | S76: 0 | T76: 0
B77: Cunningham | C77: TELOPK_8+LB_CNNINGHM | D77: Urban | E77: 1893 | F77: 7509.518986 | G77: 5861.936213 | H77: 5.24720833 | I77: 1.22012 | J77: 1375.37 | K77: 25 | L77: 0.166626401 | M77: 0.166626401 | N77: 0.002310900096 | O77: 0.002310900096 | P77: 21 | Q77: 0.5166437327 | R77: 0.5166437327 | S77: 0.003293032636 | T77: 0.003293032636
B78: Curtin North | C78: WODEN_8PB_CURTINNTH | D78: Urban | E78: 1220 | F78: 9707.713378 | G78: 7235.145141 | H78: 5.174673366 | I78: 5.59633 | J78: 1046.35 | K78: 23 | L78: 1.507027937 | M78: 1.371724737 | N78: 0.02064579154 | O78: 0.02053024653 | P78: 18 | Q78: 0.3125823258 | R78: 0.3125823258 | S78: 0.006276194578 | T78: 0.006276194578
B79: Dairy North | C79: EASTLK_8QB_DAIRYNTH | D79: Urban | E79: 239 | F79: 31981.30508 | G79: 18447.48569 | H79: 4.763139721 | I79: 0.2358 | J79: 488.82 | K79: 10 | L79: 0.01084022227 | M79: 0.01084022227 | N79: 0.0007457904854 | O79: 0.0007457904854 | P79: 6 | Q79: 0.1562693669 | R79: 0.1562693669 | S79: 0.0005147004758 | T79: 0.0005147004758
B80: Dairy South | C80: EASTLK_8JB_DAIRYSTH | D80: Urban | E80: 456 | F80: 8468.191331 | G80: 7918.727748 | H80: 6.314016152 | I80: 0.01602 | J80: 122.79 | K80: 8 | L80: 0.01139693911 | M80: 0.01139693911 | N80: 4.201636537e-05 | O80: 4.201636537e-05 | P80: 3 | Q80: 0.01263116984 | R80: 0.01263116984 | S80: 6.827659373e-05 | T80: 6.827659373e-05
B81: Daplyn | C81: WODEN_8+GB_DAPLYN | D81: Urban | E81: 1034 | F81: 6981.676508 | G81: 1606.477842 | H81: 3.528532103 | I81: 5.70525 | J81: 0 | K81: 16 | L81: 1.42888205 | M81: 1.42888205 | N81: 0.01979496014 | O81: 0.01979496014 | P81: 0 | Q81: 0 | R81: 0 | S81: 0 | T81: 0
B82: Deakin No 1 | C82: WODEN_8NB_DEAKINNO1 | D82: Urban | E82: 1046 | F82: 3697.786676 | G82: 3696.396946 | H82: 3.440890216 | I82: 0.21714 | J82: 319.53 | K82: 11 | L82: 0.5738472635 | M82: 0.5738472635 | N82: 0.001076669363 | O82: 0.001076669363 | P82: 6 | Q82: 0.08895914959 | R82: 0.08895914959 | S82: 0.0008193191248 | T82: 0.0008193191248
B83: Deakin No 2 | C83: WODEN_8LB_DEAKINNO2 | D83: Urban | E83: 208 | F83: 3384.376646 | G83: 5687.130937 | H83: 2.473020165 | I83: 0.21233 | J83: 0 | K83: 6 | L83: 0.03466350143 | M83: 0.03466350143 | N83: 0.0006144893436 | O83: 0.0006144893436 | P83: 0 | Q83: 0 | R83: 0 | S83: 0 | T83: 0
B84: Devonport | C84: WODEN_8+TB_DEVONPORT | D84: Urban | E84: 603 | F84: 2471.056274 | G84: 2077.714206 | H84: 2.457778351 | I84: 0.53604 | J84: 144.8 | K84: 5 | L84: 0.03014149011 | M84: 0.02045146585 | N84: 0.0005462127499 | O84: 0.0003098706946 | P84: 4 | Q84: 0.09905883342 | R84: 0.09905883342 | S84: 0.0008350752618 | T84: 0.0008350752618
B85: Domayne | C85: FYSHWK_8DB_DOMAYNE | D85: Urban | E85: 0 | F85: 0 | G85: 0 | H85: 2.943651163 | I85: 0 | J85: 0 | K85: 0 | L85: 0 | M85: 0 | N85: 0 | O85: 0 | P85: 0 | Q85: 0 | R85: 0 | S85: 0 | T85: 0
B86: Dryandra | C86: CIVIC_8YB_DRYANDRA | D86: Urban | E86: 1040 | F86: 8822.772692 | G86: 3423.337481 | H86: 4.839349956 | I86: 1.23188 | J86: 1775.63 | K86: 22 | L86: 0.2350224788 | M86: 0.1954548797 | N86: 0.001470572788 | O86: 0.0010924255 | P86: 11 | Q86: 0.3586569469 | R86: 0.3586569469 | S86: 0.002331908278 | T86: 0.002331908278
B87: Duffy | C87: CITYEA_8XB_DUFFY | D87: Urban | E87: 973 | F87: 3913.022473 | G87: 5239.806357 | H87: 3.460893716 | I87: 2.10267 | J87: 1305.93 | K87: 13 | L87: 0.3983939244 | M87: 0.3983939244 | N87: 0.007541937585 | O87: 0.007541937585 | P87: 11 | Q87: 0.2684530625 | R87: 0.2566096995 | S87: 0.00172267098 | T87: 0.001507337108
B88: Eaglemont | C88: THEDRE_8FB_EAGLEMONT | D88: Urban | E88: 1652 | F88: 0 | G88: 10849.65653 | H88: 3.840993952 | I88: 0.00331 | J88: 25.23 | K88: 7 | L88: 0.00304618649 | M88: 0.00304618649 | N88: 1.050409134e-05 | O88: 1.050409134e-05 | P88: 2 | Q88: 0.06120208821 | R88: 0.06120208821 | S88: 0.0006460016176 | T88: 0.0006460016176
B89: Eardley | C89: BELCON_8+FB_EARDLEY | D89: Urban | E89: 1071 | F89: 0 | G89: 7213.863124 | H89: 6.525501418 | I89: 0.0519 | J89: 0.1 | K89: 8 | L89: 0.0007510425311 | M89: 0.0007510425311 | N89: 5.252045672e-06 | O89: 5.252045672e-06 | P89: 2 | Q89: 0.002158590771 | R89: 0.002158590771 | S89: 1.050409134e-05 | T89: 1.050409134e-05
B90: Easty | C90: WODEN_8+YB_EASTY | D90: Urban | E90: 603 | F90: 1171.258369 | G90: 5137.013991 | H90: 1.989085286 | I90: 0.00031 | J90: 0 | K90: 4 | L90: 0.0002100818269 | M90: 0.0002100818269 | N90: 5.252045672e-06 | O90: 5.252045672e-06 | P90: 0 | Q90: 0 | R90: 0 | S90: 0 | T90: 0
B91: Ebden | C91: CITYEA_8LB_EBDEN | D91: Urban | E91: 1784 | F91: 6907.90787 | G91: 3496.079138 | H91: 7.484793804 | I91: 5.12761 | J91: 809.74 | K91: 32 | L91: 1.238601923 | M91: 1.238601923 | N91: 0.02741567841 | O91: 0.02741567841 | P91: 14 | Q91: 0.5228358946 | R91: 0.5164651632 | S91: 0.002872868982 | T91: 0.002846608754
B92: Edmond | C92: GILMRE_8+PB_EDMOND | D92: Urban | E92: 1055 | F92: 983.9825843 | G92: 8673.90941 | H92: 7.983022172 | I92: 0.01682 | J92: 75.21 | K92: 10 | L92: 0.03405251345 | M92: 0.01972493286 | N92: 0.0002258379639 | O92: 6.302454806e-05 | P92: 2 | Q92: 0.0188128276 | R92: 0.0188128276 | S92: 0.0001995777355 | T92: 0.0001995777355
B93: Edmund Barton | C93: TELOPK_8NB_EDMNDBRTN | D93: Urban | E93: 142 | F93: 0 | G93: 5508.73298 | H93: 5.878755771 | I93: 0 | J93: 0.13 | K93: 0 | L93: 0 | M93: 0 | N93: 0 | O93: 0 | P93: 1 | Q93: 0.001717418935 | R93: 0.001717418935 | S93: 5.252045672e-06 | T93: 5.252045672e-06
B94: Electricity House | C94: CITYEA_8HB_ELECHOUSE | D94: Urban | E94: 69 | F94: 0 | G94: 3896.283464 | H94: 2.303450619 | I94: 0 | J94: 63.72 | K94: 0 | L94: 0 | M94: 0 | N94: 0 | O94: 0 | P94: 1 | Q94: 0.0141332549 | R94: 0.0141332549 | S94: 0.0001207970505 | T94: 0.0001207970505
B95: Elkington | C95: LATHAM_8VB_ELKINGTON | D95: Urban | E95: 1559 | F95: 2482.681505 | G95: 8412.53775 | H95: 4.201081676 | I95: 4.94461 | J95: 150.16 | K95: 21 | L95: 0.7323348319 | M95: 0.1030510009 | N95: 0.009711032447 | O95: 0.00128675119 | P95: 5 | Q95: 0.1059442653 | R95: 0.1059442653 | S95: 0.0005409607042 | T95: 0.0005409607042
B96: Empire | C96: TELOPK_8TB_EMPIRE | D96: Urban | E96: 1217 | F96: 2023.438886 | G96: 6786.615434 | H96: 4.526886072 | I96: 1.54232 | J96: 1016.6 | K96: 8 | L96: 0.3171657861 | M96: 0.3171657861 | N96: 0.006538796861 | O96: 0.006538796861 | P96: 12 | Q96: 0.2998227435 | R96: 0.2998227435 | S96: 0.001554605519 | T96: 0.001554605519
B97: Emu Bank | C97: BELCON_8JB_EMUBANK | D97: Urban | E97: 328 | F97: 0 | G97: 3609.38535 | H97: 3.555192486 | I97: 0 | J97: 143.8 | K97: 0 | L97: 0 | M97: 0 | N97: 0 | O97: 0 | P97: 3 | Q97: 0.02218464092 | R97: 0.02218464092 | S97: 0.0002573502379 | T97: 0.0002573502379
B98: Erindale | C98: WANNIA_8+HB_ERINDALE | D98: Urban | E98: 138 | F98: 0 | G98: 9248.29049 | H98: 3.777169799 | I98: 0.43667 | J98: 0 | K98: 5 | L98: 0.008886461277 | M98: 0.008886461277 | N98: 0.0007405384397 | O98: 0.0007405384397 | P98: 1 | Q98: 0.01934853625 | R98: 0.01934853625 | S98: 6.302454806e-05 | T98: 6.302454806e-05
B99: Fairbairn | C99: CITYEA_8DB_FAIRBAIRN | D99: Urban | E99: 31 | F99: 5287.110326 | G99: 2076.227407 | H99: 4.586903551 | I99: 0 | J99: 0 | K99: 0 | L99: 0 | M99: 0 | N99: 0 | O99: 0 | P99: 0 | Q99: 0 | R99: 0 | S99: 0 | T99: 0
B100: Fairley | C100: THEDRE_8+UB_FAIRLEY | D100: Rural short | E100: 1120 | F100: 30957.1371 | G100: 6863.861693 | H100: 2.697840419 | I100: 2.27388 | J100: 316.33 | K100: 12 | L100: 0.442684338 | M100: 0.4416706932 | N100: 0.006628081638 | O100: 0.006622829592 | P100: 6 | Q100: 0.1783752272 | R100: 0.1783752272 | S100: 0.000656505709 | T100: 0.000656505709
B101: Falkiner | C101: GILMRE_8MB_FALKINER | D101: Urban | E101: 959 | F101: 1621.395818 | G101: 8276.65587 | H101: 3.353250363 | I101: 0.67943 | J101: 4.57 | K101: 16 | L101: 0.3665245113 | M101: 0.01330868373 | N101: 0.0006670098003 | O101: 0.0001838215985 | P101: 1 | Q101: 0.00895473787 | R101: 0.00895473787 | S101: 5.252045672e-06 | T101: 5.252045672e-06
B102: Ferdinand | C102: CITYEA_8EB_FERDINAND | D102: Urban | E102: 1134 | F102: 6403.82307 | G102: 7491.230197 | H102: 5.641458732 | I102: 0.5276 | J102: 580.17 | K102: 24 | L102: 0.4349994573 | M102: 0.200721456 | N102: 0.01259440552 | O102: 0.01240007983 | P102: 9 | Q102: 0.1671463535 | R102: 0.1671463535 | S102: 0.0009453682209 | T102: 0.0009453682209
B103: Ferguson | C103: GOLDCR_8EB_FERGUSON | D103: Urban | E103: 2504 | F103: 0 | G103: 17700.55354 | H103: 6.222585035 | I103: 0.08866 | J103: 228.73 | K103: 9 | L103: 0.008027664275 | M103: 0.008027664275 | N103: 0.0001260490961 | O103: 0.0001260490961 | P103: 2 | Q103: 0.0573365826 | R103: 0.0573365826 | S103: 0.0003939034254 | T103: 0.0003939034254
B104: Fielder | C104: LATHAM_8+JB_FIELDER | D104: Urban | E104: 1408 | F104: 5194.046317 | G104: 5172.293268 | H104: 5.273744578 | I104: 0.15502 | J104: 8.99 | K104: 17 | L104: 0.03501433808 | M104: 0.03501433808 | N104: 0.0004621800191 | O104: 0.0004621800191 | P104: 3 | Q104: 0.01029926156 | R104: 0.01029926156 | S104: 0.0001050409134 | T104: 0.0001050409134
B105: Fincham | C105: WANNIA_8LB_FINCHAM | D105: Urban | E105: 256 | F105: 1961.645561 | G105: 7543.065147 | H105: 4.978426427 | I105: 0 | J105: 7.36 | K105: 0 | L105: 0 | M105: 0 | N105: 0 | O105: 0 | P105: 1 | Q105: 0.002788836252 | R105: 0.002788836252 | S105: 1.575613702e-05 | T105: 1.575613702e-05
B106: Findlayson | C106: GILMRE_8+RB_FINDLYSN | D106: Rural short | E106: 928 | F106: 312.8703496 | G106: 10727.64792 | H106: 3.429460599 | I106: 0 | J106: 1.95 | K106: 1 | L106: 0.02584006471 | M106: 0.02584006471 | N106: 0.0001733175072 | O106: 0.0001733175072 | P106: 1 | Q106: 0.0052783059 | R106: 0.0052783059 | S106: 7.878068508e-05 | T106: 7.878068508e-05
B107: Florey | C107: LATHAM_8GB_FLOREY | D107: Urban | E107: 1057 | F107: 6815.394934 | G107: 5316.87428 | H107: 2.777855584 | I107: 6.860601167 | J107: 2310.07 | K107: 24 | L107: 2.406056659 | M107: 1.35966534 | N107: 0.03822964044 | O107: 0.0327622609 | P107: 17 | Q107: 1.128591086 | R107: 1.128591086 | S107: 0.004464238821 | T107: 0.004464238821
B108: Follingsby | C108: WODEN_8GB_FOLINGSBY | D108: Urban | E108: 1077 | F108: 6517.565375 | G108: 8343.60629 | H108: 3.528532103 | I108: 1.706038854 | J108: 1247.69 | K108: 26 | L108: 0.7275178307 | M108: 0.7275178307 | N108: 0.008088150335 | O108: 0.008088150335 | P108: 11 | Q108: 0.2153391246 | R108: 0.2153391246 | S108: 0.003266772408 | T108: 0.003266772408
B109: Forster | C109: TELOPK_8+HB_FORSTER | D109: Urban | E109: 491 | F109: 1276.241716 | G109: 8549.730605 | H109: 6.03553063 | I109: 4.47156 | J109: 548.75 | K109: 19 | L109: 0.4253188867 | M109: 0.1074965949 | N109: 0.001071417317 | O109: 0.0007457904854 | P109: 10 | Q109: 0.2442148717 | R109: 0.2442148717 | S109: 0.0008770916272 | T109: 0.0008770916272
B110: Gallery | C110: TELOPK_8+RB_GALLERY | D110: Urban | E110: 173 | F110: 0 | G110: 8472.788565 | H110: 4.690738195 | I110: 0 | J110: 0 | K110: 0 | L110: 0 | M110: 0 | N110: 0 | O110: 0 | P110: 0 | Q110: 0 | R110: 0 | S110: 0 | T110: 0
B111: Garran | C111: WODEN_8EB_GARRAN | D111: Urban | E111: 5 | F111: 0 | G111: 4456.983055 | H111: 2.815966225 | I111: 0 | J111: 0 | K111: 0 | L111: 0 | M111: 0 | N111: 0 | O111: 0 | P111: 0 | Q111: 0 | R111: 0 | S111: 0 | T111: 0
B112: Gaunson | C112: WANNIA_8SB_GAUNSON | D112: Urban | E112: 753 | F112: 0 | G112: 7125.400459 | H112: 2.183415806 | I112: 0.06839 | J112: 676.95 | K112: 8 | L112: 0.05299401617 | M112: 0.05299401617 | N112: 0.0004044075167 | O112: 0.0004044075167 | P112: 11 | Q112: 0.2640292644 | R112: 0.2640292644 | S112: 0.001454816651 | T112: 0.001454816651
B113: Giles | C113: TELOPK_8VB_GILES | D113: Urban | E113: 611 | F113: 5286.406183 | G113: 6078.570728 | H113: 4.090847725 | I113: 1.551 | J113: 286.2625 | K113: 9 | L113: 0.2683149337 | M113: 0.2683149337 | N113: 0.006964212561 | O113: 0.006964212561 | P113: 9 | Q113: 0.2115839119 | R113: 0.2115839119 | S113: 0.0009978886776 | T113: 0.0009978886776
B114: Girrahween | C114: CIVIC_8+JB_GIRRAHWN | D114: Urban | E114: 136 | F114: 0 | G114: 3770.939523 | H114: 3.200829892 | I114: 0 | J114: 0 | K114: 1 | L114: 0 | M114: 0 | N114: 0 | O114: 0 | P114: 0 | Q114: 0 | R114: 0 | S114: 0 | T114: 0
B115: Gladstone | C115: FYSHWK_8JB_GLADSTONE | D115: Urban | E115: 255 | F115: 4344.471161 | G115: 1876.473766 | H115: 3.600558602 | I115: 0.75863 | J115: 103.06 | K115: 5 | L115: 0.06104977889 | M115: 0.04504154368 | N115: 0.0001313011418 | O115: 0.0001102929591 | P115: 4 | Q115: 0.02839571013 | R115: 0.02839571013 | S115: 8.403273075e-05 | T115: 8.403273075e-05
B116: Gouger | C116: WANNIA_8+NB_GOUGER | D116: Urban | E116: 1183 | F116: 6180.942665 | G116: 2243.17872 | H116: 3.967695387 | I116: 0.42778 | J116: 475.29 | K116: 15 | L116: 0.09124378946 | M116: 0.09124378946 | N116: 0.0006197413893 | O116: 0.0006197413893 | P116: 15 | Q116: 0.4630191209 | R116: 0.4630191209 | S116: 0.0039442863 | T116: 0.0039442863
B117: Gribble | C117: GOLDCR_8QB_GRIBBLE | D117: Urban | E117: 352 | F117: 0 | G117: 5821.389469 | H117: 4.824328507 | I117: 0 | J117: 8.43 | K117: 0 | L117: 0 | M117: 0 | N117: 0 | O117: 0 | P117: 2 | Q117: 0.0398000021 | R117: 0.0398000021 | S117: 0.0001995777355 | T117: 0.0001995777355
B118: Grimshaw | C118: WANNIA_8ZB_GRIMSHAW | D118: Urban | E118: 1736 | F118: 0 | G118: 17868.70862 | H118: 3.698094237 | I118: 0.00149 | J118: 269.21 | K118: 10 | L118: 0.1452296544 | M118: 0.1452296544 | N118: 0.01126563797 | O118: 0.01126563797 | P118: 5 | Q118: 0.1881952395 | R118: 0.1881952395 | S118: 0.0009558723123 | T118: 0.0009558723123
B119: Gungahlin | C119: GOLDCR_8GB_GUNGAHLIN | D119: Urban | E119: 335 | F119: 6621.137651 | G119: 4676.389756 | H119: 6.706581547 | I119: 0.03112 | J119: 1.7 | K119: 6 | L119: 0.03401224777 | M119: 0.03401224777 | N119: 0.0001260490961 | O119: 0.0001260490961 | P119: 3 | Q119: 0.002410688963 | R119: 0.002410688963 | S119: 6.302454806e-05 | T119: 6.302454806e-05
B120: Haig | C120: CITYEA_8+LB_HAIG | D120: Urban | E120: 1021 | F120: 0 | G120: 5361.35365 | H120: 2.64830394 | I120: 0.00086 | J120: 76.39 | K120: 6 | L120: 0.01390741694 | M120: 0.01390741694 | N120: 0.0001838215985 | O120: 0.0001838215985 | P120: 6 | Q120: 0.02109090241 | R120: 0.02109090241 | S120: 0.0001313011418 | T120: 0.0001313011418
B121: Harman 1 | C121: GILMRE_8GB_HARMAN1 | D121: Urban | E121: 2 | F121: 0 | G121: 19150.96079 | H121: 4.78219228 | I121: 0 | J121: 0 | K121: 0 | L121: 0 | M121: 0 | N121: 0 | O121: 0 | P121: 0 | Q121: 0 | R121: 0 | S121: 0 | T121: 0
B122: Hawker-Pridham | C122: WANNIA_8+LB_HAWKRPRD | D122: Urban | E122: 2227 | F122: 12848.4924 | G122: 4600.838063 | H122: 5.396637304 | I122: 0.29249 | J122: 999.24 | K122: 15 | L122: 0.02139683407 | M122: 0.02139683407 | N122: 0.0006249934349 | O122: 0.0006249934349 | P122: 13 | Q122: 0.5017541833 | R122: 0.5017541833 | S122: 0.002279387822 | T122: 0.002279387822
B123: Haydon | C123: BELCON_8WB_HAYDON | D123: Urban | E123: 1141 | F123: 4587.753464 | G123: 8296.509879 | H123: 5.887225577 | I123: 0.00721 | J123: 101.14 | K123: 6 | L123: 0.2340468237 | M123: 0.2340468237 | N123: 0.006013592294 | O123: 0.006013592294 | P123: 4 | Q123: 0.01993151332 | R123: 0.01993151332 | S123: 0.0002415941009 | T123: 0.0002415941009
B124: Hemmings | C124: WANNIA_8QB_HEMMINGS | D124: Urban | E124: 794 | F124: 1167.885273 | G124: 12085.50845 | H124: 5.664318547 | I124: 0.01142 | J124: 21.06 | K124: 8 | L124: 0.003387569458 | M124: 0.003387569458 | N124: 2.626022836e-05 | O124: 2.626022836e-05 | P124: 2 | Q124: 0.08159578156 | R124: 0.08159578156 | S124: 0.0003991554711 | T124: 0.0003991554711
B125: High Lift Pump Station | C125: TENNENT_8GB_HLPS | D125: Urban | E125: 0 | F125: 0 | G125: 1596.993802 | H125: 0 | I125: 0 | J125: 0 | K125: 0 | L125: 0 | M125: 0 | N125: 0 | O125: 0 | P125: 0 | Q125: 0 | R125: 0 | S125: 0 | T125: 0
B126: Hilder | C126: WODEN_8+JB_HILDER | D126: Urban | E126: 2048 | F126: 3556.904728 | G126: 11920.32345 | H126: 5.357577464 | I126: 0.71863 | J126: 781.74 | K126: 21 | L126: 0.6130555351 | M126: 0.1552137057 | N126: 0.001339271646 | O126: 0.00070377412 | P126: 13 | Q126: 0.4450287637 | R126: 0.4370876706 | S126: 0.002253127593 | T126: 0.001811955757
B127: Hindmarsh | C127: WODEN_8+RB_HINDMARSH | D127: Urban | E127: 110 | F127: 1577.793959 | G127: 2067.155307 | H127: 3.155101832 | I127: 0 | J127: 0 | K127: 0 | L127: 0 | M127: 0 | N127: 0 | O127: 0 | P127: 0 | Q127: 0 | R127: 0 | S127: 0 | T127: 0
B128: Hobart Long | C128: CIVIC_8+GB_HOBARTLNG | D128: Urban | E128: 546 | F128: 0 | G128: 5020.875874 | H128: 4.058195042 | I128: 0.00034 | J128: 243.1 | K128: 2 | L128: 0.0005409607042 | M128: 0.0005409607042 | N128: 5.252045672e-06 | O128: 5.252045672e-06 | P128: 3 | Q128: 0.02882847869 | R128: 0.02882847869 | S128: 0.00070377412 | T128: 0.00070377412
B129: Hobart Short | C129: CIVIC_8UB_HOBARTSHRT | D129: Urban | E129: 63 | F129: 0 | G129: 3982.070168 | H129: 7.259024935 | I129: 0 | J129: 33.88 | K129: 0 | L129: 0 | M129: 0 | N129: 0 | O129: 0 | P129: 5 | Q129: 0.01236988057 | R129: 0.01236988057 | S129: 0.0001418052331 | T129: 0.0001418052331
B130: Homann | C130: LATHAM_8DB_HOMANN | D130: Rural short | E130: 935 | F130: 21179.87869 | G130: 3486.74931 | H130: 2.286299653 | I130: 2.0566 | J130: 3762.81 | K130: 18 | L130: 1.841159056 | M130: 0.5044432306 | N130: 0.01276247098 | O130: 0.007946345101 | P130: 24 | Q130: 0.654521136 | R130: 0.654521136 | S130: 0.002757323978 | T130: 0.002757323978
B131: Ijong | C131: CITYEA_8+TB_IJONG | D131: Urban | E131: 1346 | F131: 0 | G131: 5787.783985 | H131: 3.764783717 | I131: 0.01209 | J131: 10.72 | K131: 9 | L131: 0.006496780496 | M131: 0.006496780496 | N131: 2.626022836e-05 | O131: 2.626022836e-05 | P131: 2 | Q131: 0.02976824473 | R131: 0.02976824473 | S131: 0.0001260490961 | T131: 0.0001260490961
B132: Isa | C132: EASTLK_8GB_ISA | D132: Urban | E132: 291 | F132: 2254.193466 | G132: 1958.752814 | H132: 2.934094068 | I132: 1.47851 | J132: 46.77 | K132: 9 | L132: 0.1236541633 | M132: 0.1236541633 | N132: 0.001717418935 | O132: 0.001717418935 | P132: 3 | Q132: 0.06710538755 | R132: 0.06710538755 | S132: 0.0001838215985 | T132: 0.0001838215985
B133: Isabella | C133: GILMRE_8PB_ISABELLA | D133: Urban | E133: 0 | F133: 0 | G133: 1805.216002 | H133: 9.020730189 | I133: 0 | J133: 0 | K133: 0 | L133: 0 | M133: 0 | N133: 0 | O133: 0 | P133: 0 | Q133: 0 | R133: 0 | S133: 0 | T133: 0
B134: Jackie Howe | C134: GILMRE_8JB_JACKIEHOW | D134: Urban | E134: 935 | F134: 1091.591251 | G134: 10894.02557 | H134: 3.372302922 | I134: 0.01745 | J134: 168.03 | K134: 5 | L134: 0.02129179315 | M134: 0.01353977374 | N134: 0.0001470572788 | O134: 0.0001418052331 | P134: 4 | Q134: 0.04039348326 | R134: 0.04039348326 | S134: 0.0001838215985 | T134: 0.0001838215985
B135: Jardine | C135: TELOPK_8+SB_JARDINE | D135: Urban | E135: 1254 | F135: 395.7522572 | G135: 3571.410597 | H135: 3.856236057 | I135: 0.40636 | J135: 17.15 | K135: 4 | L135: 0.04962447874 | M135: 0.04962447874 | N135: 0.001076669363 | O135: 0.001076669363 | P135: 2 | Q135: 0.07028287518 | R135: 0.07028287518 | S135: 0.0002993666033 | T135: 0.0002993666033
B136: Jolimont | C136: CIVIC_8+FB_JOLIMONT | D136: Urban | E136: 317 | F136: 0 | G136: 3598.907118 | H136: 3.92482713 | I136: 0 | J136: 14.05 | K136: 0 | L136: 0 | M136: 0 | N136: 0 | O136: 0 | P136: 4 | Q136: 0.01861324986 | R136: 0.01861324986 | S136: 0.0002415941009 | T136: 0.0002415941009
B137: Kelliher | C137: TELOPK_8PB_KELLIHER | D137: Urban | E137: 2 | F137: 2119.317446 | G137: 2608.423533 | H137: 5.830081273 | I137: 0 | J137: 0 | K137: 0 | L137: 0 | M137: 0 | N137: 0 | O137: 0 | P137: 0 | Q137: 0 | R137: 0 | S137: 0 | T137: 0
B138: Kent | C138: WODEN_8+QB_KENT | D138: Urban | E138: 50 | F138: 0 | G138: 4041.232065 | H138: 2.67878786 | I138: 0 | J138: 0 | K138: 0 | L138: 0 | M138: 0 | N138: 0 | O138: 0 | P138: 0 | Q138: 0 | R138: 0 | S138: 0 | T138: 0
B139: KF1 | C139: TELOPK_8+JB_KF1 | D139: Urban | E139: 983 | F139: 0 | G139: 2556.656483 | H139: 3.296090942 | I139: 0 | J139: 0 | K139: 5 | L139: 0.000367643197 | M139: 0.000367643197 | N139: 5.252045672e-06 | O139: 5.252045672e-06 | P139: 0 | Q139: 0 | R139: 0 | S139: 0 | T139: 0
B140: King | C140: WODEN_8+EB_KING | D140: Urban | E140: 320 | F140: 892.5239748 | G140: 5132.214507 | H140: 5.334714742 | I140: 0.0451 | J140: 1780.59 | K140: 4 | L140: 0.1122292133 | M140: 0.1122292133 | N140: 0.002032541675 | O140: 0.002032541675 | P140: 1 | Q140: 0.1452190628 | R140: 0.1452190628 | S140: 0.0003886513797 | T140: 0.0003886513797
B141: Kurrajong | C141: TELOPK_8HB_KURRAJONG | D141: Urban | E141: 24 | F141: 0 | G141: 3195.931483 | H141: 2.334566272 | I141: 0 | J141: 0 | K141: 0 | L141: 0 | M141: 0 | N141: 0 | O141: 0 | P141: 0 | Q141: 0 | R141: 0 | S141: 0 | T141: 0
B142: Lambrigg | C142: WANNIA_8+PB_LAMBRIGG | D142: Urban | E142: 1271 | F142: 6561.461394 | G142: 1561.126052 | H142: 3.681907004 | I142: 5.33266 | J142: 611.68 | K142: 19 | L142: 0.8305585025 | M142: 0.2984317392 | N142: 0.01727397821 | O142: 0.007505173265 | P142: 10 | Q142: 0.3494553629 | R142: 0.3494553629 | S142: 0.001701662798 | T142: 0.001701662798
B143: Lander | C143: GOLDCR_8PB_LANDER | D143: Urban | E143: 2230 | F143: 2732.648856 | G143: 15086.34199 | H143: 6.489999979 | I143: 3.2114 | J143: 807.46 | K143: 12 | L143: 1.01734812 | M143: 1.01734812 | N143: 0.01165954139 | O143: 0.01165954139 | P143: 4 | Q143: 0.09877522295 | R143: 0.09877522295 | S143: 0.0007878068508 | T143: 0.0007878068508
B144: Langdon | C144: WANNIA_8VB_LANGDON | D144: Urban | E144: 1196 | F144: 3247.754884 | G144: 10863.7405 | H144: 4.155355651 | I144: 1.504645 | J144: 30.82 | K144: 21 | L144: 1.233307161 | M144: 0.8382955536 | N144: 0.01770464596 | O144: 0.01114484092 | P144: 3 | Q144: 0.09138034264 | R144: 0.09138034264 | S144: 0.0004201636537 | T144: 0.0004201636537
B145: Latham | C145: LATHAM_8KB_LATHAM | D145: Urban | E145: 1044 | F145: 5803.929508 | G145: 2449.489465 | H145: 4.715500765 | I145: 3.72182 | J145: 2651.74 | K145: 30 | L145: 1.966157743 | M145: 0.1850509273 | N145: 0.01309860191 | O145: 0.001938004853 | P145: 21 | Q145: 1.201762587 | R145: 1.201762587 | S145: 0.004957931114 | T145: 0.004957931114
B146: Launceston | C146: WODEN_8+XB_LAUNCESTN | D146: Urban | E146: 89 | F146: 0 | G146: 5443.375185 | H146: 2.091969134 | I146: 0 | J146: 6.26 | K146: 0 | L146: 0 | M146: 0 | N146: 0 | O146: 0 | P146: 1 | Q146: 0.002899129211 | R146: 0.002899129211 | S146: 0.0004831882018 | T146: 0.0004831882018
B147: Lawrence Wackett | C147: THEDRE_8+TB_LAWRCWCK | D147: Urban | E147: 1294 | F147: 0 | G147: 10821.38428 | H147: 3.619984443 | I147: 0.01476 | J147: 560.76 | K147: 7 | L147: 0.003860253569 | M147: 0.001334019601 | N147: 2.626022836e-05 | O147: 2.100818269e-05 | P147: 4 | Q147: 0.04635980714 | R147: 0.04635980714 | S147: 0.0003623911514 | T147: 0.0003623911514
B148: Lethbridge | C148: THEDRE_8JB_LETHBRIDG | D148: Urban | E148: 1322 | F148: 75.22255563 | G148: 10265.8691 | H148: 3.87909907 | I148: 0.14385 | J148: 2.58 | K148: 10 | L148: 0.05784603103 | M148: 0.05784603103 | N148: 0.0003886513797 | O148: 0.0003886513797 | P148: 3 | Q148: 0.06422253968 | R148: 0.06422253968 | S148: 0.0002310900096 | T148: 0.0002310900096
B149: Lexcen | C149: GOLDCR_8HB_LEXCEN | D149: Rural short | E149: 903 | F149: 0 | G149: 9811.848017 | H149: 3.353454739 | I149: 0.11994 | J149: 0 | K149: 5 | L149: 0.03611831808 | M149: 0.03611831808 | N149: 0.0001523093245 | O149: 0.0001523093245 | P149: 0 | Q149: 0 | R149: 0 | S149: 0 | T149: 0
B150: Lhotsky | C150: LATHAM_8FB_LHOTSKY | D150: Urban | E150: 2469 | F150: 3083.666368 | G150: 13976.62912 | H150: 5.127036154 | I150: 0.02651 | J150: 75.81 | K150: 19 | L150: 0.0385999972 | M150: 0.0385999972 | N150: 0.0003991554711 | O150: 0.0003991554711 | P150: 5 | Q150: 0.1602504175 | R150: 0.1602504175 | S150: 0.0008928477642 | T150: 0.0008928477642
B151: Ling-Hughes | C151: GOLDCR_8LB_LING | D151: Urban | E151: 1208 | F151: 0 | G151: 11710.13875 | H151: 2.835453487 | I151: 35.487605 | J151: 15 | K151: 6 | L151: 0.05265700991 | M151: 0.05265700991 | N151: 0.0001838215985 | O151: 0.0001838215985 | P151: 1 | Q151: 0.001654394387 | R151: 0.001654394387 | S151: 2.626022836e-05 | T151: 2.626022836e-05
B152: Longmore | C152: WANNIA_8HB_LONGMORE | D152: Urban | E152: 1350 | F152: 169.2754242 | G152: 12569.23713 | H152: 3.606641896 | I152: 0.45618 | J152: 3461.79 | K152: 24 | L152: 0.3041342353 | M152: 0.1747605942 | N152: 0.002846608754 | O152: 0.002725811704 | P152: 30 | Q152: 1.416411592 | R152: 1.416411592 | S152: 0.006123885253 | T152: 0.006123885253
B153: Lonsdale | C153: CITYEA_8+MB_LONSDALE | D153: Urban | E153: 681 | F153: 0 | G153: 4256.173633 | H153: 4.4849705 | I153: 0.00037 | J153: 0.63 | K153: 4 | L153: 0.0002783584206 | M153: 0.0002783584206 | N153: 5.252045672e-06 | O153: 5.252045672e-06 | P153: 1 | Q153: 0.03573570656 | R153: 0.03573570656 | S153: 8.928477642e-05 | T153: 8.928477642e-05
B154: Low Molonglo East | C154: LATHAM_8RB_LWMLNGLOE | D154: Urban | E154: 211 | F154: 4470.323344 | G154: 7078.768976 | H154: 2.863592099 | I154: 0.06262 | J154: 28237.26111 | K154: 2 | L154: 0.1878056253 | M154: 0.001226702801 | N154: 0.0001575613702 | O154: 5.252045672e-06 | P154: 7 | Q154: 0.4752523608 | R154: 0.4752523608 | S154: 0.002468461466 | T154: 0.002468461466
B155: Low Molonglo West | C155: LATHAM_8TB_LWMLNGLOW | D155: Urban | E155: 316 | F155: 7895.811122 | G155: 7325.627891 | H155: 2.869307926 | I155: 0.00072 | J155: 51274.94597 | K155: 4 | L155: 0.01934731078 | M155: 0.00137078392 | N155: 0.0002205859182 | O155: 1.050409134e-05 | P155: 2 | Q155: 0.1126406235 | R155: 0.1126406235 | S155: 0.0006092372979 | T155: 0.0006092372979
B156: Lyell | C156: EASTLK_8FB_LYELL | D156: Urban | E156: 307 | F156: 2167.885671 | G156: 2166.7381 | H156: 3.315145246 | I156: 0.06245 | J156: 200.31 | K156: 13 | L156: 0.008292980116 | M156: 0.005393850905 | N156: 7.352863941e-05 | O156: 5.252045672e-05 | P156: 1 | Q156: 0.07278284892 | R156: 0.07278284892 | S156: 0.0002100818269 | T156: 0.0002100818269
B157: Lyons West | C157: WODEN_8+UB_LYONSWEST | D157: Urban | E157: 1859 | F157: 10284.64894 | G157: 2152.679494 | H157: 5.959638441 | I157: 2.64893 | J157: 3199.145 | K157: 23 | L157: 1.115140597 | M157: 0.85050052 | N157: 0.01093475909 | O157: 0.01066690476 | P157: 16 | Q157: 0.5696631338 | R157: 0.5696631338 | S157: 0.003077698764 | T157: 0.003077698764
B158: Mackenzie | C158: CITYEA_8YB_MACKENZIE | D158: Rural short | E158: 2126 | F158: 27271.07242 | G158: 9212.492851 | H158: 5.644317081 | I158: 0.51954 | J158: 2499.91 | K158: 26 | L158: 0.1303069295 | M158: 0.1147487947 | N158: 0.001134441865 | O158: 0.001129189819 | P158: 19 | Q158: 0.2329285757 | R158: 0.2329285757 | S158: 0.001376035966 | T158: 0.001376035966
B159: Macrossan | C159: LATHAM_8JB_MACROSSAN | D159: Rural short | E159: 2508 | F159: 27815.70657 | G159: 11149.81633 | H159: 5.590013102 | I159: 1.1583 | J159: 1218.25 | K159: 32 | L159: 0.4183674541 | M159: 0.3433682419 | N159: 0.0141332549 | O159: 0.01398619762 | P159: 9 | Q159: 0.6070997153 | R159: 0.6070997153 | S159: 0.002547242151 | T159: 0.002547242151
B160: Magenta-Boulevard North | C160: GOLDCR_8+RB_BOULVDNT | D160: Urban | E160: 2379 | F160: 1210.799411 | G160: 17041.95102 | H160: 3.279073417 | I160: 1.01518 | J160: 254.04 | K160: 9 | L160: 0.1129382395 | M160: 0.1129382395 | N160: 0.00172267098 | O160: 0.00172267098 | P160: 5 | Q160: 0.134292707 | R160: 0.134292707 | S160: 0.0007510425311 | T160: 0.0007510425311
B161: Mannheim | C161: WANNIA_8+EB_MANNHEIM | D161: Urban | E161: 694 | F161: 1014.77384 | G161: 8251.430847 | H161: 1.152679812 | I161: 0.00338 | J161: 1571.361 | K161: 8 | L161: 0.01256289325 | M161: 0.01256289325 | N161: 0.0001575613702 | O161: 0.0001575613702 | P161: 17 | Q161: 0.6518051281 | R161: 0.6518051281 | S161: 0.002867616937 | T161: 0.002867616937
B162: Maribyrnong | C162: BELCON_8TB_MARBYNONG | D162: Urban | E162: 500 | F162: 6906.447009 | G162: 3740.489621 | H162: 5.670026522 | I162: 0.06663 | J162: 118.79 | K162: 7 | L162: 0.03418241405 | M162: 0.03418241405 | N162: 5.252045672e-05 | O162: 5.252045672e-05 | P162: 3 | Q162: 0.3690665014 | R162: 0.3690665014 | S162: 0.001097677545 | T162: 0.001097677545
B163: Marconi | C163: WANNIA_8EB_MARCONI | D163: Urban | E163: 1038 | F163: 2026.020022 | G163: 10356.04455 | H163: 2.829297436 | I163: 4.67639 | J163: 569.89 | K163: 8 | L163: 2.340925428 | M163: 0.1877915323 | N163: 0.008366508755 | O163: 0.00070377412 | P163: 16 | Q163: 0.5622524973 | R163: 0.5622524973 | S163: 0.002720559658 | T163: 0.002720559658
B164: Markell | C164: LATHAM_8+GB_MARKELL | D164: Urban | E164: 1445 | F164: 2735.92569 | G164: 9091.893791 | H164: 3.650466618 | I164: 0.22983 | J164: 1344.43 | K164: 17 | L164: 1.68294547 | M164: 0.1898472705 | N164: 0.008786672409 | O164: 0.001160702093 | P164: 6 | Q164: 0.2432121686 | R164: 0.2432121686 | S164: 0.001097677545 | T164: 0.001097677545
B165: Masson | C165: CITYEA_8+SB_MASSON | D165: Urban | E165: 1176 | F165: 0 | G165: 6229.646624 | H165: 2.89979766 | I165: 0.03152 | J165: 26.35 | K165: 11 | L165: 0.002410688963 | M165: 0.002410688963 | N165: 4.201636537e-05 | O165: 4.201636537e-05 | P165: 2 | Q165: 0.006733122551 | R165: 0.006733122551 | S165: 4.726841105e-05 | T165: 4.726841105e-05
B166: Matthews | C166: WANNIA_8JB_MATTHEWS | D166: Rural short | E166: 1914 | F166: 109745.9938 | G166: 20702.7073 | H166: 4.624048715 | I166: 0.879013 | J166: 6095.94 | K166: 27 | L166: 2.423993008 | M166: 0.1689108658 | N166: 0.01463219924 | O166: 0.005378094768 | P166: 4 | Q166: 0.3523329587 | R166: 0.3523329587 | S166: 0.001071417317 | T166: 0.001071417317
B167: Matthews Feeder Tie | C167: TENNENT_8FB_MATHWTIE | D167: Urban | E167: 0 | F167: 0 | G167: 18.80472336 | H167: 0 | I167: 0 | J167: 0 | K167: 0 | L167: 0 | M167: 0 | N167: 0 | O167: 0 | P167: 0 | Q167: 0 | R167: 0 | S167: 0 | T167: 0
B168: May Maxwell | C168: GILMRE_8+SB_MAYMAXWL | D168: Urban | E168: 818 | F168: 1050.987101 | G168: 7357.214691 | H168: 2.191044272 | I168: 0.00239 | J168: 1.63 | K168: 8 | L168: 0.01789669576 | M168: 0 | N168: 1.575613702e-05 | O168: 0 | P168: 1 | Q168: 0.001186962322 | R168: 0.001186962322 | S168: 5.252045672e-06 | T168: 5.252045672e-06
B169: McCaughey | C169: CIVIC_8+HB_MCCAUGHEY | D169: Urban | E169: 690 | F169: 1124.151633 | G169: 4814.984856 | H169: 4.058195042 | I169: 0.00111 | J169: 499.63 | K169: 9 | L169: 0.02417516623 | M169: 0.02417516623 | N169: 0.0002626022836 | O169: 0.0002626022836 | P169: 5 | Q169: 0.1042373504 | R169: 0.1042373504 | S169: 0.0006092372979 | T169: 0.0006092372979
B170: McGuiness-Bellbird | C170: BELCON_8NB_MCGUINESS | D170: Urban | E170: 1309 | F170: 0 | G170: 9628.73116 | H170: 3.292267407 | I170: 0.08977 | J170: 104.4 | K170: 8 | L170: 0.04543544711 | M170: 0.04543544711 | N170: 0.0001102929591 | O170: 0.0001102929591 | P170: 11 | Q170: 0.06588656282 | R170: 0.06588656282 | S170: 0.0003413829687 | T170: 0.0003413829687
B171: McInnes | C171: WODEN_8+VB_MCINNES | D171: Urban | E171: 1098 | F171: 5147.795195 | G171: 4410.372895 | H171: 2.987439255 | I171: 2.11266 | J171: 450.59 | K171: 17 | L171: 0.5758961741 | M171: 0.1262737961 | N171: 0.01203768868 | O171: 0.006092372979 | P171: 9 | Q171: 0.4287665046 | R171: 0.4287665046 | S171: 0.001843468031 | T171: 0.001843468031
B172: Meacham-Bean | C172: BELCON_8+GB_MCHMBEAN | D172: Rural short | E172: 2318 | F172: 10415.41937 | G172: 16906.08879 | H172: 10.58559427 | I172: 3.937953333 | J172: 223.77 | K172: 23 | L172: 1.530535394 | M172: 1.530535394 | N172: 0.01975294377 | O172: 0.01975294377 | P172: 8 | Q172: 0.3887144043 | R172: 0.3573019191 | S172: 0.002001029401 | T172: 0.001869728259
B173: Melba | C173: LATHAM_8UB_MELBA | D173: Urban | E173: 858 | F173: 5910.742606 | G173: 2971.976012 | H173: 2.674971882 | I173: 1.3349 | J173: 316.74 | K173: 15 | L173: 0.3781866787 | M173: 0.2488314198 | N173: 0.000992636632 | O173: 0.0007300343484 | P173: 6 | Q173: 0.1811062909 | R173: 0.1811062909 | S173: 0.0009401161753 | T173: 0.0009401161753
B174: Mildura | C174: TELOPK_8+PB_MILDURA | D174: Urban | E174: 91 | F174: 0 | G174: 4935.111287 | H174: 2.793103214 | I174: 0 | J174: 0 | K174: 0 | L174: 0 | M174: 0 | N174: 0 | O174: 0 | P174: 0 | Q174: 0 | R174: 0 | S174: 0 | T174: 0
B175: Miller | C175: CIVIC_8+MB_MILLER | D175: Urban | E175: 2200 | F175: 8360.267425 | G175: 3411.085742 | H175: 5.106085781 | I175: 3.54789 | J175: 735.86 | K175: 33 | L175: 0.8537307906 | M175: 0.2840413966 | N175: 0.007016733018 | O175: 0.006223674121 | P175: 15 | Q175: 0.9368021344 | R175: 0.9368021344 | S175: 0.002127078497 | T175: 0.002127078497
B176: Monaro | C176: GILMRE_8HB_MONARO | D176: Urban | E176: 32 | F176: 8691.52736 | G176: 3338.135778 | H176: 7.392392847 | I176: 0.02327 | J176: 0 | K176: 1 | L176: 0.001144945956 | M176: 0.001144945956 | N176: 3.151227403e-05 | O176: 3.151227403e-05 | P176: 0 | Q176: 0 | R176: 0 | S176: 0 | T176: 0
B177: Monash | C177: TELOPK_8GB_MONASH | D177: Urban | E177: 195 | F177: 7300.953453 | G177: 8006.204471 | H177: 4.309680913 | I177: 1.409365986 | J177: 231.82 | K177: 11 | L177: 0.18055185 | M177: 0.172281191 | N177: 0.001323515509 | O177: 0.001255238916 | P177: 8 | Q177: 0.05680612599 | R177: 0.05680612599 | S177: 0.0002836104663 | T177: 0.0002836104663
B178: Morison | C178: THEDRE_8GB_MORISON | D178: Rural short | E178: 1339 | F178: 0 | G178: 10710.77162 | H178: 2.85026089 | I178: 0 | J178: 0.77 | K178: 3 | L178: 0 | M178: 0 | N178: 0 | O178: 0 | P178: 1 | Q178: 0.03249965862 | R178: 0.03249965862 | S178: 0.0001995777355 | T178: 0.0001995777355
B179: Mugga | C179: WANNIA_8PB_MUGGA | D179: Rural short | E179: 43 | F179: 20750.5634 | G179: 1591.773338 | H179: 2.389183499 | I179: 0.006905 | J179: 2.58 | K179: 4 | L179: 0.007794035777 | M179: 0.007794035777 | N179: 2.100818269e-05 | O179: 2.100818269e-05 | P179: 3 | Q179: 0.006869675739 | R179: 0.006869675739 | S179: 6.302454806e-05 | T179: 6.302454806e-05
B180: Mundaring-Russell No 3 | C180: TELOPK_8FB_MUNDRUSS3 | D180: Urban | E180: 639 | F180: 331.1211286 | G180: 7921.037982 | H180: 8.821329238 | I180: 0.00336 | J180: 3.12 | K180: 7 | L180: 0.1219250147 | M180: 0.1219250147 | N180: 0.003655423788 | O180: 0.003655423788 | P180: 3 | Q180: 0.005252045672 | R180: 0.005252045672 | S180: 2.100818269e-05 | T180: 2.100818269e-05
B181: Muresk | C181: WANNIA_8MB_MURESK | D181: Urban | E181: 1290 | F181: 3412.833934 | G181: 7948.581644 | H181: 3.372295364 | I181: 0.56346 | J181: 226.73 | K181: 9 | L181: 0.02523607945 | M181: 0.02523607945 | N181: 0.0004569279734 | O181: 0.0004569279734 | P181: 7 | Q181: 0.2847790464 | R181: 0.2847790464 | S181: 0.001544101428 | T181: 0.001544101428
B182: Newcastle | C182: FYSHWK_8NB_NEWCASTLE | D182: Urban | E182: 38 | F182: 12476.43012 | G182: 4751.977812 | H182: 4.160751103 | I182: 0.008 | J182: 2.77 | K182: 4 | L182: 0.00336130923 | M182: 0.00336130923 | N182: 2.100818269e-05 | O182: 2.100818269e-05 | P182: 1 | Q182: 0.000656505709 | R182: 0.000656505709 | S182: 5.252045672e-06 | T182: 5.252045672e-06
B183: Nicholson | C183: CIVIC_8WB_NICHOLSON | D183: Urban | E183: 412 | F183: 6098.052729 | G183: 3765.754192 | H183: 4.115352719 | I183: 0.00301 | J183: 8.61 | K183: 6 | L183: 0.006676137856 | M183: 0.006676137856 | N183: 5.252045672e-06 | O183: 5.252045672e-06 | P183: 2 | Q183: 0.002489469648 | R183: 0.002489469648 | S183: 2.626022836e-05 | T183: 2.626022836e-05
B184: Nona | C184: GOLDCR_8+VB_NONA | D184: Urban | E184: 2945 | F184: 63.75423185 | G184: 16805.17986 | H184: 6.787583994 | I184: 4.40876 | J184: 1215.33 | K184: 16 | L184: 2.26356227 | M184: 0.2063738826 | N184: 0.03246814634 | O184: 0.004564027689 | P184: 4 | Q184: 0.09603890715 | R184: 0.09603890715 | S184: 0.001643890295 | T184: 0.001643890295
B185: Northbourne | C185: CITYEA_8+RB_NORTHBRN | D185: Urban | E185: 765 | F185: 0 | G185: 4765.852628 | H185: 2.545419948 | I185: 0.03566 | J185: 140.38 | K185: 6 | L185: 0.004112351761 | M185: 0.004112351761 | N185: 4.726841105e-05 | O185: 4.726841105e-05 | P185: 1 | Q185: 0.04216342265 | R185: 0.04216342265 | S185: 0.0001890736442 | T185: 0.0001890736442
B186: NSW Cres | C186: TELOPK_8UB_NSW | D186: Urban | E186: 412 | F186: 0 | G186: 7202.340874 | H186: 5.88723895 | I186: 0.00467 | J186: 16.92 | K186: 5 | L186: 0.002473713511 | M186: 0.002473713511 | N186: 1.050409134e-05 | O186: 1.050409134e-05 | P186: 1 | Q186: 0.001449564605 | R186: 0.001449564605 | S186: 3.151227403e-05 | T186: 3.151227403e-05
B187: O-Loghlen | C187: LATHAM_8LB_O'LOGHLEN | D187: Urban | E187: 1159 | F187: 4059.145333 | G187: 5100.821141 | H187: 3.029349304 | I187: 0.78545 | J187: 2757.596667 | K187: 16 | L187: 0.2674997286 | M187: 0.2674997286 | N187: 0.007174294388 | O187: 0.007174294388 | P187: 16 | Q187: 1.598328799 | R187: 1.598328799 | S187: 0.005399102951 | T187: 0.005399102951
B188: Ovens | C188: TELOPK_8+KB_OVENS | D188: Urban | E188: 827 | F188: 328.2826046 | G188: 3232.279876 | H188: 2.872897723 | I188: 0.22698 | J188: 48.52 | K188: 18 | L188: 0.2739887186 | M188: 0.2739887186 | N188: 0.0008035629878 | O188: 0.0008035629878 | P188: 3 | Q188: 0.01198516822 | R188: 0.01198516822 | S188: 0.0001050409134 | T188: 0.0001050409134
B189: Parliament House No 1 | C189: TELOPK_8+TB_PRLMTHS1 | D189: Urban | E189: 0 | F189: 0 | G189: 4224.957903 | H189: 3.387542992 | I189: 0 | J189: 0 | K189: 0 | L189: 0 | M189: 0 | N189: 0 | O189: 0 | P189: 0 | Q189: 0 | R189: 0 | S189: 0 | T189: 0
B190: Parliament House No 4 | C190: TELOPK_8+GB_PRLMTHS4 | D190: Urban | E190: 1 | F190: 0 | G190: 3589.451055 | H190: 4.149645347 | I190: 0 | J190: 0.77 | K190: 0 | L190: 0 | M190: 0 | N190: 0 | O190: 0 | P190: 1 | Q190: 0.002300396004 | R190: 0.002300396004 | S190: 5.252045672e-06 | T190: 5.252045672e-06
B191: Paterick | C191: LATHAM_8NB_PATERICK | D191: Urban | E191: 1236 | F191: 2068.342788 | G191: 7258.376823 | H191: 4.189650314 | I191: 3.02947 | J191: 611.25 | K191: 21 | L191: 1.692844613 | M191: 0.06151563534 | N191: 0.01351351351 | O191: 0.0005147004758 | P191: 9 | Q191: 0.4693333053 | R191: 0.4693333053 | S191: 0.002384428735 | T191: 0.002384428735
B192: Penton | C192: GILMRE_8+NB_PENTON | D192: Urban | E192: 349 | F192: 0 | G192: 5497.230448 | H192: 1.390836798 | I192: 0.12544 | J192: 0 | K192: 2 | L192: 0.008571338536 | M192: 0.008571338536 | N192: 5.777250239e-05 | O192: 5.777250239e-05 | P192: 0 | Q192: 0 | R192: 0 | S192: 0 | T192: 0
B193: Petrie | C193: CITYEA_8JB_PETRIE | D193: Urban | E193: 239 | F193: 0 | G193: 3293.970243 | H193: 3.160815914 | I193: 0 | J193: 3.24 | K193: 0 | L193: 0 | M193: 0 | N193: 0 | O193: 0 | P193: 1 | Q193: 0.01578764929 | R193: 0.01578764929 | S193: 9.453682209e-05 | T193: 9.453682209e-05
B194: Phillip North | C194: WODEN_8+MB_PHLIPNTH | D194: Urban | E194: 157 | F194: 337.1374477 | G194: 5953.929787 | H194: 4.00103562 | I194: 0.02454 | J194: 25.37 | K194: 4 | L194: 0.007247823027 | M194: 0.007247823027 | N194: 8.403273075e-05 | O194: 8.403273075e-05 | P194: 5 | Q194: 0.02215838069 | R194: 0.02215838069 | S194: 6.827659373e-05 | T194: 6.827659373e-05
B195: Phillip South | C195: WODEN_8KB_PHLIPSTH | D195: Urban | E195: 137 | F195: 0 | G195: 3151.894362 | H195: 1.794749244 | I195: 0 | J195: 0 | K195: 0 | L195: 0 | M195: 0 | N195: 0 | O195: 0 | P195: 0 | Q195: 0 | R195: 0 | S195: 0 | T195: 0
B196: Pitman-Rowland | C196: WANNIA_8DB_ROW-PIT | D196: Urban | E196: 289 | F196: 0 | G196: 16518.97619 | H196: 6.515960022 | I196: 0.0319 | J196: 54.67 | K196: 9 | L196: 0.04968382685 | M196: 0.04968382685 | N196: 0.0001155450048 | O196: 0.0001155450048 | P196: 1 | Q196: 0.008088150335 | R196: 0.008088150335 | S196: 0.0001155450048 | T196: 0.0001155450048
B197: Power House | C197: TELOPK_8+VB_POWERHSE | D197: Urban | E197: 1003 | F197: 4817.291356 | G197: 3188.914106 | H197: 3.305278535 | I197: 0.017 | J197: 93.49 | K197: 18 | L197: 0.02752071932 | M197: 0.02049873426 | N197: 4.201636537e-05 | O197: 3.67643197e-05 | P197: 1 | Q197: 0.04257308222 | R197: 0.04257308222 | S197: 0.0002205859182 | T197: 0.0002205859182
B198: Powers | C198: LATHAM_8MB_POWERS | D198: Urban | E198: 1264 | F198: 3596.170441 | G198: 5228.729758 | H198: 4.544027736 | I198: 2.97125 | J198: 927.11 | K198: 26 | L198: 1.249020493 | M198: 0.07356540372 | N198: 0.007767775549 | O198: 0.0008508313988 | P198: 12 | Q198: 0.7872658901 | R198: 0.7872658901 | S198: 0.002872868982 | T198: 0.002872868982
B199: Queen Victoria Terrace | C199: TELOPK_8JB_QUEENVICT | D199: Urban | E199: 70 | F199: 0 | G199: 3183.551767 | H199: 3.345627421 | I199: 0 | J199: 13.6 | K199: 0 | L199: 0 | M199: 0 | N199: 0 | O199: 0 | P199: 3 | Q199: 0.00797260533 | R199: 0.00797260533 | S199: 5.777250239e-05 | T199: 5.777250239e-05
B200: Quick | C200: CITYEA_8GB_QUICK | D200: Urban | E200: 1105 | F200: 0 | G200: 4492.760568 | H200: 3.197968345 | I200: 0.14966 | J200: 828.4775 | K200: 16 | L200: 0.08096553608 | M200: 0.08096553608 | N200: 0.001507337108 | O200: 0.001507337108 | P200: 3 | Q200: 0.3209840233 | R200: 0.3209840233 | S200: 0.001418052331 | T200: 0.001418052331
B201: Reid | C201: WANNIA_8+QB_REID | D201: Rural short | E201: 1041 | F201: 66285.8441 | G201: 11831.68536 | H201: 2.962672906 | I201: 0.20976 | J201: 1602.0025 | K201: 24 | L201: 0.4788543012 | M201: 0.4552883723 | N201: 0.006985220743 | O201: 0.006911692104 | P201: 24 | Q201: 1.182492831 | R201: 1.182492831 | S201: 0.005477883636 | T201: 0.005477883636
B202: Riley | C202: GOLDCR_8+TB_RILEY | D202: Urban | E202: 1006 | F202: 0 | G202: 5961.013177 | H202: 5.258417873 | I202: 3.31495 | J202: 149.34 | K202: 12 | L202: 0.9867123245 | M202: 0.9867123245 | N202: 0.01313536623 | O202: 0.01313536623 | P202: 2 | Q202: 0.07707377023 | R202: 0.07707377023 | S202: 0.0008455793532 | T202: 0.0008455793532
B203: Riverside | C203: TELOPK_8WB_RIVERSIDE | D203: Urban | E203: 633 | F203: 0 | G203: 6987.02841 | H203: 3.349437874 | I203: 0.00175 | J203: 0 | K203: 4 | L203: 0.0008560834445 | M203: 0.0008560834445 | N203: 5.252045672e-06 | O203: 5.252045672e-06 | P203: 0 | Q203: 0 | R203: 0 | S203: 0 | T203: 0
B204: Rossman | C204: GILMRE_8+TB_ROSSMAN | D204: Rural short | E204: 715 | F204: 2111.773087 | G204: 6792.447376 | H204: 2.038623801 | I204: 0.02928 | J204: 0 | K204: 5 | L204: 0.02193254273 | M204: 0.02193254273 | N204: 9.978886776e-05 | O204: 9.978886776e-05 | P204: 0 | Q204: 0 | R204: 0 | S204: 0 | T204: 0
... 45 more rows

Sheet 3.6.9 Network-reliability
B1: =(LOOKUP(dms_Model,dms_Model_List,dms_Worksheet_List)) -> ANNUAL REPORTING STATEMENT
B2: =dms_TradingName -> ActewAGL Distribution
B3: =CONCATENATE("Annual Reporting RIN Response ",CRY) -> Annual Reporting RIN Response 2016-17
B4: 3.6 QUALITY OF SERVICES
B7: 3.6.9 - NETWORK FEEDER RELIABILITY - PLANNED OUTAGES
C8: =CRY -> 2016-17
B9: 3.6.9.1 - PLANNED MINUTES OFF SUPPLY (SAIDI)
B10: =INDEX(dms_FeederName_1,MATCH(dms_TradingName,dms_TradingName_List)) -> CBD
B11: =INDEX(dms_FeederName_2,MATCH(dms_TradingName,dms_TradingName_List)) -> Urban | C11: 44.79955479
B12: =INDEX(dms_FeederName_3,MATCH(dms_TradingName,dms_TradingName_List)) -> Short rural | C12: 39.70117507
B13: =INDEX(dms_FeederName_4,MATCH(dms_TradingName,dms_TradingName_List)) -> Long rural
B14: =IF((INDEX(dms_FeederName_5,MATCH(dms_TradingName,dms_TradingName_List))=0),"",(INDEX(dms_FeederName_5,MATCH(dms_TradingName,dms_TradingName_List)))) -> 
C16: =CRY -> 2016-17
B17: 3.6.9.2 - PLANNED INTERRUPTIONS TO SUPPLY (SAIFI)
B18: =INDEX(dms_FeederName_1,MATCH(dms_TradingName,dms_TradingName_List)) -> CBD
B19: =INDEX(dms_FeederName_2,MATCH(dms_TradingName,dms_TradingName_List)) -> Urban | C19: 0.2147334679
B20: =INDEX(dms_FeederName_3,MATCH(dms_TradingName,dms_TradingName_List)) -> Short rural | C20: 0.1898641874
B21: =INDEX(dms_FeederName_4,MATCH(dms_TradingName,dms_TradingName_List)) -> Long rural
B22: =IF((INDEX(dms_FeederName_5,MATCH(dms_TradingName,dms_TradingName_List))=0),"",(INDEX(dms_FeederName_5,MATCH(dms_TradingName,dms_TradingName_List)))) -> 

Sheet 4.1 Public lighting
B1: =(LOOKUP(dms_Model,dms_Model_List,dms_Worksheet_List)) -> ANNUAL REPORTING STATEMENT
B2: =dms_TradingName -> ActewAGL Distribution
B3: =CONCATENATE("Annual Reporting RIN Response ",CRY) -> Annual Reporting RIN Response 2016-17
B4: 4.1 PUBLIC LIGHTING
B6: Tables 4.1.1 - 4.1.3 deliberately omitted.
B8: 4.1.4 - PUBLIC LIGHTING METRICS BY TARIFF
C9: Number of Lights | D9: Public Lighting Revenue
B10: Tariff categories | C10: 0's | D10: $0's, nominal
B51: To enter further tariff categories - please insert new lines above this line.
B52: Total | C52: =SUM(C11:C50) -> 0 | D52: =SUM(D11:D50) -> 0

Sheet 6.2 STPIS Reliability
B1: =(LOOKUP(dms_Model,dms_Model_List,dms_Worksheet_List)) -> ANNUAL REPORTING STATEMENT
B2: =dms_TradingName -> ActewAGL Distribution
B3: =CONCATENATE("Annual Reporting RIN Response ",CRY) -> Annual Reporting RIN Response 2016-17
B4: 6.2 RELIABILITY AND CUSTOMER SERVICE PERFORMANCE
B6: Did the MAIFI parameter of the STPIS apply during the period? NB:This flag is set from the response on worksheet 3.6.8 Network feeders | D6: =dms_MAIFI_Flag -> No
B9: 6.2.1 - UNPLANNED MINUTES OFF SUPPLY (SAIDI)
D10: =CRY -> 2016-17
B11: Total sustained minutes off supply | C11: =INDEX(dms_FeederName_1,MATCH(dms_TradingName,dms_TradingName_List)) -> CBD
C12: =INDEX(dms_FeederName_2,MATCH(dms_TradingName,dms_TradingName_List)) -> Urban | D12: 39.1148417
C13: =INDEX(dms_FeederName_3,MATCH(dms_TradingName,dms_TradingName_List)) -> Short rural | D13: 42.74093215
C14: =INDEX(dms_FeederName_4,MATCH(dms_TradingName,dms_TradingName_List)) -> Long rural
C15: =IF((INDEX(dms_FeederName_5,MATCH(dms_TradingName,dms_TradingName_List))=0),"",(INDEX(dms_FeederName_5,MATCH(dms_TradingName,dms_TradingName_List)))) -> 
C16: Whole Network | D16: 39.53271377
B17: Total of excluded events* *see 3.3 of STPIS | C17: =INDEX(dms_FeederName_1,MATCH(dms_TradingName,dms_TradingName_List)) -> CBD
C18: =INDEX(dms_FeederName_2,MATCH(dms_TradingName,dms_TradingName_List)) -> Urban | D18: 0
C19: =INDEX(dms_FeederName_3,MATCH(dms_TradingName,dms_TradingName_List)) -> Short rural | D19: 0
C20: =INDEX(dms_FeederName_4,MATCH(dms_TradingName,dms_TradingName_List)) -> Long rural
C21: =IF((INDEX(dms_FeederName_5,MATCH(dms_TradingName,dms_TradingName_List))=0),"",(INDEX(dms_FeederName_5,MATCH(dms_TradingName,dms_TradingName_List)))) -> 
C22: Whole Network | D22: 0
B23: Total sustained minutes off supply after removing excluded events | C23: =INDEX(dms_FeederName_1,MATCH(dms_TradingName,dms_TradingName_List)) -> CBD
C24: =INDEX(dms_FeederName_2,MATCH(dms_TradingName,dms_TradingName_List)) -> Urban | D24: 39.1148417
C25: =INDEX(dms_FeederName_3,MATCH(dms_TradingName,dms_TradingName_List)) -> Short rural | D25: 42.74093215
C26: =INDEX(dms_FeederName_4,MATCH(dms_TradingName,dms_TradingName_List)) -> Long rural
C27: =IF((INDEX(dms_FeederName_5,MATCH(dms_TradingName,dms_TradingName_List))=0),"",(INDEX(dms_FeederName_5,MATCH(dms_TradingName,dms_TradingName_List)))) -> 
C28: Whole Network | D28: 39.53271377
B31: 6.2.2 - UNPLANNED INTERRUPTIONS TO SUPPLY (SAIFI)
D32: =CRY -> 2016-17
B33: Total sustained interruptions | C33: =INDEX(dms_FeederName_1,MATCH(dms_TradingName,dms_TradingName_List)) -> CBD
C34: =INDEX(dms_FeederName_2,MATCH(dms_TradingName,dms_TradingName_List)) -> Urban | D34: 0.6687403538
C35: =INDEX(dms_FeederName_3,MATCH(dms_TradingName,dms_TradingName_List)) -> Short rural | D35: 0.8517455109
C36: =INDEX(dms_FeederName_4,MATCH(dms_TradingName,dms_TradingName_List)) -> Long rural
C37: =IF((INDEX(dms_FeederName_5,MATCH(dms_TradingName,dms_TradingName_List))=0),"",(INDEX(dms_FeederName_5,MATCH(dms_TradingName,dms_TradingName_List)))) -> 
C38: Whole Network | D38: 0.6898299388
B39: Total of excluded events* *see 3.3 of STPIS | C39: =INDEX(dms_FeederName_1,MATCH(dms_TradingName,dms_TradingName_List)) -> CBD
C40: =INDEX(dms_FeederName_2,MATCH(dms_TradingName,dms_TradingName_List)) -> Urban | D40: 0
C41: =INDEX(dms_FeederName_3,MATCH(dms_TradingName,dms_TradingName_List)) -> Short rural | D41: 0
C42: =INDEX(dms_FeederName_4,MATCH(dms_TradingName,dms_TradingName_List)) -> Long rural
C43: =IF((INDEX(dms_FeederName_5,MATCH(dms_TradingName,dms_TradingName_List))=0),"",(INDEX(dms_FeederName_5,MATCH(dms_TradingName,dms_TradingName_List)))) -> 
C44: Whole Network | D44: 0
B45: Total sustained interruptions after removing excluded events | C45: =INDEX(dms_FeederName_1,MATCH(dms_TradingName,dms_TradingName_List)) -> CBD
C46: =INDEX(dms_FeederName_2,MATCH(dms_TradingName,dms_TradingName_List)) -> Urban | D46: 0.6687403538
C47: =INDEX(dms_FeederName_3,MATCH(dms_TradingName,dms_TradingName_List)) -> Short rural | D47: 0.8517455109
C48: =INDEX(dms_FeederName_4,MATCH(dms_TradingName,dms_TradingName_List)) -> Long rural
C49: =IF((INDEX(dms_FeederName_5,MATCH(dms_TradingName,dms_TradingName_List))=0),"",(INDEX(dms_FeederName_5,MATCH(dms_TradingName,dms_TradingName_List)))) -> 
C50: Whole Network | D50: 0.6898299388
B53: 6.2.3 - UNPLANNED MOMENTARY INTERRUPTIONS TO SUPPLY (MAIFI)
D54: =CRY -> 2016-17
B55: Total momentary interruptions | C55: =INDEX(dms_FeederName_1,MATCH(dms_TradingName,dms_TradingName_List)) -> CBD
C56: =INDEX(dms_FeederName_2,MATCH(dms_TradingName,dms_TradingName_List)) -> Urban
C57: =INDEX(dms_FeederName_3,MATCH(dms_TradingName,dms_TradingName_List)) -> Short rural
C58: =INDEX(dms_FeederName_4,MATCH(dms_TradingName,dms_TradingName_List)) -> Long rural
C59: =IF((INDEX(dms_FeederName_5,MATCH(dms_TradingName,dms_TradingName_List))=0),"",(INDEX(dms_FeederName_5,MATCH(dms_TradingName,dms_TradingName_List)))) -> 
C60: Whole Network
B61: Total of excluded events* *see 3.3 of STPIS | C61: =INDEX(dms_FeederName_1,MATCH(dms_TradingName,dms_TradingName_List)) -> CBD
C62: =INDEX(dms_FeederName_2,MATCH(dms_TradingName,dms_TradingName_List)) -> Urban
C63: =INDEX(dms_FeederName_3,MATCH(dms_TradingName,dms_TradingName_List)) -> Short rural
C64: =INDEX(dms_FeederName_4,MATCH(dms_TradingName,dms_TradingName_List)) -> Long rural
C65: =IF((INDEX(dms_FeederName_5,MATCH(dms_TradingName,dms_TradingName_List))=0),"",(INDEX(dms_FeederName_5,MATCH(dms_TradingName,dms_TradingName_List)))) -> 
C66: Whole Network
B67: Total momentary interruptions after removing excluded events | C67: =INDEX(dms_FeederName_1,MATCH(dms_TradingName,dms_TradingName_List)) -> CBD
C68: =INDEX(dms_FeederName_2,MATCH(dms_TradingName,dms_TradingName_List)) -> Urban
C69: =INDEX(dms_FeederName_3,MATCH(dms_TradingName,dms_TradingName_List)) -> Short rural
C70: =INDEX(dms_FeederName_4,MATCH(dms_TradingName,dms_TradingName_List)) -> Long rural
C71: =IF((INDEX(dms_FeederName_5,MATCH(dms_TradingName,dms_TradingName_List))=0),"",(INDEX(dms_FeederName_5,MATCH(dms_TradingName,dms_TradingName_List)))) -> 
C72: Whole Network
B75: 6.2.4 - DISTRIBUTION CUSTOMER NUMBERS
D76: =CRY -> 2016-17
B77: Customer numbers at the start of the period | C77: =INDEX(dms_FeederName_1,MATCH(dms_TradingName,dms_TradingName_List)) -> CBD
C78: =INDEX(dms_FeederName_2,MATCH(dms_TradingName,dms_TradingName_List)) -> Urban | D78: 164900
C79: =INDEX(dms_FeederName_3,MATCH(dms_TradingName,dms_TradingName_List)) -> Short rural | D79: 21479
C80: =INDEX(dms_FeederName_4,MATCH(dms_TradingName,dms_TradingName_List)) -> Long rural
C81: =IF((INDEX(dms_FeederName_5,MATCH(dms_TradingName,dms_TradingName_List))=0),"",(INDEX(dms_FeederName_5,MATCH(dms_TradingName,dms_TradingName_List)))) -> 
C82: Whole Network | D82: 186379
B83: Customer numbers at the end of the period | C83: =INDEX(dms_FeederName_1,MATCH(dms_TradingName,dms_TradingName_List)) -> CBD
C84: =INDEX(dms_FeederName_2,MATCH(dms_TradingName,dms_TradingName_List)) -> Urban | D84: 172018
C85: =INDEX(dms_FeederName_3,MATCH(dms_TradingName,dms_TradingName_List)) -> Short rural | D85: 22406
C86: =INDEX(dms_FeederName_4,MATCH(dms_TradingName,dms_TradingName_List)) -> Long rural | D86: 0
C87: =IF((INDEX(dms_FeederName_5,MATCH(dms_TradingName,dms_TradingName_List))=0),"",(INDEX(dms_FeederName_5,MATCH(dms_TradingName,dms_TradingName_List)))) -> 
C88: Whole Network | D88: 194424
B89: Average customer numbers | C89: =INDEX(dms_FeederName_1,MATCH(dms_TradingName,dms_TradingName_List)) -> CBD | D89: =ROUND(SUM(D77+D83)/2,0) -> 0
C90: =INDEX(dms_FeederName_2,MATCH(dms_TradingName,dms_TradingName_List)) -> Urban | D90: =ROUND(SUM(D78+D84)/2,0) -> 168459
C91: =INDEX(dms_FeederName_3,MATCH(dms_TradingName,dms_TradingName_List)) -> Short rural | D91: =ROUND(SUM(D79+D85)/2,0) -> 21943
C92: =INDEX(dms_FeederName_4,MATCH(dms_TradingName,dms_TradingName_List)) -> Long rural | D92: =ROUND(SUM(D80+D86)/2,0) -> 0
C93: =IF((INDEX(dms_FeederName_5,MATCH(dms_TradingName,dms_TradingName_List))=0),"",(INDEX(dms_FeederName_5,MATCH(dms_TradingName,dms_TradingName_List)))) ->  | D93: =ROUND(SUM(D81+D87)/2,0) -> 0
C94: Whole Network | D94: 190402

Sheet 6.6 STPIS Customer Service
B1: =(LOOKUP(dms_Model,dms_Model_List,dms_Worksheet_List)) -> ANNUAL REPORTING STATEMENT
B2: =dms_TradingName -> ActewAGL Distribution
B3: =CONCATENATE("Annual Reporting RIN Response ",CRY) -> Annual Reporting RIN Response 2016-17
B4: 6.6 STPIS CUSTOMER SERVICE
B7: 6.6.1 - TELEPHONE ANSWERING
C8: Number of calls after removing excluded events | D8: Total number of calls
C9: =CRY -> 2016-17 | D9: =CRY -> 2016-17
B10: Number of calls received | C10: 25265 | D10: 29589
B11: Number of calls answered within 30 seconds | C11: 18798
B12: Percentage of calls answered within 30 seconds | C12: =C11/C10 -> 0.7440332476

Sheet 6.7 STPIS Daily Performance
B1: =(LOOKUP(dms_Model,dms_Model_List,dms_Worksheet_List)) -> ANNUAL REPORTING STATEMENT | I1: =CONCATENATE(IF(LEN(CRY)=4,"1-Jan-","1-Jul-"),LEFT(CRY,4)) -> 1-Jul-2016
B2: =dms_TradingName -> ActewAGL Distribution
B3: =CONCATENATE("Annual Reporting RIN Response ",CRY) -> Annual Reporting RIN Response 2016-17
B4: 6.7 STPIS DAILY PERFORMANCE
B7: Did the MAIFI parameter of the STPIS apply during the period? This flag is set from the response on worksheet 3.6.8 Network feeders | G7: =dms_MAIFI_Flag -> No
B9: The excluded events to be removed from the data refer only to events listed in clause 3.3(a) of the STPIS, with respect to reliability data, and in clause 5.4 of the STPIS with respect to customer service parameters. *Customer service information must be reported as per the definitions in the STPIS, that is excluding: • calls to payment lines and automated interactive services • calls abandoned by the customer within 30 seconds of the call being queued for response by a human operator (where the time in which a telephone call is abandoned is not measured, then an estimate of the number of calls abandoned within 30 seconds will be determined by taking 20 per cent of all calls abandoned).
B11: 6.7.1 - DAILY PERFORMANCE DATA - UNPLANNED
B12: Date | C12: Customer service* | E12: MAIFI
C13: Number of calls received (after removing excluded events) | D13: Number of calls answered in 30 seconds (after removing excluded events) | E13: =INDEX(dms_FeederName_1,MATCH(dms_TradingName,dms_TradingName_List)) -> CBD | G13: =INDEX(dms_FeederName_2,MATCH(dms_TradingName,dms_TradingName_List)) -> Urban | I13: =INDEX(dms_FeederName_3,MATCH(dms_TradingName,dms_TradingName_List)) -> Short rural | K13: =INDEX(dms_FeederName_4,MATCH(dms_TradingName,dms_TradingName_List)) -> Long rural | M13: =IF((INDEX(dms_FeederName_5,MATCH(dms_TradingName,dms_TradingName_List))=0),"Network",(INDEX(dms_FeederName_5,MATCH(dms_TradingName,dms_TradingName_List)))) -> Network | O13: Network
E14: All events | F14: After removing excluded events | G14: All events | H14: After removing excluded events | I14: All events | J14: After removing excluded events | K14: All events | L14: After removing excluded events | M14: All events | N14: After removing excluded events | O14: All events | P14: After removing excluded events
B15: =CONCATENATE(IF(LEN(CRY)=4,"1-Jan-","1-Jul-"),LEFT(CRY,4)) -> 1-Jul-2016 | C15: 81 | D15: 73
B16: =B15+1 -> 2016-07-02 | C16: 40 | D16: 33
B17: 2016-07-03 | C17: 30 | D17: 24
B18: 2016-07-04 | C18: 65 | D18: 58
B19: 2016-07-05 | C19: 64 | D19: 61
B20: 2016-07-06 | C20: 51 | D20: 44
B21: 2016-07-07 | C21: 75 | D21: 63
B22: 2016-07-08 | C22: 47 | D22: 43
B23: 2016-07-09 | C23: 33 | D23: 30
B24: 2016-07-10 | C24: 70 | D24: 32
B25: 2016-07-11 | C25: 43 | D25: 43
B26: 2016-07-12 | C26: 0 | D26: 0
B27: 2016-07-13 | C27: 0 | D27: 0
B28: 2016-07-14 | C28: 127 | D28: 87
B29: 2016-07-15 | C29: 85 | D29: 71
B30: 2016-07-16 | C30: 22 | D30: 20
B31: 2016-07-17 | C31: 21 | D31: 20
B32: 2016-07-18 | C32: 117 | D32: 94
B33: 2016-07-19 | C33: 134 | D33: 67
B34: 2016-07-20 | C34: 64 | D34: 58
B35: 2016-07-21 | C35: 93 | D35: 85
B36: 2016-07-22 | C36: 156 | D36: 91
B37: 2016-07-23 | C37: 249 | D37: 112
B38: 2016-07-24 | C38: 54 | D38: 47
B39: 2016-07-25 | C39: 91 | D39: 71
B40: 2016-07-26 | C40: 66 | D40: 58
B41: 2016-07-27 | C41: 50 | D41: 45
B42: 2016-07-28 | C42: 54 | D42: 53
B43: 2016-07-29 | C43: 77 | D43: 58
B44: 2016-07-30 | C44: 34 | D44: 26
B45: 2016-07-31 | C45: 23 | D45: 19
B46: 2016-08-01 | C46: 46 | D46: 44
B47: 2016-08-02 | C47: 61 | D47: 58
B48: 2016-08-03 | C48: 76 | D48: 72
B49: 2016-08-04 | C49: 61 | D49: 59
B50: 2016-08-05 | C50: 76 | D50: 65
B51: 2016-08-06 | C51: 41 | D51: 34
B52: 2016-08-07 | C52: 12 | D52: 8
B53: 2016-08-08 | C53: 74 | D53: 70
B54: 2016-08-09 | C54: 70 | D54: 65
B55: 2016-08-10 | C55: 78 | D55: 56
B56: 2016-08-11 | C56: 74 | D56: 74
B57: 2016-08-12 | C57: 62 | D57: 60
B58: 2016-08-13 | C58: 34 | D58: 26
B59: 2016-08-14 | C59: 46 | D59: 33
B60: 2016-08-15 | C60: 84 | D60: 73
B61: 2016-08-16 | C61: 64 | D61: 58
B62: 2016-08-17 | C62: 258 | D62: 85
B63: 2016-08-18 | C63: 71 | D63: 65
B64: 2016-08-19 | C64: 126 | D64: 84
B65: 2016-08-20 | C65: 27 | D65: 26
B66: 2016-08-21 | C66: 28 | D66: 27
B67: 2016-08-22 | C67: 63 | D67: 54
B68: 2016-08-23 | C68: 59 | D68: 52
B69: 2016-08-24 | C69: 178 | D69: 40
B70: 2016-08-25 | C70: 148 | D70: 110
B71: 2016-08-26 | C71: 52 | D71: 37
B72: 2016-08-27 | C72: 47 | D72: 32
B73: 2016-08-28 | C73: 26 | D73: 24
B74: 2016-08-29 | C74: 72 | D74: 65
B75: 2016-08-30 | C75: 40 | D75: 37
B76: 2016-08-31 | C76: 52 | D76: 48
B77: 2016-09-01 | C77: 41 | D77: 38
B78: 2016-09-02 | C78: 28 | D78: 24
B79: 2016-09-03 | C79: 34 | D79: 32
B80: =B79+1 -> 2016-09-04 | C80: 23 | D80: 21
B81: 2016-09-05 | C81: 58 | D81: 43
B82: 2016-09-06 | C82: 51 | D82: 35
B83: 2016-09-07 | C83: 56 | D83: 53
B84: 2016-09-08 | C84: 66 | D84: 50
B85: 2016-09-09 | C85: 35 | D85: 34
B86: 2016-09-10 | C86: 35 | D86: 34
B87: 2016-09-11 | C87: 18 | D87: 17
B88: 2016-09-12 | C88: 57 | D88: 47
B89: 2016-09-13 | C89: 54 | D89: 46
B90: 2016-09-14 | C90: 73 | D90: 59
B91: 2016-09-15 | C91: 43 | D91: 38
B92: 2016-09-16 | C92: 56 | D92: 52
B93: 2016-09-17 | C93: 40 | D93: 31
B94: 2016-09-18 | C94: 36 | D94: 33
B95: 2016-09-19 | C95: 47 | D95: 45
B96: 2016-09-20 | C96: 58 | D96: 55
B97: 2016-09-21 | C97: 37 | D97: 32
B98: 2016-09-22 | C98: 60 | D98: 56
B99: 2016-09-23 | C99: 42 | D99: 38
B100: 2016-09-24 | C100: 28 | D100: 26
B101: 2016-09-25 | C101: 16 | D101: 12
B102: 2016-09-26 | C102: 25 | D102: 18
B103: 2016-09-27 | C103: 51 | D103: 48
B104: 2016-09-28 | C104: 40 | D104: 37
B105: 2016-09-29 | C105: 64 | D105: 52
B106: 2016-09-30 | C106: 59 | D106: 53
B107: 2016-10-01 | C107: 33 | D107: 31
B108: 2016-10-02 | C108: 20 | D108: 16
B109: 2016-10-03 | C109: 168 | D109: 72
B110: 2016-10-04 | C110: 299 | D110: 150
B111: 2016-10-05 | C111: 122 | D111: 104
B112: 2016-10-06 | C112: 80 | D112: 65
B113: 2016-10-07 | C113: 37 | D113: 35
B114: 2016-10-08 | C114: 37 | D114: 30
B115: 2016-10-09 | C115: 28 | D115: 26
B116: 2016-10-10 | C116: 63 | D116: 60
B117: 2016-10-11 | C117: 40 | D117: 38
B118: 2016-10-12 | C118: 50 | D118: 49
B119: 2016-10-13 | C119: 77 | D119: 73
B120: 2016-10-14 | C120: 103 | D120: 52
B121: 2016-10-15 | C121: 58 | D121: 41
B122: 2016-10-16 | C122: 53 | D122: 32
B123: 2016-10-17 | C123: 60 | D123: 59
B124: 2016-10-18 | C124: 61 | D124: 58
B125: 2016-10-19 | C125: 53 | D125: 46
B126: 2016-10-20 | C126: 49 | D126: 46
B127: 2016-10-21 | C127: 61 | D127: 55
B128: 2016-10-22 | C128: 23 | D128: 19
B129: 2016-10-23 | C129: 21 | D129: 17
B130: 2016-10-24 | C130: 68 | D130: 54
B131: 2016-10-25 | C131: 318 | D131: 83
B132: 2016-10-26 | C132: 69 | D132: 61
B133: 2016-10-27 | C133: 46 | D133: 44
B134: 2016-10-28 | C134: 40 | D134: 35
B135: 2016-10-29 | C135: 33 | D135: 30
B136: 2016-10-30 | C136: 18 | D136: 16
B137: 2016-10-31 | C137: 58 | D137: 48
B138: 2016-11-01 | C138: 62 | D138: 59
B139: 2016-11-02 | C139: 73 | D139: 55
B140: 2016-11-03 | C140: 53 | D140: 46
B141: 2016-11-04 | C141: 84 | D141: 55
B142: 2016-11-05 | C142: 39 | D142: 35
B143: 2016-11-06 | C143: 21 | D143: 15
B144: =B143+1 -> 2016-11-07 | C144: 58 | D144: 52
B145: 2016-11-08 | C145: 106 | D145: 84
B146: 2016-11-09 | C146: 77 | D146: 66
B147: 2016-11-10 | C147: 64 | D147: 57
B148: 2016-11-11 | C148: 58 | D148: 51
B149: 2016-11-12 | C149: 80 | D149: 48
B150: 2016-11-13 | C150: 143 | D150: 32
B151: 2016-11-14 | C151: 95 | D151: 74
B152: 2016-11-15 | C152: 62 | D152: 59
B153: 2016-11-16 | C153: 83 | D153: 76
B154: 2016-11-17 | C154: 51 | D154: 46
B155: 2016-11-18 | C155: 50 | D155: 45
B156: 2016-11-19 | C156: 67 | D156: 29
B157: 2016-11-20 | C157: 52 | D157: 34
B158: 2016-11-21 | C158: 95 | D158: 81
B159: 2016-11-22 | C159: 56 | D159: 52
B160: 2016-11-23 | C160: 160 | D160: 107
B161: 2016-11-24 | C161: 93 | D161: 64
B162: 2016-11-25 | C162: 62 | D162: 58
B163: 2016-11-26 | C163: 34 | D163: 21
B164: 2016-11-27 | C164: 28 | D164: 19
B165: 2016-11-28 | C165: 73 | D165: 69
B166: 2016-11-29 | C166: 55 | D166: 47
B167: 2016-11-30 | C167: 51 | D167: 46
B168: 2016-12-01 | C168: 57 | D168: 51
B169: 2016-12-02 | C169: 92 | D169: 84
B170: 2016-12-03 | C170: 25 | D170: 23
B171: 2016-12-04 | C171: 41 | D171: 14
B172: 2016-12-05 | C172: 73 | D172: 53
B173: 2016-12-06 | C173: 71 | D173: 61
B174: 2016-12-07 | C174: 137 | D174: 105
B175: 2016-12-08 | C175: 242 | D175: 136
B176: 2016-12-09 | C176: 100 | D176: 81
B177: 2016-12-10 | C177: 24 | D177: 20
B178: 2016-12-11 | C178: 23 | D178: 19
B179: 2016-12-12 | C179: 87 | D179: 61
B180: 2016-12-13 | C180: 67 | D180: 61
B181: 2016-12-14 | C181: 54 | D181: 52
B182: 2016-12-15 | C182: 32 | D182: 30
B183: 2016-12-16 | C183: 33 | D183: 31
B184: 2016-12-17 | C184: 179 | D184: 71
B185: 2016-12-18 | C185: 19 | D185: 17
B186: 2016-12-19 | C186: 43 | D186: 43
B187: 2016-12-20 | C187: 54 | D187: 50
B188: 2016-12-21 | C188: 29 | D188: 29
B189: 2016-12-22 | C189: 68 | D189: 33
B190: 2016-12-23 | C190: 57 | D190: 46
B191: 2016-12-24 | C191: 56 | D191: 44
B192: 2016-12-25 | C192: 26 | D192: 22
B193: 2016-12-26 | C193: 33 | D193: 27
B194: 2016-12-27 | C194: 27 | D194: 25
B195: 2016-12-28 | C195: 36 | D195: 36
B196: 2016-12-29 | C196: 11 | D196: 11
B197: 2016-12-30 | C197: 26 | D197: 25
B198: 2016-12-31 | C198: 35 | D198: 34
B199: 2017-01-01 | C199: 31 | D199: 19
B200: 2017-01-02 | C200: 35 | D200: 35
B201: 2017-01-03 | C201: 28 | D201: 25
B202: 2017-01-04 | C202: 19 | D202: 18
B203: 2017-01-05 | C203: 58 | D203: 52
B204: 2017-01-06 | C204: 38 | D204: 36
... 176 more rows

Sheet 6.8 STPIS Exclusions
B1: =(LOOKUP(dms_Model,dms_Model_List,dms_Worksheet_List)) -> ANNUAL REPORTING STATEMENT
B2: =dms_TradingName -> ActewAGL Distribution
B3: =CONCATENATE("Annual Reporting RIN Response ",CRY) -> Annual Reporting RIN Response 2016-17
B4: 6.8 STPIS EXCLUSIONS
B7: =CONCATENATE("This information is collected to inform the application of the STPIS to ",dms_TradingName," in future regulatory periods. The information is also collected to monitor network performance, and may be used in performance reports.") -> This information is collected to inform the application of the STPIS to ActewAGL Distribution in future regulatory periods. The information is also collected to monitor network performance, and may be used in performance reports.
B9: 6.8.1 - STPIS EXCLUSIONS
B10: Date of event | C10: Outage ID | D10: Feeder ID / name | E10: Feeder classification (drop down) | F10: Cause of event (drop down) | G10: Unplanned | J10: Event category | K10: Effect on unplanned MAIFI | L10: Please provide separate explanation to confirm the outage was not due to inadequate transmission connection planning
B11: DD/MM/YYYY | G11: Number of interruptions | H11: Duration of interruption (mins) | I11: Total unplanned minutes off supply | J11: Use exclusion categories listed in section 3.3(a) of the STPIS (drop down) | K11: by feeder classification | O11: Cause of Event
O12: Weather
O13: Equipment failure
O14: Operational error
O15: Vegetation
O16: Animals
O17: Third party impacts
O18: Transmission failure
O19: Load shedding
O20: Inter-distributor connection failure
O21: Other
B122: To enter further events - please insert new lines above this line.

Sheet 6.9 STPIS - GSL
B1: =(LOOKUP(dms_Model,dms_Model_List,dms_Worksheet_List)) -> ANNUAL REPORTING STATEMENT
B2: =dms_TradingName -> ActewAGL Distribution
B3: =CONCATENATE("Annual Reporting RIN Response ",CRY) -> Annual Reporting RIN Response 2016-17
B4: 6.9 STPIS - GUARANTEED SERVICE LEVEL
B6: Did the AER's GSL Scheme apply at any time during the regulatory year? | D6: No | E6: **IMPORTANT Please ensure this flag is set. Conditional formatting on this worksheet is dependant on this response.
B8: Instructions: Table 6.9.1 collects information relating to jurisdiction GSL scheme parameters. These parameters can be found in the jurisdictonal scheme relevant to NSP. Please identify each parameter in the relevant sub-tables and provide the volume and value of GSL payments. For GSL parameters that do not fit within the provided sub-tables provided, please enter a heading and identify the relevant parameter(s).
B10: 6.9.1 - GUARANTEED SERVICE LEVELS - JURISDICTIONAL GSL SCHEME
D11: =CRY -> 2016-17 | E11: =CRY -> 2016-17
D12: Volume | E12: Value of GSL payments
D13: 0's | E13: $0's
B14: Appointments
D15: 0 | E15: 0
D16: 0 | E16: 0
D17: 0 | E17: 0
D18: 0 | E18: 0
B19: To enter further GSL parameters relating to appointments - please copy a row from above and "insert copied cells" above this row.
B21: Connections
D22: 0 | E22: 0
D23: 0 | E23: 0
D24: 0 | E24: 0
D25: 0 | E25: 0
D26: 0 | E26: 0
B27: To enter further GSL parameters relating to connections - please copy a row from above and "insert copied cells" above this row.
B29: Reliability of supply
D30: 0 | E30: 0
D31: 0 | E31: 0
D32: 0 | E32: 0
D33: 0 | E33: 0
D34: 0 | E34: 0
D35: 0 | E35: 0
D36: 0 | E36: 0
D37: 0 | E37: 0
D38: 0 | E38: 0
D39: 0 | E39: 0
D40: 0 | E40: 0
B41: To enter further GSL parameters relating to reliability of supply - please copy a row from above and "insert copied cells" above this row.
B43: Street lights
D44: 0 | E44: 0
D45: 0 | E45: 0
D46: 0 | E46: 0
D47: 0 | E47: 0
D48: 0 | E48: 0
D49: 0 | E49: 0
D50: 0 | E50: 0
B51: To enter further GSL parameters relating to street lights - please copy a row from above and "insert copied cells" above this row.
B53: Planned interruptions
B54: Planned interruptions - 4 business days notice not given | D54: 73 | E54: 3650
B57: To enter further GSL parameters relating to planned interruptions - please copy a row from above and "insert copied cells" above this row.
B59: <NSP defined parameter category>
B63: To enter further GSL parameters - please identify the parameter and if insufficient rows please copy a row from above and "insert copied cells" above this row.
B65: <NSP defined parameter category>
B69: To enter further GSL parameters - please identify the parameter and if insufficient rows please copy a row from above and "insert copied cells" above this row.
B71: <NSP defined parameter category>
B75: To enter further GSL parameters - please identify the parameter and if insufficient rows please copy a row from above and "insert copied cells" above this row.
B77: <NSP defined parameter category>
B81: To enter further GSL parameters - please identify the parameter and if insufficient rows please copy a row from above and "insert copied cells" above this row.
B84: 6.9.2 - GUARANTEED SERVICE LEVELS - AER GSL SCHEME
B86: Complete Table 6.9.2 if the AER's GSL scheme applied at any time during the regulatory year. Do not complete Table 6.9.2 if the AER's GSL scheme did not apply during the regulatory year.
D88: =CRY -> 2016-17 | E88: =CRY -> 2016-17
D89: Volume | E89: Value of GSL payments
D90: 0's | E90: $0's
B91: New connections
B92: Number of connections made
B93: Number of connections not made on or before the day agreed
B94: Connections - GSL payments – 1-6 day delay
B95: Connections - GSL payments – 7+ day delay
B96: Reliability of supply
B97: Frequency of interruptions – CBD feeders – 9 interruptions
B98: Frequency of interruptions – Urban feeders – 9 interruptions
B99: Frequency of interruptions – Rural (short and long) feeders – 15 interruptions
B100: Interruptions – CBD feeders – 12 hours duration
B101: Interruptions – Urban feeders – 12 hours duration
B102: Interruptions – Rural (short and long) feeders – 18 hours duration
B103: Total duration of interruptions Level 1 – 20 hours
B104: Total duration of interruptions Level 2 – 30 hours
B105: Total duration of interruptions Level 3 – 60 hours
B106: Street lights
B107: Streetlight repair 5 days – GSL payments
B108: Planned interruptions
B109: Notice of planned interruptions – 4 business days notice not given
B110: Total | E110: =SUM(E109,E107,E97:E105,E94:E95) -> 0

Sheet 7.8 Avoided TUOS Payments
B1: =(LOOKUP(dms_Model,dms_Model_List,dms_Worksheet_List)) -> ANNUAL REPORTING STATEMENT
B2: =dms_TradingName -> ActewAGL Distribution
B3: =CONCATENATE("Annual Reporting RIN Response ",CRY) -> Annual Reporting RIN Response 2016-17
B4: 7.8 - AVOIDED TUOS PAYMENTS
B6: 7.8.1 - AVOIDED TUOS PAYMENTS
C7: Avoided TUOS Payment
C8: $0's, nominal
B9: Embedded generators
B10: Market network service providers
B11: Other | C11: 60499.98

Sheet 7.10 Juris Scheme
B1: =(LOOKUP(dms_Model,dms_Model_List,dms_Worksheet_List)) -> ANNUAL REPORTING STATEMENT
B2: =dms_TradingName -> ActewAGL Distribution
B3: =CONCATENATE("Annual Reporting RIN Response ",CRY) -> Annual Reporting RIN Response 2016-17
B4: 7.10 - JURISDICTIONAL SCHEMES
B6: Instructions Business must list each relevant jurisdictional scheme individually and report information for each scheme separately from other schemes.
B8: 7.10.1 - JURISDICTIONAL SCHEME PAYMENTS
B9: Jurisdictional Scheme Name | C9: Description | D9: Date DNSP Became Subject to Scheme | E9: Description of Cost Recovery Method | F9: Total Scheme Payments
F10: $0's, nominal
B11: Energy Industry Levy | C11: Part 3A of the Utilities Act 2000 (ACT) imposes a levy on energy utilities to recover the amount of the ACT’s national regulatory costs, and local regulations costs, in relation to the energy industry sectors | D11: 2014-01-29 | E11: Recovered through Network Tariffs | F11: 767880.44
B12: Utilities Network Facilities Tax | C12: The Utilities (Network Facilities Tax) Act 2006 (ACT) imposes a tax on owners of utility network facilities on land in the ACT | D12: 2014-01-29 | E12: Recovered through Network Tariffs | F12: 7111321.69
B13: Feed-in Tariffs (small scale) | C13: Feed-in Tariff for small generation which is already specified as a Jurisdictional Scheme under the NER clause 6.18.7A(e)(1)(i)). | D13: 2010-04-08 | E13: Recovered through Network Tariffs | F13: 16045265.7
B14: Feed-in Tariffs (large scale) | C14: The Electricity Feed-in (Large-scale Renewable Energy Generation) Act 2011 (ACT) is a scheme to support the development of up to 210 MW of large-scale renewable energy generation capacity for the ACT. | D14: 2014-01-29 | E14: Recovered through Network Tariffs | F14: 6235174.31
E17: Total | F17: =SUM(F11:F16) -> 30159642.14

Sheet 7.11 DMIS-DMIA
B1: =(LOOKUP(dms_Model,dms_Model_List,dms_Worksheet_List)) -> ANNUAL REPORTING STATEMENT
B2: =dms_TradingName -> ActewAGL Distribution
B3: =CONCATENATE("Annual Reporting RIN Response ",CRY) -> Annual Reporting RIN Response 2016-17
B4: 7.11 - DEMAND MANAGEMENT INCENTIVE SCHEME
B6: 7.11.1 - DMIA - PROJECTS SUBMITTED FOR APPROVAL
C7: =CONCATENATE("Total amount of the DMIA spent in ", CRY) -> Total amount of the DMIA spent in 2016-17
C8: Operating expenditure | D8: Capital expenditure | E8: Total
B9: Name of project | C9: $0's, nominal
B10: Residential Battery Energy Storage | D10: 55871.23 | E10: =SUM(C10:D10) -> 55871.23
E11: 0
E12: 0
E13: 0
E14: 0
E15: 0
E16: =SUM(C16:D16) -> 0
E17: 0
E18: 0
E19: 0
E20: 0
E21: 0
E22: 0
E23: 0
E24: 0
E25: 0
E26: 0
E27: 0
E28: 0
E29: 0
E30: 0
E31: 0
E32: 0
E33: 0
E34: 0
E35: 0
E36: 0
E37: 0
E38: 0
E39: 0
E40: 0
E41: 0
E42: 0
E43: 0
E44: 0
B45: To enter additional projects - please copy an existing row and insert above this row.
B46: Total | C46: =SUM(C10:C45) -> 0 | D46: =SUM(D10:D45) -> 55871.23 | E46: =SUM(E10:E45) -> 55871.23

Sheet 7.12 Safety and Bushfire
B1: =(LOOKUP(dms_Model,dms_Model_List,dms_Worksheet_List)) -> ANNUAL REPORTING STATEMENT
B2: =dms_TradingName -> ActewAGL Distribution
B3: =CONCATENATE("Annual Reporting RIN Response ",CRY) -> Annual Reporting RIN Response 2016-17
B4: 7.12 SAFETY AND BUSHFIRE RELATED EXPENDITURE
B6: These templates collect information from Victorian businesses only. Bushfire and safety related expenditure information is used by the AER to monitor the expenditures throughout the regulatory control period.
B8: CPI applied to convert expected expenditure in real $ to nominal based on lagged September CPI index
B10: Instructions
B11: For "Exclusive of Margins & Overheads" reported expenditure is to EXCLUDE any overheads, profit margins or management fees paid directly or indirectly to related party contractors (not including actual incurred expense of the related party contractor) for the reporting period.
B12: For "Value of Margins & Overheads" reported expenditure is to COMPRISE ONLY the sum of overheads, profit margins or management fees paid directly or indirectly to related party contractors (not including actual incurred expenses of the related party contractor) for the reporting period.
B14: =CONCATENATE(dms_TradingName, " is to specify each activity in this table in accordance with the definition in Appendix F of the RIN.") -> ActewAGL Distribution is to specify each activity in this table in accordance with the definition in Appendix F of the RIN.
B15: All activities must be reported but the Reason for Difference is only required if there is a 10 per cent difference between the expected value and the actual value. Use median unit costs. Where unit costs are not recorded at the asset category level - provide the best estimates of the unit cost using the cost allocation method identified in this table. (As a transitional measure, the unit cost may be based on a statistically significant annual sample of actual work orders at a 5% or better confidence interval.) Provide basis of allocation where applicable.
B17: 7.12.1 - SAFETY AND BUSHFIRE RELATED ASSET GROUP DEFINITIONS AND ALLOCATION BASIS
B18: Activity | C18: Definitions | G18: Basis for allocation of cost to activity
B19: Planned non-preferred services replacements
B20: Planned replacement of non-preferred services due to height
B21: Removal of public lighting switchwire
B22: Replacement of existing SWER lines with 22kV overhead bare conductor
B23: Installation of GFN and associated equipment at zone substations
B24: Replacement of crossarms/insulator sets – pole top fire mitigation
B25: Replacement of crossarms – based on age and condition
B26: Replacement of poles – based on age and condition
B27: Stake poles – based on age and condition
B28: Replacement of undersized poles
B29: Stake undersized poles
B30: Replacement of overhead conductor – mainly steel
B31: Service line clearance – overhead services requiring relocation
B32: Service line clearance – overhead services requiring undergrounding
B33: Replacement of 22kV distribution feeders with ABC/underground cabling
B34: Replacement of SWER with covered carbon core conductor or equivalent
B35: Replacement of SWER with ABC
B36: Replacement of SWER with underground
B37: Replacement of surge diverters (neptune configuration)
B38: Replacement of surge diverters (single phase or three phase)
B46: To enter further activities - please copy row from above and "insert copied cells" into a row above this row.
B48: 7.12.2 - BUSHFIRE RELATED
B50: 7.12.2.1 - NUMBER OF ACTIVITIES
B51: Activity | C51: Units | D51: Number of Activities
B52: Planned non-preferred services replacements | C52: number of services
B53: Planned replacement of non-preferred services due to height | C53: number of services
B54: Removal of public lighting switchwire | C54: number of spans removed
B55: Replacement of existing SWER lines with 22kV overhead bare conductor | C55: kms of SWER
B56: Installation of GFN and associated equipment at zone substations | C56: number of zone substations
B57: Replacement of crossarms/insulator sets – pole top fire mitigation | C57: number of crossarms/sets
B58: Replacement of crossarms – based on age and condition | C58: number of crossarms
B59: Replacement of poles – based on age and condition | C59: number of poles
B60: Stake poles – based on age and condition | C60: number of poles
B61: Replacement of undersized poles | C61: number of poles
B62: Stake undersized poles | C62: number of poles
B63: Replacement of overhead conductor – mainly steel | C63: kms
B64: Service line clearance – overhead services requiring relocation | C64: number of services
B65: Service line clearance – overhead services requiring undergrounding | C65: number of services
B66: Replacement of 22kV distribution feeders with ABC/underground cabling | C66: number of feeders
B67: Replacement of SWER with covered carbon core conductor or equivalent | C67: kms
B68: Replacement of SWER with ABC | C68: kms
B69: Replacement of SWER with underground | C69: kms
B70: Replacement of surge diverters (neptune configuration) | C70: number of units
B71: Replacement of surge diverters (single phase or three phase) | C71: number of units
B72: =IF(ISBLANK(B39),"",B39) -> 
B73: =IF(ISBLANK(B40),"",B40) -> 
B79: To enter further activities - please copy row from above and "insert copied cells" into a row above this row.
B82: 7.12.2.2 - EXPENDITURE
B83: Activity | C83: Units | D83: Exclusive of Margins & Overheads | E83: Value of Margins & Overheads
D84: Actual Expenditure
D85: $0's, Nominal
B86: Planned non-preferred services replacements | C86: number of services
B87: Planned replacement of non-preferred services due to height | C87: number of services
B88: Removal of public lighting switchwire | C88: number of spans removed
B89: Replacement of existing SWER lines with 22kV overhead bare conductor | C89: kms of SWER
B90: Installation of GFN and associated equipment at zone substations | C90: number of zone substations
B91: Replacement of crossarms/insulator sets – pole top fire mitigation | C91: number of crossarms/sets
B92: Replacement of crossarms – based on age and condition | C92: number of crossarms
B93: Replacement of poles – based on age and condition | C93: number of poles
B94: Stake poles – based on age and condition | C94: number of poles
B95: Replacement of undersized poles | C95: number of poles
B96: Stake undersized poles | C96: number of poles
B97: Replacement of overhead conductor – mainly steel | C97: kms
B98: Service line clearance – overhead services requiring relocation | C98: number of services
B99: Service line clearance – overhead services requiring undergrounding | C99: number of services
B100: Replacement of 22kV distribution feeders with ABC/underground cabling | C100: number of feeders
B101: Replacement of SWER with covered carbon core conductor or equivalent | C101: kms
B102: Replacement of SWER with ABC | C102: kms
B103: Replacement of SWER with underground | C103: kms
B104: Replacement of surge diverters (neptune configuration) | C104: number of units
B105: Replacement of surge diverters (single phase or three phase) | C105: number of units
B106: =IF(ISBLANK(B39),"",B39) ->  | C106: =IF(ISBLANK(C72),"",C72) -> 
B113: To enter further activities - please copy row from above and "insert copied cells" into a row above this row.
B117: 7.12.2.3 - UNIT COSTS
B118: Activity | D118: Actual
D119: $0's, Per Unit
B120: Planned non-preferred services replacements
B121: Planned replacement of non-preferred services due to height
B122: Removal of public lighting switchwire
B123: Replacement of existing SWER lines with 22kV overhead bare conductor
B124: Installation of GFN and associated equipment at zone substations
B125: Replacement of crossarms/insulator sets – pole top fire mitigation
B126: Replacement of crossarms – based on age and condition
B127: Replacement of poles – based on age and condition
B128: Stake poles – based on age and condition
B129: Replacement of undersized poles
B130: Stake undersized poles
B131: Replacement of overhead conductor – mainly steel
B132: Service line clearance – overhead services requiring relocation
B133: Service line clearance – overhead services requiring undergrounding
B134: Replacement of 22kV distribution feeders with ABC/underground cabling
B135: Replacement of SWER with covered carbon core conductor or equivalent
B136: Replacement of SWER with ABC
B137: Replacement of SWER with underground
B138: Replacement of surge diverters (neptune configuration)
B139: Replacement of surge diverters (single phase or three phase)
B140: =IF(ISBLANK(B39),"",B39) -> 
B147: To enter further activities - please copy row from above and "insert copied cells" into a row above this row.
B150: 7.12.2.4 - CONTINGENT PROJECT APPLICATIONS - VOLUMES APPROVED
B151: Activity | C151: Units | D151: Volume approved under contingent project applications | E151: Actual volumes | F151: Difference
F152: =E152-D152 -> 0
F153: 0
F154: 0
F155: 0
F156: 0
F157: 0
F158: 0
F159: 0
B160: To enter further activities - please copy row from above and "insert copied cells" into a row above this row.
B162: 7.12.2.5 - CONTINGENT PROJECT APPLICATIONS - EXPENDITURE APPROVED
B163: Activity | C163: Exclusive of Margins & Overheads | D163: Value of Margins & Overheads
C164: Actual Expenditure
C165: $0's, Nominal
B166: =IF(ISBLANK(B152),"",B152) -> 
B167: =IF(ISBLANK(B153),"",B153) -> 
B174: To enter further activities - please copy row from above and "insert copied cells" into a row above this row.
B178: 7.12.3 - SAFETY RELATED
B180: 7.12.3.1 - NUMBER OF ACTIVITIES
B181: Activity | C181: Units | D181: Number of Activities
B182: Planned non-preferred services replacements | C182: number of services
B183: Planned replacement of non-preferred services due to height | C183: number of services
B184: Removal of public lighting switchwire | C184: number of spans removed
B185: Replacement of existing SWER lines with 22kV overhead bare conductor | C185: kms of SWER
B186: Installation of GFN and associated equipment at zone substations | C186: number of zone substations
B187: Replacement of crossarms/insulator sets – pole top fire mitigation | C187: number of crossarms/sets
B188: Replacement of crossarms – based on age and condition | C188: number of crossarms
B189: Replacement of poles – based on age and condition | C189: number of poles
B190: Stake poles – based on age and condition | C190: number of poles
B191: Replacement of undersized poles | C191: number of poles
B192: Stake undersized poles | C192: number of poles
B193: Replacement of overhead conductor – mainly steel | C193: kms
B194: Service line clearance – overhead services requiring relocation | C194: number of services
B195: Service line clearance – overhead services requiring undergrounding | C195: number of services
B196: Replacement of 22kV distribution feeders with ABC/underground cabling | C196: number of feeders
B197: Replacement of SWER with covered carbon core conductor or equivalent | C197: kms
B198: Replacement of SWER with ABC | C198: kms
B199: Replacement of SWER with underground | C199: kms
B200: Replacement of surge diverters (neptune configuration) | C200: number of units
B201: Replacement of surge diverters (single phase or three phase) | C201: number of units
B202: =IF(ISBLANK(B39),"",B39) ->  | C202: =IF(ISBLANK(C72),"",C72) -> 
B209: To enter further activities - please copy row from above and "insert copied cells" into a row above this row.
B212: 7.12.3.2 - EXPENDITURE
B213: Activity | C213: Units | D213: Exclusive of Margins & Overheads | E213: Value of Margins & Overheads
D214: Actual Expenditure
D215: $0's, Nominal
B216: Planned non-preferred services replacements | C216: number of services
B217: Planned replacement of non-preferred services due to height | C217: number of services
B218: Removal of public lighting switchwire | C218: number of spans removed
B219: Replacement of existing SWER lines with 22kV overhead bare conductor | C219: kms of SWER
B220: Installation of GFN and associated equipment at zone substations | C220: number of zone substations
B221: Replacement of crossarms/insulator sets – pole top fire mitigation | C221: number of crossarms/sets
B222: Replacement of crossarms – based on age and condition | C222: number of crossarms
B223: Replacement of poles – based on age and condition | C223: number of poles
B224: Stake poles – based on age and condition | C224: number of poles
B225: Replacement of undersized poles | C225: number of poles
B226: Stake undersized poles | C226: number of poles
B227: Replacement of overhead conductor – mainly steel | C227: kms
B228: Service line clearance – overhead services requiring relocation | C228: number of services
B229: Service line clearance – overhead services requiring undergrounding | C229: number of services
B230: Replacement of 22kV distribution feeders with ABC/underground cabling | C230: number of feeders
B231: Replacement of SWER with covered carbon core conductor or equivalent | C231: kms
B232: Replacement of SWER with ABC | C232: kms
B233: Replacement of SWER with underground | C233: kms
B234: Replacement of surge diverters (neptune configuration) | C234: number of units
B235: Replacement of surge diverters (single phase or three phase) | C235: number of units
B236: =IF(ISBLANK(B39),"",B39) ->  | C236: =IF(ISBLANK(C72),"",C72) -> 
B243: To enter further activities - please copy row from above and "insert copied cells" into a row above this row.
B246: 7.12.3.3 - UNIT COSTS
B247: Activity | C247: Units | D247: Actual
D248: $0's, Per Unit
B249: Planned non-preferred services replacements | C249: number of services
B250: Planned replacement of non-preferred services due to height | C250: number of services
B251: Removal of public lighting switchwire | C251: number of spans removed
B252: Replacement of existing SWER lines with 22kV overhead bare conductor | C252: kms of SWER
B253: Installation of GFN and associated equipment at zone substations | C253: number of zone substations
B254: Replacement of crossarms/insulator sets – pole top fire mitigation | C254: number of crossarms/sets
B255: Replacement of crossarms – based on age and condition | C255: number of crossarms
B256: Replacement of poles – based on age and condition | C256: number of poles
B257: Stake poles – based on age and condition | C257: number of poles
B258: Replacement of undersized poles | C258: number of poles
B259: Stake undersized poles | C259: number of poles
B260: Replacement of overhead conductor – mainly steel | C260: kms
B261: Service line clearance – overhead services requiring relocation | C261: number of services
B262: Service line clearance – overhead services requiring undergrounding | C262: number of services
B263: Replacement of 22kV distribution feeders with ABC/underground cabling | C263: number of feeders
B264: Replacement of SWER with covered carbon core conductor or equivalent | C264: kms
B265: Replacement of SWER with ABC | C265: kms
... 65 more rows

Sheet 7.13 TARC
B1: =(LOOKUP(dms_Model,dms_Model_List,dms_Worksheet_List)) -> ANNUAL REPORTING STATEMENT
B2: =dms_TradingName -> ActewAGL Distribution
B3: =CONCATENATE("Annual Reporting RIN Response ",CRY) -> Annual Reporting RIN Response 2016-17
B4: 7.13 - TARC
B7: 7.13.1 - TOTAL ANNUAL RETAILER CHARGES
C8: $0's
B9: TARC | C9: 237060875.9

Sheet 8.1 Income
B1: =(LOOKUP(dms_Model,dms_Model_List,dms_Worksheet_List)) -> ANNUAL REPORTING STATEMENT
B2: =dms_TradingName -> ActewAGL Distribution
B3: =CONCATENATE("Annual Reporting RIN Response ",CRY) -> Annual Reporting RIN Response 2016-17
B4: 8.1 - INCOME
B6: 8.1.1 - INCOME STATEMENT
C7: Audited Statutory Accounts | D7: Adjustments | E7: Distribution business | F7: Standard Control Services | G7: Alternative Control Services | L7: Negotiated Services
G8: Public Lighting | I8: Other
G9: =IF(dms_Jurisdiction="Vic","Energy efficient","") ->  | H9: =IF(dms_Jurisdiction="Vic","Non-energy efficient","") ->  | I9: Connection services | J9: Metering services | K9: Ancillary network services
C10: $0's, nominal
B11: 8.1.1.1 - REVENUE
B12: Distribution revenue | C12: 210967151.2 | D12: 40031315.77 | E12: 170935835.5 | F12: 168320973.3 | I12: 0 | J12: 2614862.15 | K12: 0
B13: Cross boundary revenue | C13: 0 | D13: 0 | E13: 0 | F13: 0 | I13: 0 | J13: 0 | K13: 0
B14: Contributions | C14: 17660756.49 | D14: -77724.44 | E14: 17738480.93 | F14: 0 | I14: 9173089.26 | J14: 0 | K14: 8565391.67
B15: Interest income | C15: 1397444.1 | D15: 1397444.1 | E15: 0 | F15: 0 | I15: 0 | J15: 0 | K15: 0
B16: Jurisdictional scheme amounts | C16: 29362825.59 | D16: 0 | E16: 29362825.59 | F16: 29362825.59 | I16: 0 | J16: 0 | K16: 0
B17: Profit from sale of fixed assets | C17: 216731.14 | D17: 0 | E17: 216731.14 | F17: 216731.14 | I17: 0 | J17: 0 | K17: 0
B18: TUOS revenue | C18: 61787564.13 | D18: 0 | E18: 61787564.13 | F18: 61787564.13 | I18: 0 | J18: 0 | K18: 0
B19: Pass through revenue (F-factor) | C19: 0 | D19: 0 | E19: 0 | F19: 0 | I19: 0 | J19: 0 | K19: 0
B20: Other Revenue | C20: 55164572.92 | D20: 49960032.37 | E20: 5204540.55 | F20: 1462252.74 | I20: 0 | J20: 0 | K20: 3742287.81
B21: Total revenue | C21: =SUM(C12:C20) -> 376557045.6 | D21: 91311067.8 | E21: 285245977.8 | F21: 261150346.9 | G21: 0 | H21: 0 | I21: 9173089.26 | J21: 2614862.15 | K21: 12307679.48 | L21: 0
B23: 8.1.1.2 - EXPENDITURE
B24: TUOS expenditure | C24: 22587923.04 | D24: -24352433.99 | E24: 46940357.03 | F24: 46940357.03 | I24: 0 | J24: 0 | K24: 0
B25: Avoided TUOS expenditure | C25: 60499.98 | D25: 0 | E25: 60499.98 | F25: 60499.98 | I25: 0 | J25: 0 | K25: 0
B26: Cross boundary expenditure | C26: 0 | D26: 0 | E26: 0 | F26: 0 | I26: 0 | J26: 0 | K26: 0
B27: Depreciation | C27: 55365856.01 | D27: 16959881.73 | E27: 38405974.28 | F27: 38405974.28 | I27: 0 | J27: 0 | K27: 0
B28: Finance charges | C28: 605003.35 | D28: 179681.35 | E28: 425322 | F28: 425322 | I28: 0 | J28: 0 | K28: 0
B29: Impairment losses | C29: 0 | D29: 0 | E29: 0 | F29: 0 | I29: 0 | J29: 0 | K29: 0
B30: Jurisdictional scheme amounts | C30: 37082193.13 | D30: 6922550.99 | E30: 30159642.14 | F30: 30159642.14 | I30: 0 | J30: 0 | K30: 0
B31: Loss from sale of fixed assets | C31: 0 | D31: 0 | E31: 0 | F31: 0 | I31: 0 | J31: 0 | K31: 0
B32: Maintenance expenditure | C32: 0 | D32: -13463368.39 | E32: 13463368.39 | F32: 13463368.39 | I32: 0 | J32: 0 | K32: 0
B33: Operating expenditure excluding maintenance expenditure | C33: 125888285.7 | D33: 83178753.12 | E33: 42709532.57 | F33: 34908480 | I33: 0 | J33: 3391710.84 | K33: 4409341.73
B34: Other | C34: 4418158.03 | D34: 514952.43 | E34: 3903205.6 | F34: 3903205.6 | I34: 0 | J34: 0 | K34: 0
B36: 8.1.1.3 - PROFIT
B37: Profit before tax (PBT) | C37: =C21-SUM(C24:C34) -> 130549126.4 | D37: 21371050.56 | E37: 109178075.8 | F37: 92883497.49 | G37: 0 | H37: 0 | I37: 9173089.26 | J37: -776848.69 | K37: 7898337.75 | L37: 0
B38: Income tax expenses (/ benefit) | C38: 0 | D38: 0 | E38: 0 | F38: 0 | H38: 0 | I38: 0 | J38: 0 | K38: 0
B39: Profit after tax | C39: =C37-C38 -> 130549126.4 | D39: 21371050.56 | E39: 109178075.8 | F39: 92883497.49 | G39: 0 | H39: 0 | I39: 9173089.26 | J39: -776848.69 | K39: 7898337.75 | L39: =L37-L38 -> 0

Sheet 8.2 Capex
B1: =(LOOKUP(dms_Model,dms_Model_List,dms_Worksheet_List)) -> ANNUAL REPORTING STATEMENT
B2: =dms_TradingName -> ActewAGL Distribution
B3: =CONCATENATE("Annual Reporting RIN Response ",CRY) -> Annual Reporting RIN Response 2016-17
B4: 8.2 - CAPEX
B6: Instructions
B7: Reported expenditure must EXCLUDE capital contributions (except tables 8.2.1 and 8.2.5 which should include all capital contributions).
B8: =CONCATENATE("Forecast expenditure is to be taken from ",dms_TradingName,"'s ",dms_DeterminationRef,".") -> Forecast expenditure is to be taken from ActewAGL Distribution's 2014-19 Distribution Determination.
B9: If allocating based on assumptions then provide method in Basis of Preparation. All adjustments must be explained in Basis of Preparation with supporting documentation attached.
B11: For tables 8.2.1 and 8.2.3: Reported expenditure must INCLUDE any profit margins or management fees paid directly or indirectly to related party contractors (not including actual incurred expenses of the related party contractor) for the regulatory reporting period. 'Related Party Margin Expenditure' must COMPRISE ONLY profit margins or management fees paid directly or indirectly to related party contractors (not including actual incurred expenses of the related party contractor) for the regulatory reporting period.
B13: 8.2.1 - CAPEX BY PURPOSE - STANDARD CONTROL SERVICES
B15: Each line item in this table must INCLUDE the capital contributions. Total capital contributions should also be identified in the last item in the table.
C17: EXPENDITURE
C18: CPI adjusted Forecast | D18: Actual | E18: Difference | F18: Related Party Margin | G18: Voltage level
G19: Subtransmission | H19: HV | I19: LV | J19: Other
B20: Description | C20: $0's, nominal | E20: (%) | F20: $0's, nominal
B21: Asset renewal/replacement | C21: 22571697 | D21: 14715344 | E21: -0.35 | G21: 1816247 | H21: 1079137 | I21: 10554432 | J21: 1265529
B22: Customer initiated | C22: 14327337 | D22: 16701077 | E22: 0.17 | G22: 4543 | H22: 7676812 | I22: 8721182 | J22: 298540
B23: Augmentation | C23: 15235136 | D23: 5710622 | E23: -0.63 | G23: 3348480 | H23: 654146 | I23: - | J23: 1707995
B24: Reliability and Quality Improvements | C24: 2406604 | D24: 1600531 | E24: -0.33 | G24: 358610 | H24: - | I24: - | J24: 1241921
B25: Non-Network | C25: 8411255 | D25: 11693414 | E25: 0.39 | G25: - | H25: - | I25: - | J25: 11693414
B26: Less Capital Contributions | C26: -5670048 | D26: -9166553 | E26: 0.62 | G26: -6311 | H26: -4135653 | I26: -4698276 | J26: -326313
B27: Corporate Overhead | C27: 11542285 | D27: 12625240 | E27: 0.09 | G27: 1398259 | H27: 2759389 | I27: 5078927 | J27: 3388664
E28: 1
E29: 1
E30: 1
E31: 1
E32: 1
E33: 1
D34: - | E34: 1
B35: Capital contributions included in the above | D35: - | E35: 1
B36: Total | C36: 68824266 | D36: 53879676 | E36: -0.22 | G36: 6919829 | H36: 8033832 | I36: 19656266 | J36: 19269750
B39: 8.2.2 - CAPEX BY PURPOSE - MATERIAL DIFFERENCE EXPLANATION
B41: Where the difference between forecast and actual expenditure shown in table 8.2.1 is a Material Difference please explain the main factors driving the difference.
B43: Description | C43: Reason for material difference
B44: Asset renewal/replacement | C44: Pole asset strategy was reviewed with a view to improved Reliability Centred Maintenance (RCM) and better understanding of the asset’s condition and associated risk. Pole inspection cycles (amongst other things) were refined, reducing the number of poles requiring replacement. Applying a continuous improvement approach, the criteria for condemning poles was again reviewed and modified in December 2015/January 2016, further reducing the number of poles requiring replacement. In addition timing with the replacement of the Sternberg underground high voltage cable has seen the deferment to 2017/18.
B45: Customer initiated | C45: Stronger customer growth than expected.
B46: Augmentation | C46: Three large augmentation projects have been rolled forward into future financial years being the Fyshwick CDC Data Centre HV Supply , East Lake Zone Substation Feeder Installations & Tuggeranong Town Centre Development Supply as these projects are primarily driven by customer load growth which hasn’t been as rapid as originally forecast, timing has changed to reflect this & a change in scope with the second point of supply augmentation has seen deferred into future regulatory years.
B47: Reliability and Quality Improvements | C47: Optical Ground Wire program has been redefined as augmentation.
B48: Non-Network | C48: The primary driver in expenditure relates to compliance with Power of Choice.
B49: Less Capital Contributions | C49: Stronger customer growth than expected.
B51: Corporate Overhead
B61: 8.2.3 - CAPEX OTHER
C62: EXPENDITURE
C63: CPI adjusted Forecast | D63: Actual | E63: Difference | F63: Related Party Margin | G63: Voltage level
G64: Subtransmission | H64: HV | I64: LV | J64: Other
C65: $0's, nominal | E65: (%) | F65: $0's, nominal
B66: Public lighting
B67: =IF(dms_Jurisdiction="Vic","Energy Efficient", "Total") -> Total | C67: 0 | D67: =SUM(G67:J67) -> 0 | E67: =IF(C67=0,1,((D67-C67)/C67)*1) -> 1 | F67: 0 | G67: 0 | H67: 0 | I67: 0 | J67: 0
B68: =IF(dms_Jurisdiction="Vic","Non-energy efficient", "") ->  | D68: =SUM(G68:J68) -> 0 | E68: =IF(C68=0,1,((D68-C68)/C68)*1) -> 1
B69: Alternative Control Services
B70: Connection services | D70: =SUM(G70:J70) -> 0 | E70: =IF(C70=0,1,((D70-C70)/C70)*1) -> 1
B71: Metering services | D71: 0 | E71: =IF(C71=0,1,((D71-C71)/C71)*1) -> 1
B72: Ancillary network services | D72: 0 | E72: =IF(C72=0,1,((D72-C72)/C72)*1) -> 1
B73: Negotiated Services
B74: Negotiated services | D74: =SUM(G74:J74) -> 0 | E74: =IF(C74=0,1,((D74-C74)/C74)*1) -> 1
B75: Total | C75: =SUM(C67:C68,C70:C72,C74) -> 0 | D75: =SUM(D67:D68,D70:D72,D74) -> 0 | E75: =IF(C75=0,1,((D75-C75)/C75)*1) -> 1 | G75: =SUM(G67:G68,G70:G72,G74) -> 0 | H75: =SUM(H67:H68,H70:H72,H74) -> 0 | I75: =SUM(I67:I68,I70:I72,I74) -> 0 | J75: =SUM(J67:J68,J70:J72,J74) -> 0
B79: 8.2.4 - CAPEX BY ASSET CLASS
B81: =CONCATENATE(dms_TradingName, " to enter in Table 8.2.4 each Asset Class specified in its current determination as listed in the AER's final decision in its Roll Forward Model and Post-tax Revenue Model and enter information against that Asset Class.") -> ActewAGL Distribution to enter in Table 8.2.4 each Asset Class specified in its current determination as listed in the AER's final decision in its Roll Forward Model and Post-tax Revenue Model and enter information against that Asset Class.
C83: CPI adjusted Forecast | D83: Actual | E83: Difference | F83: Movements in provisions allocated to as-incurred capex
B84: Asset class | C84: $0's, nominal | E84: (%) | F84: $0's, nominal
B85: Transmission Overhead (66kV+) | D85: 3493146.652 | E85: =IF(C85=0,1,((D85-C85)/C85)*1) -> 1
B86: Transmission Underground (66kV+) | D86: 108155.684 | E86: =IF(C86=0,1,((D86-C86)/C86)*1) -> 1
B87: Transmission Zone Substation | D87: 2370762.196 | E87: 1
B88: Transmission IT & Communication Systems (Networks) | D88: 2247894.883 | E88: 1
B89: Transmission Motor Vehicles | D89: 207107.1888 | E89: 1
B90: Transmission Other Non-System Assets (Networks) | D90: 102927.4632 | E90: 1
B91: Transmission IT Systems (Corporate) | D91: 294382.0135 | E91: 1
B92: Transmission Other Non-System Assets (Corporate) | D92: 3019.446196 | E92: 1
B93: Transmission Buildings | D93: 163302.3058 | E93: 1
E94: 1
E95: 1
B96: Distribution Zone Substation | D96: 1928949.903 | E96: 1
B97: Distribution Substations | D97: 11886174.42 | E97: 1
B98: Distribution Overhead Lines | D98: 11622023.99 | E98: 1
B99: Distribution Underground Lines | D99: 15226854.43 | E99: 1
B100: Distribution IT & Communication Systems (Networks) | D100: 9972310.124 | E100: 1
B101: Distribution Motor Vehicles | D101: 918787.2312 | E101: 1
B102: Distribution Other Non-System Assets (Networks) | D102: 456615.9168 | E102: 1
B103: Distribution IT Systems (Corporate) | D103: 1305963.528 | E103: 1
B104: Distribution Telecommunications (Corporate) | D104: 0 | E104: 1
B105: Distribution Other Non-System Assets (Corporate) | D105: 13395.13431 | E105: 1
B106: Land | E106: 1
B107: Distribution Buildings | D107: 724456.1342 | E107: 1
E108: 1
E109: 1
E110: 1
E111: 1
E112: 1
E113: 1
E114: 1
E115: =IF(C115=0,1,((D115-C115)/C115)*1) -> 1
E116: 1
E117: 1
E118: 1
E119: 1
E120: 1
E121: 1
E122: 1
E123: 1
E124: 1
E125: 1
E126: 1
E127: 1
E128: 1
E129: 1
E130: 1
E131: 1
E132: 1
E133: 1
E134: 1
B135: Total | C135: =SUM(C85:C134) -> 0 | D135: =SUM(D85:D134) -> 63046228.64 | E135: 1 | F135: =SUM(F85:F134) -> 0
B138: 8.2.5 - CAPITAL CONTRIBUTIONS BY ASSET CLASS
C139: CPI Adjusted Forecast | D139: Actual | E139: Difference
B140: Asset class | C140: $0's, nominal | E140: (%)
B141: Transmission Overhead (66kV+) | D141: 6310.579756 | E141: 1
B142: Transmission Underground (66kV+) | E142: 1
B143: Transmission Zone Substation | E143: -1
B144: Transmission IT & Communication Systems (Networks) | D144: 60025.02883 | E144: 1.01
B145: Transmission Motor Vehicles | E145: -0.24
B146: Transmission Other Non-System Assets (Networks) | E146: 0.31
B147: Transmission IT Systems (Corporate) | E147: 1
B148: Transmission Other Non-System Assets (Corporate) | E148: 1
B149: Transmission Buildings | E149: 1
E150: 1
E151: 1
B152: Distribution Zone Substation | E152: 1
B153: Distribution Substations | D153: 4695172.674 | E153: 1
B154: Distribution Overhead Lines | D154: 176453.4905 | E154: 1
B155: Distribution Underground Lines | D155: 3962302.438 | E155: =IF(C155=0,1,((D155-C155)/C155)*1) -> 1
B156: Distribution IT & Communication Systems (Networks) | D156: 266288.3426 | E156: 1
B157: Distribution Motor Vehicles | E157: 1
B158: Distribution Other Non-System Assets (Networks) | E158: 1
B159: Distribution IT Systems (Corporate) | E159: 1
B160: Distribution Telecommunications (Corporate) | E160: 1
B161: Distribution Other Non-System Assets (Corporate) | E161: =IF(C161=0,1,((D161-C161)/C161)*1) -> 1
B162: Land | E162: 1
B163: Distribution Buildings | E163: 1
B164: =IF(ISBLANK(B108),"",B108) ->  | E164: 1
E165: 1
E166: 1
E167: 1
E168: 1
E169: 1
E170: =IF(C170=0,1,((D170-C170)/C170)*1) -> 1
E171: 1
E172: 1
B173: =IF(ISBLANK(B117),"",B117) ->  | E173: 1
E174: 1
E175: 1
E176: 1
E177: 1
E178: 1
E179: 1
E180: =IF(C180=0,1,((D180-C180)/C180)*1) -> 1
E181: 1
E182: 1
E183: 1
E184: 1
E185: 1
E186: 1
E187: 1
E188: 1
E189: 1
E190: 1
B191: Total | C191: =SUM(C141:C190) -> 0 | D191: =SUM(D141:D190) -> 9166552.553 | E191: 1
B194: 8.2.6 - DISPOSALS BY ASSET CLASS
C195: CPI Adjusted Forecast | D195: Actual | E195: Difference
B196: Asset class | C196: $0's, nominal | E196: (%)
B197: Transmission Overhead (66kV+) | E197: =IF(C197=0,1,((D197-C197)/C197)*1) -> 1
B198: Transmission Underground (66kV+) | E198: =IF(C198=0,1,((D198-C198)/C198)*1) -> 1
B199: Transmission Zone Substation | E199: 1
B200: Transmission IT & Communication Systems (Networks) | E200: 1
B201: Transmission Motor Vehicles | D201: 49602.75786 | E201: 1
B202: Transmission Other Non-System Assets (Networks) | E202: 1
B203: Transmission IT Systems (Corporate) | E203: 1
B204: Transmission Other Non-System Assets (Corporate) | E204: 1
B205: Transmission Buildings | E205: 1
E206: 1
E207: 1
B208: Distribution Zone Substation | E208: 1
B209: Distribution Substations | E209: 1
B210: Distribution Overhead Lines | E210: 1
B211: Distribution Underground Lines | E211: 1
B212: Distribution IT & Communication Systems (Networks) | E212: 1
B213: Distribution Motor Vehicles | D213: 220052.1421 | E213: 1
B214: Distribution Other Non-System Assets (Networks) | E214: 1
B215: Distribution IT Systems (Corporate) | E215: 1
B216: Distribution Telecommunications (Corporate) | E216: 1
B217: Distribution Other Non-System Assets (Corporate) | E217: 1
B218: Land | E218: 1
B219: Distribution Buildings | E219: 1
B220: =IF(ISBLANK(B108),"",B108) ->  | E220: 1
E221: 1
E222: 1
E223: 1
E224: 1
E225: 1
E226: 1
E227: =IF(C227=0,1,((D227-C227)/C227)*1) -> 1
E228: 1
... 19 more rows

Sheet 8.4 Opex
B1: =(LOOKUP(dms_Model,dms_Model_List,dms_Worksheet_List)) -> ANNUAL REPORTING STATEMENT
B2: =dms_TradingName -> ActewAGL Distribution
B3: =CONCATENATE("Annual Reporting RIN Response ",CRY) -> Annual Reporting RIN Response 2016-17
B4: 8.4 OPEX
B6: Instructions
B7: =CONCATENATE("Forecast expenditure is to be taken from ",dms_TradingName,"'s ",dms_DeterminationRef,".") -> Forecast expenditure is to be taken from ActewAGL Distribution's 2014-19 Distribution Determination.
B8: If allocating based on assumptions then provide method in Basis of Preparation. All adjustments must be explained in Basis of Preparation with supporting documentation attached.
B10: 8.4.1 - OPERATING & MAINTENANCE EXPENDITURE - BY PURPOSE
B12: =CONCATENATE(dms_TradingName," is to list the operating expenditure categories identified in ", dms_TradingName,"'s regulatory proposal at table 3.2.1.1 current opex categories and cost allocations.") -> ActewAGL Distribution is to list the operating expenditure categories identified in ActewAGL Distribution's regulatory proposal at table 3.2.1.1 current opex categories and cost allocations.
B13: =CONCATENATE(dms_TradingName, " must specify any expenditure category where the expense is more than 5 per cent of the total standard control services operating expenditure.") -> ActewAGL Distribution must specify any expenditure category where the expense is more than 5 per cent of the total standard control services operating expenditure.
B14: Reported operating expenditure must INCLUDE any profit margins or management fees paid directly or indirectly to related party contractors (not including actual incurred expenditure of the related party contractor) for the regulatory reporting period.
C16: Audited Statutory Accounts | D16: Adjustments | E16: Distribution business | F16: Standard Control Services | I16: Alternative Control Services | N16: Negotiated Services
F17: CPI Adjusted Forecast | G17: Actual | H17: Difference | I17: Public Lighting | K17: Other
I18: =IF(dms_Jurisdiction="Vic","Energy efficient","") ->  | J18: =IF(dms_Jurisdiction="Vic","Non-energy efficient","") ->  | K18: Connection services | L18: Metering services | M18: Ancillary network services
B19: Opex category | C19: $0's, nominal | H19: % | I19: $0's, nominal
B20: Zone Substation maintenance | F20: 2257285.266 | G20: 944792.12 | H20: =IF(F20=0,1,((G20-F20)/F20)*1) -> -0.5814476201
B21: Transmission maintenance | F21: 669735.1055 | G21: 175352.07 | H21: -0.7381769769
B22: Distribution maintenance | F22: 8547874.086 | G22: 8579849.51 | H22: 0.003740745738
B23: Secondary Systems maintenance | F23: 935262.4634 | G23: 744164.81 | H23: -0.204325161
B24: Property Services maintenance | F24: 181652.4742 | G24: 625363.98 | H24: 2.442639484
B25: Vegetation Management | F25: 2652412.841 | G25: 2393845.9 | H25: -0.09748367108
B26: System Control | F26: 2434062.33 | G26: 2868457.51 | H26: 0.1784651014
B27: Fault Call Centre | F27: 1941618.437 | G27: 2244414.07 | H27: 0.1559501225
B28: IT Support | F28: 2852462.5 | G28: 4920341.12 | H28: 0.7249450679
B29: Customer Support | F29: 2365394.032 | G29: 3738248.43 | H29: 0.5803914185
B30: Quality, Environmental and Safety Systems | F30: 2026252.002 | G30: 933286.13 | H30: -0.539402735
B31: Executive & Financial Management | F31: 937634.0364 | G31: 1826147.76 | H31: 0.9476124896
B32: Regulatory and NEM | F32: 2461043.822 | G32: 4355843.53 | H32: 0.7699170943
B33: Other Operating Expenses | F33: 3049737.684 | G33: 3007064.63 | H33: -0.01399236861
B34: Advertising & marketing | F34: 969061.6268 | G34: 857792.12 | H34: -0.1148219099
B35: Corporate Service Charges (Net) | F35: 6284851.589 | G35: 5392270.848 | H35: =IF(F35=0,1,((G35-F35)/F35)*1) -> -0.1420209736
B36: Franchise Billing and Revenue Operations | F36: 1208092.768 | G36: 611103.58 | H36: -0.4941583989
B37: Training Apprenticeship & Engineers | F37: 3722990.718 | G37: 579424.31 | H37: -0.8443658999
B38: Business Overhead | F38: 1489315.653 | G38: 2187231.64 | H38: 0.4686152236
B39: Overhead Recoveries | F39: 3595444.43 | G39: -75398.42 | H39: -1.020970542
B40: Metering Maintenance Costs | H40: 1 | L40: 296662.55
B41: Metering Operating Costs | H41: =IF(F41=0,1,((G41-F41)/F41)*1) -> 1 | L41: 2436740.28
B42: Metering Overhead | H42: 1 | L42: 658308.01
B43: Ancillary Services expenditures | H43: 1 | M43: 3658026.41
B44: Ancillary Services Overhead | H44: 1 | M44: 751316.36
H45: 1
H46: 1
H47: 1
H48: 1
H49: 1
H50: 1
H51: 1
H52: 1
H53: 1
H54: 1
H55: 1
H56: 1
H57: 1
H58: 1
H59: 1
H60: 1
H61: 1
H62: 1
H63: 1
H64: 1
H65: 1
H66: 1
H67: 1
H68: 1
H69: 1
B70: Total | C70: =SUM(C20:C69) -> 0 | D70: 0 | E70: 0 | F70: 50582183.86 | G70: 46909595.65 | H70: -0.07260635928 | I70: =SUM(I20:I69) -> 0 | J70: 0 | K70: 0 | L70: 3391710.84 | M70: 4409342.77 | N70: 0
B73: 8.4.2 - OPERATING & MAINTENANCE EXPENDITURE - BY PURPOSE - MARGINS ONLY
B75: "Related party margin expenditure' must COMPRISE ONLY profit margins or management fees paid directly or indirectly to related party contractors (for expenditure that is not an actual incurred expenditure of the related party contractor) for the regulatory reporting period.
C77: Audited Statutory Accounts | D77: Adjustments | E77: Distribution business | F77: Standard Control Services | I77: Alternative Control Services | N77: Negotiated Services
F78: CPI Adjusted Forecast | G78: Actual | H78: Difference | I78: Public Lighting | K78: Other
I79: =IF(dms_Jurisdiction="Vic","Energy efficient","") ->  | J79: =IF(dms_Jurisdiction="Vic","Non-energy efficient","") ->  | K79: Connection services | L79: Metering services | M79: Ancillary network services
B80: Opex category | C80: $0's, nominal | G80: $0's, nominal | H80: per cent | I80: $0's, nominal
B81: =IF(ISBLANK(B20),"",B20) -> Zone Substation maintenance | H81: =IF(F81=0,1,((G81-F81)/F81)*1) -> 1
B82: Transmission maintenance | H82: 1
B83: Distribution maintenance | H83: 1
B84: Secondary Systems maintenance | H84: 1
B85: Property Services maintenance | H85: 1
B86: Vegetation Management | H86: 1
B87: System Control | H87: 1
B88: Fault Call Centre | H88: =IF(F88=0,1,((G88-F88)/F88)*1) -> 1
B89: IT Support | H89: 1
B90: Customer Support | H90: 1
B91: Quality, Environmental and Safety Systems | H91: 1
B92: Executive & Financial Management | H92: 1
B93: Regulatory and NEM | H93: 1
B94: Other Operating Expenses | H94: 1
B95: Advertising & marketing | H95: 1
B96: Corporate Service Charges (Net) | H96: 1
B97: Franchise Billing and Revenue Operations | H97: =IF(F97=0,1,((G97-F97)/F97)*1) -> 1
B98: Training Apprenticeship & Engineers | H98: 1
B99: Business Overhead | H99: 1
B100: Overhead Recoveries | H100: 1
B101: Metering Maintenance Costs | H101: 1
B102: Metering Operating Costs | H102: 1
B103: Metering Overhead | H103: =IF(F103=0,1,((G103-F103)/F103)*1) -> 1
B104: Ancillary Services expenditures | H104: 1
B105: Ancillary Services Overhead | H105: 1
H106: 1
H107: 1
H108: 1
H109: 1
H110: 1
H111: 1
H112: 1
H113: 1
H114: 1
H115: 1
H116: 1
H117: 1
H118: 1
H119: 1
H120: 1
H121: 1
H122: 1
H123: 1
H124: 1
H125: 1
H126: 1
H127: 1
H128: 1
H129: 1
H130: 1
B131: Total | C131: =SUM(C81:C130) -> 0 | D131: =SUM(D81:D130) -> 0 | E131: =SUM(E81:E130) -> 0 | F131: =SUM(F81:F130) -> 0 | G131: =SUM(G81:G130) -> 0 | H131: 1 | I131: =SUM(I81:I130) -> 0 | J131: 0 | K131: 0 | L131: 0 | M131: 0 | N131: 0
B134: 8.4.3 - OPERATING & MAINTENANCE EXPENDITURE - EXPLANATION OF MATERIAL DIFFERENCE
B136: Where the difference between forecast and actual expenditure shown in table 8.4.1, column I is a Material Difference please explain the main factors driving the difference.
B138: Category | C138: Explanation
B139: Zone Substation maintenance
B140: Transmission maintenance
B141: Secondary Systems maintenance
B142: Property Services maintenance
B143: System Control
B144: Fault Call Centre
B145: IT Support
B146: Customer Support
B147: Quality, Environmental and Safety Systems
B148: Executive & Financial Management
B149: Regulatory and NEM
B150: Other Operating Expenses
B151: Advertising & marketing
B152: Corporate Service Charges (Net)
B153: Franchise Billing and Revenue Operations
B154: Training Apprenticeship & Engineers
B155: Business Overhead
B156: Overhead Recoveries

Sheet 9.5 TUoS
B1: =(LOOKUP(dms_Model,dms_Model_List,dms_Worksheet_List)) -> ANNUAL REPORTING STATEMENT
B2: =dms_TradingName -> ActewAGL Distribution
B3: =CONCATENATE("Annual Reporting RIN Response ",CRY) -> Annual Reporting RIN Response 2016-17
B4: 9.5 - TUoS AUDIT (t-2)
B6: This template collects information for annual pricing proposals from Victorian businesses only.
B8: 9.5.1 - TUOS CHARGES (AEMO)
F9: =CRY -> 2016-17
E16: Total | F16: =SUM(F10:F15) -> 0
B19: 9.5.2 - TRANSMISSION CONNECTION FEES
F20: =CRY -> 2016-17
E27: Total | F27: =SUM(F21:F26) -> 0
B30: 9.5.3 - CROSS BOUNDARY NETWORK CHARGES
C31: Amount (payable)/receivable
C32: $0's, nominal
C33: HV crossings | D33: Subtransmission crossings | E33: TUoS Adjustment | F33: Total
B34: Distribution Business | F34: =CRY -> 2016-17
F35: =IF((SUM(C35:E35)=0),"",(SUM(C35:E35))) -> 
F36: =IF((SUM(C36:E36)=0),"",(SUM(C36:E36))) -> 
B43: Total
B46: 9.5.4 - PAYMENTS TO EMBEDDED GENERATORS
B47: 9.5.4.1 - AVOIDED TRANSMISSION COSTS | F47: =CRY -> 2016-17
B56: Total | F56: =SUM(F48:F55) -> 0
B57: 9.5.4.2 - AVOIDED TUoS USAGE CHARGES | F57: =CRY -> 2016-17
B66: Total | F66: =SUM(F58:F65) -> 0
B67: Total payments to embedded generators | F67: =F66+F56 -> 0
